Body,Service Area Org,Service Division Org,Responsible Unit,Expense Type,Detailed Expense Typ,Expense Code,Payment Date,Transaction Number,              Amount,Supplier Name,Supplier ID
Somerset County Council,Adult Social Care,Mental Health,ASC MH Residential,Third Party Payments,Private Contractors & Other Agencies,Purchased Care Services,06.01.2016,1900951904,2320.00,4M COMPANY,11007035
Somerset County Council,Adult Social Care,Mental Health,ASC MH Residential,Third Party Payments,Private Contractors & Other Agencies,Purchased Care Services,06.01.2016,1900951904,2100.00,4M COMPANY,11007035
Somerset County Council,Adult Social Care,New Codes,Sdg LT Phys Support - Res Block,Third Party Payments,Private Contractors & Other Agencies,Purchased Care Services,28.01.2016,1900962644,9149.40,4M COMPANY,11007035
Somerset County Council,Adult Social Care,New Codes,Sdg LT Phys Support - Res Spot,Third Party Payments,Private Contractors & Other Agencies,Purchased Care Services,07.01.2016,1900953164,1829.88,4M COMPANY,11007035
Somerset County Council,Adult Social Care,New Codes,Sdg LT Phys Support - Res Spot,Third Party Payments,Private Contractors & Other Agencies,Purchased Care Services,07.01.2016,1900953164,1829.88,4M COMPANY,11007035
Somerset County Council,Adult Social Care,Mental Health,ASC MH Mendip Transport,Transport,Contract Hire/Operating Leases,Medical Need Transport,25.01.2016,1900960986,10.80,A to B Taxis,11007976
Somerset County Council,Adult Social Care,Older People,ASC ME OP Passenger Transport,Transport,Car Allowances,Vehicle mileage allowance - volunteers,25.01.2016,1900960986,20.00,A to B Taxis,11007976
Somerset County Council,Adult Social Care,Older People,ASC ME OP Passenger Transport,Transport,Car Allowances,Vehicle mileage allowance - volunteers,25.01.2016,1900960986,59.50,A to B Taxis,11007976
Somerset County Council,Adult Social Care,Mental Health,ASC MH Mendip Transport,Transport,Car Allowances,Vehicle mileage allowance - volunteers,25.01.2016,1900960986,21.60,A to B Taxis,11007976
Somerset County Council,Adult Social Care,Learning Disabilities,LD-PUR-GS-Passenger Transport-SDW,Transport,Central Pool Recharges,Hired Vehicle Costs,04.01.2016,1900951116,21.60,A1 ACE TAXI SERVICE LTD,11007454
Somerset County Council,Adult Social Care,Learning Disabilities,LD-SCC-TS-Transport-SDW,Transport,Central Pool Recharges,Hired Vehicle Costs,29.01.2016,1900963028,30.00,A1 ACE TAXI SERVICE LTD,11007454
Somerset County Council,Adult Social Care,Older People,ASC SS OP Passenger Transport,Transport,Contract Hire/Operating Leases,Medical Need Transport,04.01.2016,1900951116,111.60,A1 ACE TAXI SERVICE LTD,11007454
Somerset County Council,Adult Social Care,Physical Disabilities,ASC SE OP Passenger Transport PD,Transport,Car Allowances,Vehicle mileage allowance - volunteers,29.01.2016,1900963028,28.40,A1 ACE TAXI SERVICE LTD,11007454
Somerset County Council,Adult Social Care,Physical Disabilities,ASC SE OP Passenger Transport PD,Transport,Car Allowances,Vehicle mileage allowance - volunteers,29.01.2016,1900963028,28.40,A1 ACE TAXI SERVICE LTD,11007454
Somerset County Council,Adult Social Care,Older People,ASC SS OP Passenger Transport,Transport,Car Allowances,Vehicle mileage allowance - volunteers,29.01.2016,1900963028,111.60,A1 ACE TAXI SERVICE LTD,11007454
Somerset County Council,Adult Social Care,Older People,ASC TA OP Passenger Transport,Transport,Car Allowances,Vehicle mileage allowance - volunteers,29.01.2016,1900963028,14.40,A1 ACE TAXI SERVICE LTD,11007454
Somerset County Council,Adult Social Care,Older People,ASC TA OP Passenger Transport,Transport,Car Allowances,Vehicle mileage allowance - volunteers,29.01.2016,1900963028,12.20,A1 ACE TAXI SERVICE LTD,11007454
Somerset County Council,Adult Social Care,Older People,ASC TA OP Passenger Transport,Transport,Car Allowances,Vehicle mileage allowance - volunteers,29.01.2016,1900963028,5.00,A1 ACE TAXI SERVICE LTD,11007454
Somerset County Council,Adult Social Care,Older People,ASC TA OP Passenger Transport,Transport,Car Allowances,Vehicle mileage allowance - volunteers,08.01.2016,1900954694,5.00,A1 ACE TAXI SERVICE LTD,11007454
Somerset County Council,Adult Social Care,Older People,ASC TA OP Passenger Transport,Transport,Car Allowances,Vehicle mileage allowance - volunteers,08.01.2016,1900954694,10.00,A1 ACE TAXI SERVICE LTD,11007454
Somerset County Council,Adult Social Care,Older People,ASC TA OP Passenger Transport,Transport,Car Allowances,Vehicle mileage allowance - volunteers,08.01.2016,1900954694,16.20,A1 ACE TAXI SERVICE LTD,11007454
Somerset County Council,Adult Social Care,Older People,ASC TA OP Passenger Transport,Transport,Car Allowances,Vehicle mileage allowance - volunteers,08.01.2016,1900954694,7.20,A1 ACE TAXI SERVICE LTD,11007454
Somerset County Council,Adult Social Care,Older People,ASC TA OP Passenger Transport,Transport,Car Allowances,Vehicle mileage allowance - volunteers,08.01.2016,1900954694,108.00,A1 ACE TAXI SERVICE LTD,11007454
Somerset County Council,Adult Social Care,Older People,ASC TA OP Passenger Transport,Transport,Car Allowances,Vehicle mileage allowance - volunteers,08.01.2016,1900954694,5.00,A1 ACE TAXI SERVICE LTD,11007454
Somerset County Council,Adult Social Care,Older People,ASC TA OP Passenger Transport,Transport,Car Allowances,Vehicle mileage allowance - volunteers,25.01.2016,1900960968,21.20,A1 ACE TAXI SERVICE LTD,11007454
Somerset County Council,Adult Social Care,Older People,ASC TA OP Passenger Transport,Transport,Car Allowances,Vehicle mileage allowance - volunteers,25.01.2016,1900960968,14.40,A1 ACE TAXI SERVICE LTD,11007454
Somerset County Council,Adult Social Care,Physical Disabilities,ASC TA OP Passenger Transport PD,Transport,Car Allowances,Vehicle mileage allowance - volunteers,08.01.2016,1900954694,18.00,A1 ACE TAXI SERVICE LTD,11007454
Somerset County Council,Adult Social Care,Physical Disabilities,ASC TA OP Passenger Transport PD,Transport,Car Allowances,Vehicle mileage allowance - volunteers,08.01.2016,1900954694,10.00,A1 ACE TAXI SERVICE LTD,11007454
Somerset County Council,Adult Social Care,Learning Disabilities,LD-PUR-CT-Community Teams -TNT,Transport,Car Allowances,Vehicle mileage allowance - volunteers,29.01.2016,1900963028,50.40,A1 ACE TAXI SERVICE LTD,11007454
Somerset County Council,Adult Social Care,Learning Disabilities,LD-PUR-CT-Community Teams -TNT,Transport,Car Allowances,Vehicle mileage allowance - volunteers,29.01.2016,1900963028,50.40,A1 ACE TAXI SERVICE LTD,11007454
Somerset County Council,Adult Social Care,Learning Disabilities,LD-PUR-CT-Community Teams -TNT,Transport,Car Allowances,Vehicle mileage allowance - volunteers,25.01.2016,1900960968,70.20,A1 ACE TAXI SERVICE LTD,11007454
Somerset County Council,Adult Social Care,New Codes,Tton LT Phys Support - DPA Residential,Third Party Payments,Private Contractors & Other Agencies,Purchased Care Services,08.01.2016,1900954532,1868.57,ABBEYFIELD (SOMERSET) SOCIETY,11014015
Somerset County Council,Adult Social Care,New Codes,Tton LT Phys Support - Res Spot,Third Party Payments,Private Contractors & Other Agencies,Purchased Care Services,08.01.2016,1900954532,1829.88,ABBEYFIELD (SOMERSET) SOCIETY,11014015
Somerset County Council,Adult Social Care,Mental Health,ASC MH Supported Living,Third Party Payments,Private Contractors & Other Agencies,Purchased Care Services,27.01.2016,5100759701,1109.33,Able2achieve ltd,11032969
Somerset County Council,Adult Social Care,Mental Health,ASC MH Supported Living,Third Party Payments,Private Contractors & Other Agencies,Purchased Care Services,28.01.2016,5100759798,1121.68,Able2achieve ltd,11032969
Somerset County Council,Adult Social Care,Mental Health,ASC MH Supported Living,Third Party Payments,Private Contractors & Other Agencies,Purchased Care Services,28.01.2016,5100759799,8793.67,Able2achieve ltd,11032969
Somerset County Council,Adult Social Care,Learning Disabilities,LD-PUR-DC-Day Care-STH,Third Party Payments,Private Contractors & Other Agencies,Purchased Care Services,15.01.2016,5100756659,1121.68,Able2achieve ltd,11032969
Somerset County Council,Adult Social Care,Learning Disabilities,LD-PUR-SH-Supported Housing-STH,Third Party Payments,Private Contractors & Other Agencies,Purchased Care Services,08.01.2016,5100754680,8523.66,Able2achieve ltd,11032969
Somerset County Council,Adult Social Care,Learning Disabilities,LD-PUR-SH-Supported Housing-STH,Third Party Payments,Private Contractors & Other Agencies,Purchased Care Services,08.01.2016,5100754679,11648.00,Able2achieve ltd,11032969
Somerset County Council,Adult Social Care,Learning Disabilities,LD-PUR-SH-Supported Housing-STH,Third Party Payments,Private Contractors & Other Agencies,Purchased Care Services,15.01.2016,5100756653,1126.19,Able2achieve ltd,11032969
Somerset County Council,Adult Social Care,Learning Disabilities,LD-PUR-SH-Supported Housing-STH,Third Party Payments,Private Contractors & Other Agencies,Purchased Care Services,15.01.2016,5100756654,3604.50,Able2achieve ltd,11032969
Somerset County Council,Adult Social Care,Learning Disabilities,LD-PUR-SH-Supported Housing-STH,Third Party Payments,Private Contractors & Other Agencies,Purchased Care Services,15.01.2016,5100756658,11648.00,Able2achieve ltd,11032969
Somerset County Council,Adult Social Care,Learning Disabilities,LD-PUR-SH-Supported Housing-STH,Third Party Payments,Private Contractors & Other Agencies,Purchased Care Services,15.01.2016,5100756661,18928.00,Able2achieve ltd,11032969
Somerset County Council,Adult Social Care,Learning Disabilities,LD-PUR-SH-Supported Housing-STH,Third Party Payments,Private Contractors & Other Agencies,Purchased Care Services,15.01.2016,5100756662,11648.00,Able2achieve ltd,11032969
Somerset County Council,Adult Social Care,Learning Disabilities,LD-PUR-SH-Supported Housing-STH,Third Party Payments,Private Contractors & Other Agencies,Purchased Care Services,20.01.2016,5100757887,11648.00,Able2achieve ltd,11032969
Somerset County Council,Adult Social Care,Learning Disabilities,LD-PUR-SH-Supported Housing-STH,Third Party Payments,Private Contractors & Other Agencies,Purchased Care Services,19.01.2016,5100756666,2840.50,Able2Achieve Ltd,30017727
Somerset County Council,Adult Social Care,Learning Disabilities,LD-PUR-SH-Supported Housing-STH,Third Party Payments,Private Contractors & Other Agencies,Purchased Care Services,19.01.2016,5100756667,1121.68,Able2Achieve Ltd,30017727
Somerset County Council,Adult Social Care,New Codes,SSom LT Phys Support - Homecare,Third Party Payments,Private Contractors & Other Agencies,Purchased Services - Pers Care,22.01.2016,5100758482,1487.00,Able2achieve ltd,11032969
Somerset County Council,Adult Social Care,Learning Disabilities,LD-SCC-RS-Ashbury-TNT,Supplies & Services,Equipment Furniture & Materials,Equipment,18.01.2016,5100754929,24.29,ABRADA CLEANING SUPPLIES LTD,11008505
Somerset County Council,Adult Social Care,Learning Disabilities,LD-SCC-RS-Ashbury-TNT,Supplies & Services,Equipment Furniture & Materials,Equipment Cleaning & Materials,18.01.2016,5100754929,436.32,ABRADA CLEANING SUPPLIES LTD,11008505
Somerset County Council,Adult Social Care,Learning Disabilities,LD-SCC-RS-Ashbury-TNT,Supplies & Services,Clothing Uniforms & Laundry,Hygiene services,18.01.2016,5100754929,348.90,ABRADA CLEANING SUPPLIES LTD,11008505
Somerset County Council,Adult Social Care,Physical Disabilities,ASC SS PD Sensory loss,Third Party Payments,Voluntary Associations,Agency - Pay to Voluntary Orgs,25.01.2016,5100759044,690.00,Action on Hearing Loss,11002715
Somerset County Council,Adult Social Care,Older People,ASC SE Dir Fieldwork,Supplies & Services,Equipment Furniture & Materials,Equipment,20.01.2016,5100757698,553.00,Action on Hearing Loss,11002715
Somerset County Council,Adult Social Care,New Codes,Mdp LT Sens Support - Day Care,Third Party Payments,Private Contractors & Other Agencies,Purchased Care Services,15.01.2016,5100756834,567.00,Action on Hearing Loss,11002715
Somerset County Council,Adult Social Care,New Codes,Mdp LT Sens Support - Day Care,Third Party Payments,Private Contractors & Other Agencies,Purchased Care Services,15.01.2016,5100756836,963.52,Action on Hearing Loss,11002715
Somerset County Council,Adult Social Care,New Codes,Mdp LT Sens Support - Day Care,Third Party Payments,Private Contractors & Other Agencies,Purchased Care Services,29.01.2016,5100760273,511.56,Action on Hearing Loss,11002715
Somerset County Council,Adult Social Care,New Codes,SSom LT Sens Support - Res Spot,Third Party Payments,Private Contractors & Other Agencies,Purchased Care Services,07.01.2016,1900952987,5187.32,Action on Hearing Loss,11002715
Somerset County Council,Adult Social Care,New Codes,SSom LT Soc Sup - Isolation - Day Care,Third Party Payments,Private Contractors & Other Agencies,Purchased Care Services,19.01.2016,5100757567,539.20,Action on Hearing Loss,11002715
Somerset County Council,Adult Social Care,Learning Disabilities,LD-PUR-RS-Comm. Care-TNT,Third Party Payments,Private Contractors & Other Agencies,Purchased Care Services,07.01.2016,1900953230,2086.48,Adiemus Care Limited - Murley House,11031316
Somerset County Council,Adult Social Care,New Codes,Mdp LT Mem Support - Nurs Spot,Third Party Payments,Private Contractors & Other Agencies,Purchased Care Services,08.01.2016,1900954540,1889.28,Adiemus Care Limited - Murley House,11031316
Somerset County Council,Adult Social Care,New Codes,Mdp LT Phys Support - Nurs OPMH Spot,Third Party Payments,Private Contractors & Other Agencies,Purchased Care Services,08.01.2016,1900954540,1889.28,Adiemus Care Limited - Murley House,11031316
Somerset County Council,Adult Social Care,New Codes,Sdg LT Phys Support - Nurs OPMH Spot,Third Party Payments,Private Contractors & Other Agencies,Purchased Care Services,08.01.2016,1900954540,1889.28,Adiemus Care Limited - Murley House,11031316
Somerset County Council,Adult Social Care,New Codes,Sdg LT Phys Support - Nurs OPMH Spot,Third Party Payments,Private Contractors & Other Agencies,Purchased Care Services,08.01.2016,1900954540,1889.28,Adiemus Care Limited - Murley House,11031316
Somerset County Council,Adult Social Care,New Codes,SSom LT Mem Support - Nurs Spot,Third Party Payments,Private Contractors & Other Agencies,Purchased Care Services,08.01.2016,1900954540,1889.28,Adiemus Care Limited - Murley House,11031316
Somerset County Council,Adult Social Care,New Codes,SSom LT Mem Support - Res Spot,Third Party Payments,Private Contractors & Other Agencies,Purchased Care Services,08.01.2016,1900954540,1829.88,Adiemus Care Limited - Murley House,11031316
Somerset County Council,Adult Social Care,New Codes,SSom LT Phys Support - FNC,Third Party Payments,Private Contractors & Other Agencies,Purchased Care Services,08.01.2016,1900954540,448.00,Adiemus Care Limited - Murley House,11031316
Somerset County Council,Adult Social Care,New Codes,SSom LT Phys Support - FNC,Third Party Payments,Private Contractors & Other Agencies,Purchased Care Services,08.01.2016,1900954540,448.00,Adiemus Care Limited - Murley House,11031316
Somerset County Council,Adult Social Care,New Codes,SSom LT Phys Support - Nurs OPMH Spot,Third Party Payments,Private Contractors & Other Agencies,Purchased Care Services,08.01.2016,1900954540,1889.28,Adiemus Care Limited - Murley House,11031316
Somerset County Council,Adult Social Care,New Codes,SSom LT Phys Support - Nurs OPMH Spot,Third Party Payments,Private Contractors & Other Agencies,Purchased Care Services,08.01.2016,1900954540,1889.28,Adiemus Care Limited - Murley House,11031316
Somerset County Council,Adult Social Care,New Codes,SSom LT Phys Support - Nurs Spot,Third Party Payments,Private Contractors & Other Agencies,Purchased Care Services,08.01.2016,1900954540,1889.28,Adiemus Care Limited - Murley House,11031316
Somerset County Council,Adult Social Care,New Codes,Tton LT Mem Support - FNC,Third Party Payments,Private Contractors & Other Agencies,Purchased Care Services,08.01.2016,1900954540,448.00,Adiemus Care Limited - Murley House,11031316
Somerset County Council,Adult Social Care,New Codes,Tton LT Mem Support - FNC,Third Party Payments,Private Contractors & Other Agencies,Purchased Care Services,08.01.2016,1900954540,448.00,Adiemus Care Limited - Murley House,11031316
Somerset County Council,Adult Social Care,New Codes,Tton LT Mem Support - FNC,Third Party Payments,Private Contractors & Other Agencies,Purchased Care Services,08.01.2016,1900954540,448.00,Adiemus Care Limited - Murley House,11031316
Somerset County Council,Adult Social Care,New Codes,Tton LT Mem Support - FNC,Third Party Payments,Private Contractors & Other Agencies,Purchased Care Services,08.01.2016,1900954540,448.00,Adiemus Care Limited - Murley House,11031316
Somerset County Council,Adult Social Care,New Codes,Tton LT Mem Support - FNC,Third Party Payments,Private Contractors & Other Agencies,Purchased Care Services,08.01.2016,1900954540,448.00,Adiemus Care Limited - Murley House,11031316
Somerset County Council,Adult Social Care,New Codes,Tton LT Mem Support - Nurs OPMH Spot,Third Party Payments,Private Contractors & Other Agencies,Purchased Care Services,08.01.2016,1900954540,2008.48,Adiemus Care Limited - Murley House,11031316
Somerset County Council,Adult Social Care,New Codes,Tton LT Mem Support - Nurs OPMH Spot,Third Party Payments,Private Contractors & Other Agencies,Purchased Care Services,08.01.2016,1900954540,2008.48,Adiemus Care Limited - Murley House,11031316
Somerset County Council,Adult Social Care,New Codes,Tton LT Mem Support - Res OPMH Spot,Third Party Payments,Private Contractors & Other Agencies,Purchased Care Services,08.01.2016,1900954540,1829.88,Adiemus Care Limited - Murley House,11031316
Somerset County Council,Adult Social Care,New Codes,Tton LT Mem Support - Res OPMH Spot,Third Party Payments,Private Contractors & Other Agencies,Purchased Care Services,08.01.2016,1900954540,1829.88,Adiemus Care Limited - Murley House,11031316
Somerset County Council,Adult Social Care,New Codes,Tton LT Phys Support - DPA Nursing,Third Party Payments,Private Contractors & Other Agencies,Purchased Care Services,08.01.2016,1900954540,3000.00,Adiemus Care Limited - Murley House,11031316
Somerset County Council,Adult Social Care,New Codes,Tton LT Phys Support - DPA Nursing,Third Party Payments,Private Contractors & Other Agencies,Purchased Care Services,08.01.2016,1900954540,2200.00,Adiemus Care Limited - Murley House,11031316
Somerset County Council,Adult Social Care,New Codes,Tton LT Phys Support - DPA Residential,Third Party Payments,Private Contractors & Other Agencies,Purchased Care Services,08.01.2016,1900954540,2400.00,Adiemus Care Limited - Murley House,11031316
Somerset County Council,Adult Social Care,New Codes,Tton LT Phys Support - DPA Residential,Third Party Payments,Private Contractors & Other Agencies,Purchased Care Services,08.01.2016,1900954540,2200.00,Adiemus Care Limited - Murley House,11031316
Somerset County Council,Adult Social Care,New Codes,Tton LT Phys Support - FNC,Third Party Payments,Private Contractors & Other Agencies,Purchased Care Services,08.01.2016,1900954540,448.00,Adiemus Care Limited - Murley House,11031316
Somerset County Council,Adult Social Care,New Codes,Tton LT Phys Support - FNC,Third Party Payments,Private Contractors & Other Agencies,Purchased Care Services,08.01.2016,1900954540,448.00,Adiemus Care Limited - Murley House,11031316
Somerset County Council,Adult Social Care,New Codes,Tton LT Phys Support - FNC,Third Party Payments,Private Contractors & Other Agencies,Purchased Care Services,08.01.2016,1900954540,448.00,Adiemus Care Limited - Murley House,11031316
Somerset County Council,Adult Social Care,New Codes,Tton LT Phys Support - FNC,Third Party Payments,Private Contractors & Other Agencies,Purchased Care Services,08.01.2016,1900954540,448.00,Adiemus Care Limited - Murley House,11031316
Somerset County Council,Adult Social Care,New Codes,Tton LT Phys Support - FNC,Third Party Payments,Private Contractors & Other Agencies,Purchased Care Services,08.01.2016,1900954540,448.00,Adiemus Care Limited - Murley House,11031316
Somerset County Council,Adult Social Care,New Codes,Tton LT Phys Support - FNC,Third Party Payments,Private Contractors & Other Agencies,Purchased Care Services,08.01.2016,1900954540,448.00,Adiemus Care Limited - Murley House,11031316
Somerset County Council,Adult Social Care,New Codes,Tton LT Phys Support - FNC,Third Party Payments,Private Contractors & Other Agencies,Purchased Care Services,08.01.2016,1900954540,448.00,Adiemus Care Limited - Murley House,11031316
Somerset County Council,Adult Social Care,New Codes,Tton LT Phys Support - FNC,Third Party Payments,Private Contractors & Other Agencies,Purchased Care Services,08.01.2016,1900954540,448.00,Adiemus Care Limited - Murley House,11031316
Somerset County Council,Adult Social Care,New Codes,Tton LT Phys Support - FNC,Third Party Payments,Private Contractors & Other Agencies,Purchased Care Services,08.01.2016,1900954540,448.00,Adiemus Care Limited - Murley House,11031316
Somerset County Council,Adult Social Care,New Codes,Tton LT Phys Support - FNC,Third Party Payments,Private Contractors & Other Agencies,Purchased Care Services,08.01.2016,1900954540,448.00,Adiemus Care Limited - Murley House,11031316
Somerset County Council,Adult Social Care,New Codes,Tton LT Phys Support - FNC,Third Party Payments,Private Contractors & Other Agencies,Purchased Care Services,08.01.2016,1900954540,448.00,Adiemus Care Limited - Murley House,11031316
Somerset County Council,Adult Social Care,New Codes,Tton LT Phys Support - FNC,Third Party Payments,Private Contractors & Other Agencies,Purchased Care Services,08.01.2016,1900954540,448.00,Adiemus Care Limited - Murley House,11031316
Somerset County Council,Adult Social Care,New Codes,Tton LT Phys Support - FNC,Third Party Payments,Private Contractors & Other Agencies,Purchased Care Services,08.01.2016,1900954540,448.00,Adiemus Care Limited - Murley House,11031316
Somerset County Council,Adult Social Care,New Codes,Tton LT Phys Support - FNC,Third Party Payments,Private Contractors & Other Agencies,Purchased Care Services,08.01.2016,1900954540,448.00,Adiemus Care Limited - Murley House,11031316
Somerset County Council,Adult Social Care,New Codes,Tton LT Phys Support - FNC,Third Party Payments,Private Contractors & Other Agencies,Purchased Care Services,08.01.2016,1900954540,448.00,Adiemus Care Limited - Murley House,11031316
Somerset County Council,Adult Social Care,New Codes,Tton LT Phys Support - FNC,Third Party Payments,Private Contractors & Other Agencies,Purchased Care Services,08.01.2016,1900954540,448.00,Adiemus Care Limited - Murley House,11031316
Somerset County Council,Adult Social Care,New Codes,Tton LT Phys Support - FNC,Third Party Payments,Private Contractors & Other Agencies,Purchased Care Services,08.01.2016,1900954540,448.00,Adiemus Care Limited - Murley House,11031316
Somerset County Council,Adult Social Care,New Codes,Tton LT Phys Support - FNC,Third Party Payments,Private Contractors & Other Agencies,Purchased Care Services,08.01.2016,1900954540,448.00,Adiemus Care Limited - Murley House,11031316
Somerset County Council,Adult Social Care,New Codes,Tton LT Phys Support - FNC,Third Party Payments,Private Contractors & Other Agencies,Purchased Care Services,08.01.2016,1900954540,448.00,Adiemus Care Limited - Murley House,11031316
Somerset County Council,Adult Social Care,New Codes,Tton LT Phys Support - FNC,Third Party Payments,Private Contractors & Other Agencies,Purchased Care Services,08.01.2016,1900954540,448.00,Adiemus Care Limited - Murley House,11031316
Somerset County Council,Adult Social Care,New Codes,Tton LT Phys Support - FNC,Third Party Payments,Private Contractors & Other Agencies,Purchased Care Services,08.01.2016,1900954540,448.00,Adiemus Care Limited - Murley House,11031316
Somerset County Council,Adult Social Care,New Codes,Tton LT Phys Support - FNC,Third Party Payments,Private Contractors & Other Agencies,Purchased Care Services,08.01.2016,1900954540,-176.00,Adiemus Care Limited - Murley House,11031316
Somerset County Council,Adult Social Care,New Codes,Tton LT Phys Support - Nurs OPMH Spot,Third Party Payments,Private Contractors & Other Agencies,Purchased Care Services,08.01.2016,1900954540,2008.48,Adiemus Care Limited - Murley House,11031316
Somerset County Council,Adult Social Care,New Codes,Tton LT Phys Support - Nurs OPMH Spot,Third Party Payments,Private Contractors & Other Agencies,Purchased Care Services,08.01.2016,1900954540,-789.05,Adiemus Care Limited - Murley House,11031316
Somerset County Council,Adult Social Care,New Codes,Tton LT Phys Support - Nurs OPMH Spot,Third Party Payments,Private Contractors & Other Agencies,Purchased Care Services,08.01.2016,1900954540,2008.48,Adiemus Care Limited - Murley House,11031316
Somerset County Council,Adult Social Care,New Codes,Tton LT Phys Support - Nurs OPMH Spot,Third Party Payments,Private Contractors & Other Agencies,Purchased Care Services,08.01.2016,1900954540,2008.48,Adiemus Care Limited - Murley House,11031316
Somerset County Council,Adult Social Care,New Codes,Tton LT Phys Support - Nurs OPMH Spot,Third Party Payments,Private Contractors & Other Agencies,Purchased Care Services,08.01.2016,1900954540,2008.48,Adiemus Care Limited - Murley House,11031316
Somerset County Council,Adult Social Care,New Codes,Tton LT Phys Support - Nurs OPMH Spot,Third Party Payments,Private Contractors & Other Agencies,Purchased Care Services,08.01.2016,1900954540,2008.48,Adiemus Care Limited - Murley House,11031316
Somerset County Council,Adult Social Care,New Codes,Tton LT Phys Support - Nurs OPMH Spot,Third Party Payments,Private Contractors & Other Agencies,Purchased Care Services,08.01.2016,1900954540,2008.48,Adiemus Care Limited - Murley House,11031316
Somerset County Council,Adult Social Care,New Codes,Tton LT Phys Support - Nurs OPMH Spot,Third Party Payments,Private Contractors & Other Agencies,Purchased Care Services,08.01.2016,1900954540,2008.48,Adiemus Care Limited - Murley House,11031316
Somerset County Council,Adult Social Care,New Codes,Tton LT Phys Support - Nurs OPMH Spot,Third Party Payments,Private Contractors & Other Agencies,Purchased Care Services,08.01.2016,1900954540,2008.48,Adiemus Care Limited - Murley House,11031316
Somerset County Council,Adult Social Care,New Codes,Tton LT Phys Support - Nurs OPMH Spot,Third Party Payments,Private Contractors & Other Agencies,Purchased Care Services,08.01.2016,1900954540,2008.48,Adiemus Care Limited - Murley House,11031316
Somerset County Council,Adult Social Care,New Codes,Tton LT Phys Support - Nurs OPMH Spot,Third Party Payments,Private Contractors & Other Agencies,Purchased Care Services,08.01.2016,1900954540,1889.28,Adiemus Care Limited - Murley House,11031316
Somerset County Council,Adult Social Care,New Codes,Tton LT Phys Support - Nurs Spot,Third Party Payments,Private Contractors & Other Agencies,Purchased Care Services,08.01.2016,1900954540,1889.28,Adiemus Care Limited - Murley House,11031316
Somerset County Council,Adult Social Care,New Codes,Tton LT Phys Support - Res OPMH Spot,Third Party Payments,Private Contractors & Other Agencies,Purchased Care Services,08.01.2016,1900954540,1829.88,Adiemus Care Limited - Murley House,11031316
Somerset County Council,Adult Social Care,New Codes,Tton LT Phys Support - Res OPMH Spot,Third Party Payments,Private Contractors & Other Agencies,Purchased Care Services,08.01.2016,1900954540,1829.88,Adiemus Care Limited - Murley House,11031316
Somerset County Council,Adult Social Care,New Codes,Tton LT Phys Support - Res OPMH Spot,Third Party Payments,Private Contractors & Other Agencies,Purchased Care Services,08.01.2016,1900954540,1829.88,Adiemus Care Limited - Murley House,11031316
Somerset County Council,Adult Social Care,New Codes,Tton LT Phys Support - Res OPMH Spot,Third Party Payments,Private Contractors & Other Agencies,Purchased Care Services,08.01.2016,1900954540,1829.88,Adiemus Care Limited - Murley House,11031316
Somerset County Council,Adult Social Care,New Codes,Tton LT Phys Support - Res Spot,Third Party Payments,Private Contractors & Other Agencies,Purchased Care Services,08.01.2016,1900954540,1372.41,Adiemus Care Limited - Murley House,11031316
Somerset County Council,Adult Social Care,New Codes,Tton LT Phys Support - Res Spot,Third Party Payments,Private Contractors & Other Agencies,Purchased Care Services,08.01.2016,1900954540,1829.88,Adiemus Care Limited - Murley House,11031316
Somerset County Council,Adult Social Care,New Codes,Tton LT Phys Support - Res Spot,Third Party Payments,Private Contractors & Other Agencies,Purchased Care Services,08.01.2016,1900954540,-2614.11,Adiemus Care Limited - Murley House,11031316
Somerset County Council,Adult Social Care,New Codes,Tton LT Phys Support - Res Spot,Third Party Payments,Private Contractors & Other Agencies,Purchased Care Services,08.01.2016,1900954540,-65.35,Adiemus Care Limited - Murley House,11031316
Somerset County Council,Adult Social Care,New Codes,Tton LT Phys Support - Res Spot,Third Party Payments,Private Contractors & Other Agencies,Purchased Care Services,08.01.2016,1900954540,-65.35,Adiemus Care Limited - Murley House,11031316
Somerset County Council,Adult Social Care,New Codes,Tton LT Phys Support - Res Spot,Third Party Payments,Private Contractors & Other Agencies,Purchased Care Services,08.01.2016,1900954540,1829.88,Adiemus Care Limited - Murley House,11031316
Somerset County Council,Adult Social Care,New Codes,Tton LT Phys Support - Res Spot,Third Party Payments,Private Contractors & Other Agencies,Purchased Care Services,08.01.2016,1900954540,1829.88,Adiemus Care Limited - Murley House,11031316
Somerset County Council,Adult Social Care,New Codes,Tton LT Phys Support - Res Spot,Third Party Payments,Private Contractors & Other Agencies,Purchased Care Services,08.01.2016,1900954540,1829.88,Adiemus Care Limited - Murley House,11031316
Somerset County Council,Adult Social Care,New Codes,Tton LT Phys Support - Res Spot,Third Party Payments,Private Contractors & Other Agencies,Purchased Care Services,08.01.2016,1900954540,1829.88,Adiemus Care Limited - Murley House,11031316
Somerset County Council,Adult Social Care,New Codes,Tton LT Phys Support - Res Spot,Third Party Payments,Private Contractors & Other Agencies,Purchased Care Services,08.01.2016,1900954540,1829.88,Adiemus Care Limited - Murley House,11031316
Somerset County Council,Adult Social Care,New Codes,Tton LT Phys Support - Res Spot,Third Party Payments,Private Contractors & Other Agencies,Purchased Care Services,08.01.2016,1900954540,1829.88,Adiemus Care Limited - Murley House,11031316
Somerset County Council,Adult Social Care,New Codes,Tton LT Phys Support - Res Spot,Third Party Payments,Private Contractors & Other Agencies,Purchased Care Services,08.01.2016,1900954540,1829.88,Adiemus Care Limited - Murley House,11031316
Somerset County Council,Adult Social Care,New Codes,Tton LT Phys Support - Res Spot,Third Party Payments,Private Contractors & Other Agencies,Purchased Care Services,08.01.2016,1900954540,1829.88,Adiemus Care Limited - Murley House,11031316
Somerset County Council,Adult Social Care,New Codes,Tton LT Phys Support - Res Spot,Third Party Payments,Private Contractors & Other Agencies,Purchased Care Services,08.01.2016,1900954540,1859.12,Adiemus Care Limited - Murley House,11031316
Somerset County Council,Adult Social Care,New Codes,Tton ST Phys Support - Respite,Third Party Payments,Private Contractors & Other Agencies,Purchased Care Services,08.01.2016,1900954540,65.35,Adiemus Care Limited - Murley House,11031316
Somerset County Council,Adult Social Care,New Codes,Tton ST Phys Support - Respite,Third Party Payments,Private Contractors & Other Agencies,Purchased Care Services,08.01.2016,1900954540,2614.11,Adiemus Care Limited - Murley House,11031316
Somerset County Council,Adult Social Care,New Codes,Tton ST Phys Support - Respite,Third Party Payments,Private Contractors & Other Agencies,Purchased Care Services,08.01.2016,1900954540,-65.35,Adiemus Care Limited - Murley House,11031316
Somerset County Council,Adult Social Care,Older People,ASC TA OP FNC Somerset,Third Party Payments,Private Contractors & Other Agencies,Purchased Care Services,28.01.2016,1900962614,1792.00,AFFIRMATIVE CARE LTD,11007188
Somerset County Council,Adult Social Care,New Codes,SSom LT Phys Support - FNC,Third Party Payments,Private Contractors & Other Agencies,Purchased Care Services,08.01.2016,1900954520,208.00,AFFIRMATIVE CARE LTD,11007188
Somerset County Council,Adult Social Care,New Codes,SSom LT Phys Support - Nurs Spot,Third Party Payments,Private Contractors & Other Agencies,Purchased Care Services,08.01.2016,1900954520,877.17,AFFIRMATIVE CARE LTD,11007188
Somerset County Council,Adult Social Care,New Codes,Tton LT Phys Support - DPA Nursing,Third Party Payments,Private Contractors & Other Agencies,Purchased Care Services,08.01.2016,1900954520,2952.00,AFFIRMATIVE CARE LTD,11007188
Somerset County Council,Adult Social Care,New Codes,Tton LT Phys Support - FNC,Third Party Payments,Private Contractors & Other Agencies,Purchased Care Services,08.01.2016,1900954520,448.00,AFFIRMATIVE CARE LTD,11007188
Somerset County Council,Adult Social Care,New Codes,Tton LT Phys Support - FNC,Third Party Payments,Private Contractors & Other Agencies,Purchased Care Services,08.01.2016,1900954520,448.00,AFFIRMATIVE CARE LTD,11007188
Somerset County Council,Adult Social Care,New Codes,Tton LT Phys Support - FNC,Third Party Payments,Private Contractors & Other Agencies,Purchased Care Services,08.01.2016,1900954520,448.00,AFFIRMATIVE CARE LTD,11007188
Somerset County Council,Adult Social Care,New Codes,Tton LT Phys Support - FNC,Third Party Payments,Private Contractors & Other Agencies,Purchased Care Services,08.01.2016,1900954520,448.00,AFFIRMATIVE CARE LTD,11007188
Somerset County Council,Adult Social Care,New Codes,Tton LT Phys Support - FNC,Third Party Payments,Private Contractors & Other Agencies,Purchased Care Services,08.01.2016,1900954520,448.00,AFFIRMATIVE CARE LTD,11007188
Somerset County Council,Adult Social Care,New Codes,Tton LT Phys Support - FNC,Third Party Payments,Private Contractors & Other Agencies,Purchased Care Services,08.01.2016,1900954520,448.00,AFFIRMATIVE CARE LTD,11007188
Somerset County Council,Adult Social Care,New Codes,Tton LT Phys Support - FNC,Third Party Payments,Private Contractors & Other Agencies,Purchased Care Services,08.01.2016,1900954520,448.00,AFFIRMATIVE CARE LTD,11007188
Somerset County Council,Adult Social Care,New Codes,Tton LT Phys Support - FNC,Third Party Payments,Private Contractors & Other Agencies,Purchased Care Services,08.01.2016,1900954520,448.00,AFFIRMATIVE CARE LTD,11007188
Somerset County Council,Adult Social Care,New Codes,Tton LT Phys Support - FNC,Third Party Payments,Private Contractors & Other Agencies,Purchased Care Services,08.01.2016,1900954520,448.00,AFFIRMATIVE CARE LTD,11007188
Somerset County Council,Adult Social Care,New Codes,Tton LT Phys Support - FNC,Third Party Payments,Private Contractors & Other Agencies,Purchased Care Services,08.01.2016,1900954520,448.00,AFFIRMATIVE CARE LTD,11007188
Somerset County Council,Adult Social Care,New Codes,Tton LT Phys Support - FNC,Third Party Payments,Private Contractors & Other Agencies,Purchased Care Services,08.01.2016,1900954520,448.00,AFFIRMATIVE CARE LTD,11007188
Somerset County Council,Adult Social Care,New Codes,Tton LT Phys Support - FNC,Third Party Payments,Private Contractors & Other Agencies,Purchased Care Services,08.01.2016,1900954520,448.00,AFFIRMATIVE CARE LTD,11007188
Somerset County Council,Adult Social Care,New Codes,Tton LT Phys Support - FNC,Third Party Payments,Private Contractors & Other Agencies,Purchased Care Services,08.01.2016,1900954520,448.00,AFFIRMATIVE CARE LTD,11007188
Somerset County Council,Adult Social Care,New Codes,Tton LT Phys Support - FNC,Third Party Payments,Private Contractors & Other Agencies,Purchased Care Services,08.01.2016,1900954520,448.00,AFFIRMATIVE CARE LTD,11007188
Somerset County Council,Adult Social Care,New Codes,Tton LT Phys Support - FNC,Third Party Payments,Private Contractors & Other Agencies,Purchased Care Services,08.01.2016,1900954520,16.00,AFFIRMATIVE CARE LTD,11007188
Somerset County Council,Adult Social Care,New Codes,Tton LT Phys Support - FNC,Third Party Payments,Private Contractors & Other Agencies,Purchased Care Services,08.01.2016,1900954520,448.00,AFFIRMATIVE CARE LTD,11007188
Somerset County Council,Adult Social Care,New Codes,Tton LT Phys Support - FNC,Third Party Payments,Private Contractors & Other Agencies,Purchased Care Services,08.01.2016,1900954520,448.00,AFFIRMATIVE CARE LTD,11007188
Somerset County Council,Adult Social Care,New Codes,Tton LT Phys Support - FNC,Third Party Payments,Private Contractors & Other Agencies,Purchased Care Services,08.01.2016,1900954520,448.00,AFFIRMATIVE CARE LTD,11007188
Somerset County Council,Adult Social Care,New Codes,Tton LT Phys Support - FNC,Third Party Payments,Private Contractors & Other Agencies,Purchased Care Services,08.01.2016,1900954520,448.00,AFFIRMATIVE CARE LTD,11007188
Somerset County Council,Adult Social Care,New Codes,Tton LT Phys Support - FNC,Third Party Payments,Private Contractors & Other Agencies,Purchased Care Services,08.01.2016,1900954520,448.00,AFFIRMATIVE CARE LTD,11007188
Somerset County Council,Adult Social Care,New Codes,Tton LT Phys Support - FNC,Third Party Payments,Private Contractors & Other Agencies,Purchased Care Services,08.01.2016,1900954520,448.00,AFFIRMATIVE CARE LTD,11007188
Somerset County Council,Adult Social Care,New Codes,Tton LT Phys Support - FNC,Third Party Payments,Private Contractors & Other Agencies,Purchased Care Services,08.01.2016,1900954520,448.00,AFFIRMATIVE CARE LTD,11007188
Somerset County Council,Adult Social Care,New Codes,Tton LT Phys Support - FNC,Third Party Payments,Private Contractors & Other Agencies,Purchased Care Services,08.01.2016,1900954520,448.00,AFFIRMATIVE CARE LTD,11007188
Somerset County Council,Adult Social Care,New Codes,Tton LT Phys Support - FNC,Third Party Payments,Private Contractors & Other Agencies,Purchased Care Services,08.01.2016,1900954520,448.00,AFFIRMATIVE CARE LTD,11007188
Somerset County Council,Adult Social Care,New Codes,Tton LT Phys Support - FNC,Third Party Payments,Private Contractors & Other Agencies,Purchased Care Services,08.01.2016,1900954520,448.00,AFFIRMATIVE CARE LTD,11007188
Somerset County Council,Adult Social Care,New Codes,Tton LT Phys Support - FNC,Third Party Payments,Private Contractors & Other Agencies,Purchased Care Services,08.01.2016,1900954520,448.00,AFFIRMATIVE CARE LTD,11007188
Somerset County Council,Adult Social Care,New Codes,Tton LT Phys Support - FNC,Third Party Payments,Private Contractors & Other Agencies,Purchased Care Services,08.01.2016,1900954520,448.00,AFFIRMATIVE CARE LTD,11007188
Somerset County Council,Adult Social Care,New Codes,Tton LT Phys Support - FNC,Third Party Payments,Private Contractors & Other Agencies,Purchased Care Services,08.01.2016,1900954520,448.00,AFFIRMATIVE CARE LTD,11007188
Somerset County Council,Adult Social Care,New Codes,Tton LT Phys Support - FNC,Third Party Payments,Private Contractors & Other Agencies,Purchased Care Services,08.01.2016,1900954520,448.00,AFFIRMATIVE CARE LTD,11007188
Somerset County Council,Adult Social Care,New Codes,Tton LT Phys Support - Nurs Block,Third Party Payments,Private Contractors & Other Agencies,Purchased Care Services,28.01.2016,1900962614,7557.12,AFFIRMATIVE CARE LTD,11007188
Somerset County Council,Adult Social Care,New Codes,Tton LT Phys Support - Nurs Spot,Third Party Payments,Private Contractors & Other Agencies,Purchased Care Services,08.01.2016,1900954520,36.66,AFFIRMATIVE CARE LTD,11007188
Somerset County Council,Adult Social Care,New Codes,Tton LT Phys Support - Nurs Spot,Third Party Payments,Private Contractors & Other Agencies,Purchased Care Services,08.01.2016,1900954520,183.31,AFFIRMATIVE CARE LTD,11007188
Somerset County Council,Adult Social Care,New Codes,Tton LT Phys Support - Nurs Spot,Third Party Payments,Private Contractors & Other Agencies,Purchased Care Services,08.01.2016,1900954520,-183.31,AFFIRMATIVE CARE LTD,11007188
Somerset County Council,Adult Social Care,New Codes,Tton LT Phys Support - Nurs Spot,Third Party Payments,Private Contractors & Other Agencies,Purchased Care Services,08.01.2016,1900954520,-67.47,AFFIRMATIVE CARE LTD,11007188
Somerset County Council,Adult Social Care,New Codes,Tton LT Phys Support - Nurs Spot,Third Party Payments,Private Contractors & Other Agencies,Purchased Care Services,08.01.2016,1900954520,-8164.39,AFFIRMATIVE CARE LTD,11007188
Somerset County Council,Adult Social Care,New Codes,Tton LT Phys Support - Nurs Spot,Third Party Payments,Private Contractors & Other Agencies,Purchased Care Services,08.01.2016,1900954520,3758.99,AFFIRMATIVE CARE LTD,11007188
Somerset County Council,Adult Social Care,New Codes,Tton LT Phys Support - Nurs Spot,Third Party Payments,Private Contractors & Other Agencies,Purchased Care Services,08.01.2016,1900954520,2552.00,AFFIRMATIVE CARE LTD,11007188
Somerset County Council,Adult Social Care,New Codes,Tton LT Phys Support - Nurs Spot,Third Party Payments,Private Contractors & Other Agencies,Purchased Care Services,08.01.2016,1900954520,1889.28,AFFIRMATIVE CARE LTD,11007188
Somerset County Council,Adult Social Care,New Codes,Tton LT Phys Support - Nurs Spot,Third Party Payments,Private Contractors & Other Agencies,Purchased Care Services,08.01.2016,1900954520,1889.28,AFFIRMATIVE CARE LTD,11007188
Somerset County Council,Adult Social Care,New Codes,Tton LT Phys Support - Nurs Spot,Third Party Payments,Private Contractors & Other Agencies,Purchased Care Services,08.01.2016,1900954520,1889.28,AFFIRMATIVE CARE LTD,11007188
Somerset County Council,Adult Social Care,New Codes,Tton LT Phys Support - Nurs Spot,Third Party Payments,Private Contractors & Other Agencies,Purchased Care Services,08.01.2016,1900954520,1889.28,AFFIRMATIVE CARE LTD,11007188
Somerset County Council,Adult Social Care,New Codes,Tton LT Phys Support - Nurs Spot,Third Party Payments,Private Contractors & Other Agencies,Purchased Care Services,08.01.2016,1900954520,1889.28,AFFIRMATIVE CARE LTD,11007188
Somerset County Council,Adult Social Care,New Codes,Tton LT Phys Support - Nurs Spot,Third Party Payments,Private Contractors & Other Agencies,Purchased Care Services,08.01.2016,1900954520,1889.28,AFFIRMATIVE CARE LTD,11007188
Somerset County Council,Adult Social Care,Learning Disabilities,LD-PUR-CH-Care at Home-SDW,Third Party Payments,Private Contractors & Other Agencies,Purchased Services - Pers Care,04.01.2016,5100750931,2108.00,AGENCY ASSISTANCE,11020812
Somerset County Council,Adult Social Care,Learning Disabilities,LD-PUR-CH-Care at Home-SDW,Third Party Payments,Private Contractors & Other Agencies,Purchased Services - Pers Care,04.01.2016,5100751570,2108.00,AGENCY ASSISTANCE,11020812
Somerset County Council,Adult Social Care,Older People,ASC SE OP EMI Nursing Block,Third Party Payments,Private Contractors & Other Agencies,Purchased Care Services,28.01.2016,1900962631,11335.68,ALMONDSBURY CARE LTD,11013215
Somerset County Council,Adult Social Care,Older People,ASC SE OP FNC Somerset,Third Party Payments,Private Contractors & Other Agencies,Purchased Care Services,28.01.2016,1900962642,4032.00,ALMONDSBURY CARE LTD,11007185
Somerset County Council,Adult Social Care,Older People,ASC SE OP FNC Somerset,Third Party Payments,Private Contractors & Other Agencies,Purchased Care Services,07.01.2016,1900953210,-96.00,ALMONDSBURY CARE LTD,11013215
Somerset County Council,Adult Social Care,Older People,ASC SE OP FNC Somerset,Third Party Payments,Private Contractors & Other Agencies,Purchased Care Services,28.01.2016,1900962631,2688.00,ALMONDSBURY CARE LTD,11013215
Somerset County Council,Adult Social Care,Older People,ASC SS OP FNC Somerset,Third Party Payments,Private Contractors & Other Agencies,Purchased Care Services,26.01.2016,1900961420,4032.00,Almondsbury Care Ltd,11020775
Somerset County Council,Adult Social Care,New Codes,Sdg LT Mem Support - FNC,Third Party Payments,Private Contractors & Other Agencies,Purchased Care Services,07.01.2016,1900953210,448.00,ALMONDSBURY CARE LTD,11013215
Somerset County Council,Adult Social Care,New Codes,Sdg LT Mem Support - Nurs OPMH Spot,Third Party Payments,Private Contractors & Other Agencies,Purchased Care Services,07.01.2016,1900953210,9029.28,ALMONDSBURY CARE LTD,11013215
Somerset County Council,Adult Social Care,New Codes,Sdg LT Phys Support - DPA Nursing,Third Party Payments,Private Contractors & Other Agencies,Purchased Care Services,07.01.2016,1900953195,3340.00,ALMONDSBURY CARE LTD,11007185
Somerset County Council,Adult Social Care,New Codes,Sdg LT Phys Support - DPA Nursing,Third Party Payments,Private Contractors & Other Agencies,Purchased Care Services,07.01.2016,1900953195,3340.00,ALMONDSBURY CARE LTD,11007185
Somerset County Council,Adult Social Care,New Codes,Sdg LT Phys Support - DPA Nursing,Third Party Payments,Private Contractors & Other Agencies,Purchased Care Services,07.01.2016,1900953195,3340.00,ALMONDSBURY CARE LTD,11007185
Somerset County Council,Adult Social Care,New Codes,Sdg LT Phys Support - FNC,Third Party Payments,Private Contractors & Other Agencies,Purchased Care Services,07.01.2016,1900953195,400.00,ALMONDSBURY CARE LTD,11007185
Somerset County Council,Adult Social Care,New Codes,Sdg LT Phys Support - FNC,Third Party Payments,Private Contractors & Other Agencies,Purchased Care Services,07.01.2016,1900953195,448.00,ALMONDSBURY CARE LTD,11007185
Somerset County Council,Adult Social Care,New Codes,Sdg LT Phys Support - FNC,Third Party Payments,Private Contractors & Other Agencies,Purchased Care Services,07.01.2016,1900953195,80.00,ALMONDSBURY CARE LTD,11007185
Somerset County Council,Adult Social Care,New Codes,Sdg LT Phys Support - FNC,Third Party Payments,Private Contractors & Other Agencies,Purchased Care Services,07.01.2016,1900953195,80.00,ALMONDSBURY CARE LTD,11007185
Somerset County Council,Adult Social Care,New Codes,Sdg LT Phys Support - FNC,Third Party Payments,Private Contractors & Other Agencies,Purchased Care Services,07.01.2016,1900953195,448.00,ALMONDSBURY CARE LTD,11007185
Somerset County Council,Adult Social Care,New Codes,Sdg LT Phys Support - FNC,Third Party Payments,Private Contractors & Other Agencies,Purchased Care Services,07.01.2016,1900953195,448.00,ALMONDSBURY CARE LTD,11007185
Somerset County Council,Adult Social Care,New Codes,Sdg LT Phys Support - FNC,Third Party Payments,Private Contractors & Other Agencies,Purchased Care Services,07.01.2016,1900953195,448.00,ALMONDSBURY CARE LTD,11007185
Somerset County Council,Adult Social Care,New Codes,Sdg LT Phys Support - FNC,Third Party Payments,Private Contractors & Other Agencies,Purchased Care Services,07.01.2016,1900953195,448.00,ALMONDSBURY CARE LTD,11007185
Somerset County Council,Adult Social Care,New Codes,Sdg LT Phys Support - FNC,Third Party Payments,Private Contractors & Other Agencies,Purchased Care Services,07.01.2016,1900953195,448.00,ALMONDSBURY CARE LTD,11007185
Somerset County Council,Adult Social Care,New Codes,Sdg LT Phys Support - FNC,Third Party Payments,Private Contractors & Other Agencies,Purchased Care Services,07.01.2016,1900953195,64.00,ALMONDSBURY CARE LTD,11007185
Somerset County Council,Adult Social Care,New Codes,Sdg LT Phys Support - FNC,Third Party Payments,Private Contractors & Other Agencies,Purchased Care Services,07.01.2016,1900953195,-48.00,ALMONDSBURY CARE LTD,11007185
Somerset County Council,Adult Social Care,New Codes,Sdg LT Phys Support - FNC,Third Party Payments,Private Contractors & Other Agencies,Purchased Care Services,07.01.2016,1900953195,448.00,ALMONDSBURY CARE LTD,11007185
Somerset County Council,Adult Social Care,New Codes,Sdg LT Phys Support - FNC,Third Party Payments,Private Contractors & Other Agencies,Purchased Care Services,07.01.2016,1900953195,448.00,ALMONDSBURY CARE LTD,11007185
Somerset County Council,Adult Social Care,New Codes,Sdg LT Phys Support - FNC,Third Party Payments,Private Contractors & Other Agencies,Purchased Care Services,07.01.2016,1900953195,448.00,ALMONDSBURY CARE LTD,11007185
Somerset County Council,Adult Social Care,New Codes,Sdg LT Phys Support - FNC,Third Party Payments,Private Contractors & Other Agencies,Purchased Care Services,07.01.2016,1900953195,448.00,ALMONDSBURY CARE LTD,11007185
Somerset County Council,Adult Social Care,New Codes,Sdg LT Phys Support - FNC,Third Party Payments,Private Contractors & Other Agencies,Purchased Care Services,07.01.2016,1900953195,448.00,ALMONDSBURY CARE LTD,11007185
Somerset County Council,Adult Social Care,New Codes,Sdg LT Phys Support - FNC,Third Party Payments,Private Contractors & Other Agencies,Purchased Care Services,07.01.2016,1900953195,448.00,ALMONDSBURY CARE LTD,11007185
Somerset County Council,Adult Social Care,New Codes,Sdg LT Phys Support - FNC,Third Party Payments,Private Contractors & Other Agencies,Purchased Care Services,07.01.2016,1900953195,448.00,ALMONDSBURY CARE LTD,11007185
Somerset County Council,Adult Social Care,New Codes,Sdg LT Phys Support - FNC,Third Party Payments,Private Contractors & Other Agencies,Purchased Care Services,07.01.2016,1900953195,448.00,ALMONDSBURY CARE LTD,11007185
Somerset County Council,Adult Social Care,New Codes,Sdg LT Phys Support - FNC,Third Party Payments,Private Contractors & Other Agencies,Purchased Care Services,07.01.2016,1900953195,448.00,ALMONDSBURY CARE LTD,11007185
Somerset County Council,Adult Social Care,New Codes,Sdg LT Phys Support - FNC,Third Party Payments,Private Contractors & Other Agencies,Purchased Care Services,07.01.2016,1900953195,448.00,ALMONDSBURY CARE LTD,11007185
Somerset County Council,Adult Social Care,New Codes,Sdg LT Phys Support - FNC,Third Party Payments,Private Contractors & Other Agencies,Purchased Care Services,07.01.2016,1900953210,448.00,ALMONDSBURY CARE LTD,11013215
Somerset County Council,Adult Social Care,New Codes,Sdg LT Phys Support - FNC,Third Party Payments,Private Contractors & Other Agencies,Purchased Care Services,07.01.2016,1900953210,336.00,ALMONDSBURY CARE LTD,11013215
Somerset County Council,Adult Social Care,New Codes,Sdg LT Phys Support - FNC,Third Party Payments,Private Contractors & Other Agencies,Purchased Care Services,07.01.2016,1900953210,80.00,ALMONDSBURY CARE LTD,11013215
Somerset County Council,Adult Social Care,New Codes,Sdg LT Phys Support - FNC,Third Party Payments,Private Contractors & Other Agencies,Purchased Care Services,07.01.2016,1900953210,80.00,ALMONDSBURY CARE LTD,11013215
Somerset County Council,Adult Social Care,New Codes,Sdg LT Phys Support - FNC,Third Party Payments,Private Contractors & Other Agencies,Purchased Care Services,07.01.2016,1900953210,-80.00,ALMONDSBURY CARE LTD,11013215
Somerset County Council,Adult Social Care,New Codes,Sdg LT Phys Support - FNC,Third Party Payments,Private Contractors & Other Agencies,Purchased Care Services,07.01.2016,1900953210,-144.00,ALMONDSBURY CARE LTD,11013215
Somerset County Council,Adult Social Care,New Codes,Sdg LT Phys Support - FNC,Third Party Payments,Private Contractors & Other Agencies,Purchased Care Services,07.01.2016,1900953210,448.00,ALMONDSBURY CARE LTD,11013215
Somerset County Council,Adult Social Care,New Codes,Sdg LT Phys Support - FNC,Third Party Payments,Private Contractors & Other Agencies,Purchased Care Services,07.01.2016,1900953210,448.00,ALMONDSBURY CARE LTD,11013215
Somerset County Council,Adult Social Care,New Codes,Sdg LT Phys Support - FNC,Third Party Payments,Private Contractors & Other Agencies,Purchased Care Services,07.01.2016,1900953210,448.00,ALMONDSBURY CARE LTD,11013215
Somerset County Council,Adult Social Care,New Codes,Sdg LT Phys Support - FNC,Third Party Payments,Private Contractors & Other Agencies,Purchased Care Services,07.01.2016,1900953210,448.00,ALMONDSBURY CARE LTD,11013215
Somerset County Council,Adult Social Care,New Codes,Sdg LT Phys Support - FNC,Third Party Payments,Private Contractors & Other Agencies,Purchased Care Services,07.01.2016,1900953210,448.00,ALMONDSBURY CARE LTD,11013215
Somerset County Council,Adult Social Care,New Codes,Sdg LT Phys Support - FNC,Third Party Payments,Private Contractors & Other Agencies,Purchased Care Services,07.01.2016,1900953210,448.00,ALMONDSBURY CARE LTD,11013215
Somerset County Council,Adult Social Care,New Codes,Sdg LT Phys Support - FNC,Third Party Payments,Private Contractors & Other Agencies,Purchased Care Services,07.01.2016,1900953210,1024.00,ALMONDSBURY CARE LTD,11013215
Somerset County Council,Adult Social Care,New Codes,Sdg LT Phys Support - Nurs Block,Third Party Payments,Private Contractors & Other Agencies,Purchased Care Services,28.01.2016,1900962642,17003.52,ALMONDSBURY CARE LTD,11007185
Somerset County Council,Adult Social Care,New Codes,Sdg LT Phys Support - Nurs OPMH Spot,Third Party Payments,Private Contractors & Other Agencies,Purchased Care Services,07.01.2016,1900953210,204.34,ALMONDSBURY CARE LTD,11013215
Somerset County Council,Adult Social Care,New Codes,Sdg LT Phys Support - Nurs OPMH Spot,Third Party Payments,Private Contractors & Other Agencies,Purchased Care Services,07.01.2016,1900953210,67.47,ALMONDSBURY CARE LTD,11013215
Somerset County Council,Adult Social Care,New Codes,Sdg LT Phys Support - Nurs OPMH Spot,Third Party Payments,Private Contractors & Other Agencies,Purchased Care Services,07.01.2016,1900953210,-472.32,ALMONDSBURY CARE LTD,11013215
Somerset County Council,Adult Social Care,New Codes,Sdg LT Phys Support - Nurs OPMH Spot,Third Party Payments,Private Contractors & Other Agencies,Purchased Care Services,07.01.2016,1900953210,337.37,ALMONDSBURY CARE LTD,11013215
Somerset County Council,Adult Social Care,New Codes,Sdg LT Phys Support - Nurs OPMH Spot,Third Party Payments,Private Contractors & Other Agencies,Purchased Care Services,07.01.2016,1900953210,-1087.37,ALMONDSBURY CARE LTD,11013215
Somerset County Council,Adult Social Care,New Codes,Sdg LT Phys Support - Nurs OPMH Spot,Third Party Payments,Private Contractors & Other Agencies,Purchased Care Services,07.01.2016,1900953210,-1957.27,ALMONDSBURY CARE LTD,11013215
Somerset County Council,Adult Social Care,New Codes,Sdg LT Phys Support - Nurs OPMH Spot,Third Party Payments,Private Contractors & Other Agencies,Purchased Care Services,07.01.2016,1900953210,1889.28,ALMONDSBURY CARE LTD,11013215
Somerset County Council,Adult Social Care,New Codes,Sdg LT Phys Support - Nurs OPMH Spot,Third Party Payments,Private Contractors & Other Agencies,Purchased Care Services,07.01.2016,1900953210,1889.28,ALMONDSBURY CARE LTD,11013215
Somerset County Council,Adult Social Care,New Codes,Sdg LT Phys Support - Nurs OPMH Spot,Third Party Payments,Private Contractors & Other Agencies,Purchased Care Services,07.01.2016,1900953210,1416.96,ALMONDSBURY CARE LTD,11013215
Somerset County Council,Adult Social Care,New Codes,Sdg LT Phys Support - Nurs OPMH Spot,Third Party Payments,Private Contractors & Other Agencies,Purchased Care Services,07.01.2016,1900953210,1889.28,ALMONDSBURY CARE LTD,11013215
Somerset County Council,Adult Social Care,New Codes,Sdg LT Phys Support - Nurs OPMH Spot,Third Party Payments,Private Contractors & Other Agencies,Purchased Care Services,07.01.2016,1900953210,1739.79,ALMONDSBURY CARE LTD,11013215
Somerset County Council,Adult Social Care,New Codes,Sdg LT Phys Support - Nurs OPMH Spot,Third Party Payments,Private Contractors & Other Agencies,Purchased Care Services,07.01.2016,1900953210,2008.48,ALMONDSBURY CARE LTD,11013215
Somerset County Council,Adult Social Care,New Codes,Sdg LT Phys Support - Nurs OPMH Spot,Third Party Payments,Private Contractors & Other Agencies,Purchased Care Services,07.01.2016,1900953210,4250.88,ALMONDSBURY CARE LTD,11013215
Somerset County Council,Adult Social Care,New Codes,Sdg LT Phys Support - Nurs OPMH Spot,Third Party Payments,Private Contractors & Other Agencies,Purchased Care Services,07.01.2016,1900953210,6089.28,ALMONDSBURY CARE LTD,11013215
Somerset County Council,Adult Social Care,New Codes,Sdg LT Phys Support - Nurs Spot,Third Party Payments,Private Contractors & Other Agencies,Purchased Care Services,07.01.2016,1900953195,180.37,ALMONDSBURY CARE LTD,11007185
Somerset County Council,Adult Social Care,New Codes,Sdg LT Phys Support - Nurs Spot,Third Party Payments,Private Contractors & Other Agencies,Purchased Care Services,07.01.2016,1900953195,245.01,ALMONDSBURY CARE LTD,11007185
Somerset County Council,Adult Social Care,New Codes,Sdg LT Phys Support - Nurs Spot,Third Party Payments,Private Contractors & Other Agencies,Purchased Care Services,07.01.2016,1900953195,-337.37,ALMONDSBURY CARE LTD,11007185
Somerset County Council,Adult Social Care,New Codes,Sdg LT Phys Support - Nurs Spot,Third Party Payments,Private Contractors & Other Agencies,Purchased Care Services,07.01.2016,1900953195,216.40,ALMONDSBURY CARE LTD,11007185
Somerset County Council,Adult Social Care,New Codes,Sdg LT Phys Support - Nurs Spot,Third Party Payments,Private Contractors & Other Agencies,Purchased Care Services,07.01.2016,1900953195,-337.37,ALMONDSBURY CARE LTD,11007185
Somerset County Council,Adult Social Care,New Codes,Sdg LT Phys Support - Nurs Spot,Third Party Payments,Private Contractors & Other Agencies,Purchased Care Services,07.01.2016,1900953195,-202.42,ALMONDSBURY CARE LTD,11007185
Somerset County Council,Adult Social Care,New Codes,Sdg LT Phys Support - Nurs Spot,Third Party Payments,Private Contractors & Other Agencies,Purchased Care Services,07.01.2016,1900953195,-809.69,ALMONDSBURY CARE LTD,11007185
Somerset County Council,Adult Social Care,New Codes,Sdg LT Phys Support - Nurs Spot,Third Party Payments,Private Contractors & Other Agencies,Purchased Care Services,07.01.2016,1900953195,1686.86,ALMONDSBURY CARE LTD,11007185
Somerset County Council,Adult Social Care,New Codes,Sdg LT Phys Support - Nurs Spot,Third Party Payments,Private Contractors & Other Agencies,Purchased Care Services,07.01.2016,1900953195,1889.28,ALMONDSBURY CARE LTD,11007185
Somerset County Council,Adult Social Care,New Codes,Sdg LT Phys Support - Nurs Spot,Third Party Payments,Private Contractors & Other Agencies,Purchased Care Services,07.01.2016,1900953195,1889.28,ALMONDSBURY CARE LTD,11007185
Somerset County Council,Adult Social Care,New Codes,Sdg LT Phys Support - Nurs Spot,Third Party Payments,Private Contractors & Other Agencies,Purchased Care Services,07.01.2016,1900953195,1889.28,ALMONDSBURY CARE LTD,11007185
Somerset County Council,Adult Social Care,New Codes,Sdg LT Phys Support - Nurs Spot,Third Party Payments,Private Contractors & Other Agencies,Purchased Care Services,07.01.2016,1900953195,1889.28,ALMONDSBURY CARE LTD,11007185
Somerset County Council,Adult Social Care,New Codes,Sdg LT Phys Support - Nurs Spot,Third Party Payments,Private Contractors & Other Agencies,Purchased Care Services,07.01.2016,1900953195,1889.28,ALMONDSBURY CARE LTD,11007185
Somerset County Council,Adult Social Care,New Codes,Sdg LT Phys Support - Nurs Spot,Third Party Payments,Private Contractors & Other Agencies,Purchased Care Services,07.01.2016,1900953195,1889.28,ALMONDSBURY CARE LTD,11007185
Somerset County Council,Adult Social Care,New Codes,Sdg LT Phys Support - Res Spot,Third Party Payments,Private Contractors & Other Agencies,Purchased Care Services,07.01.2016,1900953195,1829.88,ALMONDSBURY CARE LTD,11007185
Somerset County Council,Adult Social Care,New Codes,Sdg ST Phys Support - Respite,Third Party Payments,Private Contractors & Other Agencies,Purchased Care Services,07.01.2016,1900953210,67.47,ALMONDSBURY CARE LTD,11013215
Somerset County Council,Adult Social Care,New Codes,SSom LT Phys Support - DPA Nursing,Third Party Payments,Private Contractors & Other Agencies,Purchased Care Services,07.01.2016,1900953050,1889.28,Almondsbury Care Ltd,11020775
Somerset County Council,Adult Social Care,New Codes,SSom LT Phys Support - DPA Nursing,Third Party Payments,Private Contractors & Other Agencies,Purchased Care Services,07.01.2016,1900953050,3340.00,Almondsbury Care Ltd,11020775
Somerset County Council,Adult Social Care,New Codes,SSom LT Phys Support - FNC,Third Party Payments,Private Contractors & Other Agencies,Purchased Care Services,07.01.2016,1900953050,48.00,Almondsbury Care Ltd,11020775
Somerset County Council,Adult Social Care,New Codes,SSom LT Phys Support - FNC,Third Party Payments,Private Contractors & Other Agencies,Purchased Care Services,07.01.2016,1900953050,448.00,Almondsbury Care Ltd,11020775
Somerset County Council,Adult Social Care,New Codes,SSom LT Phys Support - FNC,Third Party Payments,Private Contractors & Other Agencies,Purchased Care Services,07.01.2016,1900953050,448.00,Almondsbury Care Ltd,11020775
Somerset County Council,Adult Social Care,New Codes,SSom LT Phys Support - FNC,Third Party Payments,Private Contractors & Other Agencies,Purchased Care Services,07.01.2016,1900953050,448.00,Almondsbury Care Ltd,11020775
Somerset County Council,Adult Social Care,New Codes,SSom LT Phys Support - FNC,Third Party Payments,Private Contractors & Other Agencies,Purchased Care Services,07.01.2016,1900953050,448.00,Almondsbury Care Ltd,11020775
Somerset County Council,Adult Social Care,New Codes,SSom LT Phys Support - FNC,Third Party Payments,Private Contractors & Other Agencies,Purchased Care Services,07.01.2016,1900953050,448.00,Almondsbury Care Ltd,11020775
Somerset County Council,Adult Social Care,New Codes,SSom LT Phys Support - FNC,Third Party Payments,Private Contractors & Other Agencies,Purchased Care Services,07.01.2016,1900953050,448.00,Almondsbury Care Ltd,11020775
Somerset County Council,Adult Social Care,New Codes,SSom LT Phys Support - FNC,Third Party Payments,Private Contractors & Other Agencies,Purchased Care Services,07.01.2016,1900953050,448.00,Almondsbury Care Ltd,11020775
Somerset County Council,Adult Social Care,New Codes,SSom LT Phys Support - FNC,Third Party Payments,Private Contractors & Other Agencies,Purchased Care Services,07.01.2016,1900953050,448.00,Almondsbury Care Ltd,11020775
Somerset County Council,Adult Social Care,New Codes,SSom LT Phys Support - FNC,Third Party Payments,Private Contractors & Other Agencies,Purchased Care Services,07.01.2016,1900953050,448.00,Almondsbury Care Ltd,11020775
Somerset County Council,Adult Social Care,New Codes,SSom LT Phys Support - FNC,Third Party Payments,Private Contractors & Other Agencies,Purchased Care Services,07.01.2016,1900953050,448.00,Almondsbury Care Ltd,11020775
Somerset County Council,Adult Social Care,New Codes,SSom LT Phys Support - FNC,Third Party Payments,Private Contractors & Other Agencies,Purchased Care Services,07.01.2016,1900953050,448.00,Almondsbury Care Ltd,11020775
Somerset County Council,Adult Social Care,New Codes,SSom LT Phys Support - FNC,Third Party Payments,Private Contractors & Other Agencies,Purchased Care Services,07.01.2016,1900953050,448.00,Almondsbury Care Ltd,11020775
Somerset County Council,Adult Social Care,New Codes,SSom LT Phys Support - FNC,Third Party Payments,Private Contractors & Other Agencies,Purchased Care Services,07.01.2016,1900953050,448.00,Almondsbury Care Ltd,11020775
Somerset County Council,Adult Social Care,New Codes,SSom LT Phys Support - FNC,Third Party Payments,Private Contractors & Other Agencies,Purchased Care Services,07.01.2016,1900953050,448.00,Almondsbury Care Ltd,11020775
Somerset County Council,Adult Social Care,New Codes,SSom LT Phys Support - FNC,Third Party Payments,Private Contractors & Other Agencies,Purchased Care Services,07.01.2016,1900953050,448.00,Almondsbury Care Ltd,11020775
Somerset County Council,Adult Social Care,New Codes,SSom LT Phys Support - FNC,Third Party Payments,Private Contractors & Other Agencies,Purchased Care Services,07.01.2016,1900953050,448.00,Almondsbury Care Ltd,11020775
Somerset County Council,Adult Social Care,New Codes,SSom LT Phys Support - FNC,Third Party Payments,Private Contractors & Other Agencies,Purchased Care Services,07.01.2016,1900953050,816.00,Almondsbury Care Ltd,11020775
Somerset County Council,Adult Social Care,New Codes,SSom LT Phys Support - Nurs Block,Third Party Payments,Private Contractors & Other Agencies,Purchased Care Services,26.01.2016,1900961420,17003.52,Almondsbury Care Ltd,11020775
Somerset County Council,Adult Social Care,New Codes,SSom LT Phys Support - Nurs Spot,Third Party Payments,Private Contractors & Other Agencies,Purchased Care Services,07.01.2016,1900953050,114.29,Almondsbury Care Ltd,11020775
Somerset County Council,Adult Social Care,New Codes,SSom LT Phys Support - Nurs Spot,Third Party Payments,Private Contractors & Other Agencies,Purchased Care Services,07.01.2016,1900953050,1889.28,Almondsbury Care Ltd,11020775
Somerset County Council,Adult Social Care,New Codes,SSom LT Phys Support - Nurs Spot,Third Party Payments,Private Contractors & Other Agencies,Purchased Care Services,07.01.2016,1900953050,1889.28,Almondsbury Care Ltd,11020775
Somerset County Council,Adult Social Care,New Codes,SSom LT Phys Support - Nurs Spot,Third Party Payments,Private Contractors & Other Agencies,Purchased Care Services,07.01.2016,1900953050,1889.28,Almondsbury Care Ltd,11020775
Somerset County Council,Adult Social Care,New Codes,SSom LT Phys Support - Nurs Spot,Third Party Payments,Private Contractors & Other Agencies,Purchased Care Services,07.01.2016,1900953050,1889.28,Almondsbury Care Ltd,11020775
Somerset County Council,Adult Social Care,New Codes,SSom LT Phys Support - Nurs Spot,Third Party Payments,Private Contractors & Other Agencies,Purchased Care Services,07.01.2016,1900953050,2747.00,Almondsbury Care Ltd,11020775
Somerset County Council,Adult Social Care,New Codes,SSom LT Phys Support - Nurs Spot,Third Party Payments,Private Contractors & Other Agencies,Purchased Care Services,07.01.2016,1900953050,3085.71,Almondsbury Care Ltd,11020775
Somerset County Council,Adult Social Care,New Codes,SSom LT Phys Support - Nurs Spot,Third Party Payments,Private Contractors & Other Agencies,Purchased Care Services,07.01.2016,1900953050,3000.00,Almondsbury Care Ltd,11020775
Somerset County Council,Adult Social Care,New Codes,SSom LT Mem Support - FNC,Third Party Payments,Private Contractors & Other Agencies,Purchased Care Services,07.01.2016,1900953044,448.00,ALTOGETHER CARE LLP T/A SHERBORNE H,11007299
Somerset County Council,Adult Social Care,New Codes,SSom LT Mem Support - FNC,Third Party Payments,Private Contractors & Other Agencies,Purchased Care Services,07.01.2016,1900953044,448.00,ALTOGETHER CARE LLP T/A SHERBORNE H,11007299
Somerset County Council,Adult Social Care,New Codes,SSom LT Phys Support - DPA Nursing,Third Party Payments,Private Contractors & Other Agencies,Purchased Care Services,07.01.2016,1900953044,2560.84,ALTOGETHER CARE LLP T/A SHERBORNE H,11007299
Somerset County Council,Adult Social Care,New Codes,SSom LT Phys Support - FNC,Third Party Payments,Private Contractors & Other Agencies,Purchased Care Services,07.01.2016,1900953044,448.00,ALTOGETHER CARE LLP T/A SHERBORNE H,11007299
Somerset County Council,Adult Social Care,New Codes,SSom LT Phys Support - FNC,Third Party Payments,Private Contractors & Other Agencies,Purchased Care Services,07.01.2016,1900953044,448.00,ALTOGETHER CARE LLP T/A SHERBORNE H,11007299
Somerset County Council,Adult Social Care,New Codes,SSom LT Phys Support - FNC,Third Party Payments,Private Contractors & Other Agencies,Purchased Care Services,07.01.2016,1900953044,448.00,ALTOGETHER CARE LLP T/A SHERBORNE H,11007299
Somerset County Council,Adult Social Care,New Codes,SSom LT Phys Support - FNC,Third Party Payments,Private Contractors & Other Agencies,Purchased Care Services,07.01.2016,1900953044,448.00,ALTOGETHER CARE LLP T/A SHERBORNE H,11007299
Somerset County Council,Adult Social Care,New Codes,SSom LT Phys Support - FNC,Third Party Payments,Private Contractors & Other Agencies,Purchased Care Services,07.01.2016,1900953044,448.00,ALTOGETHER CARE LLP T/A SHERBORNE H,11007299
Somerset County Council,Adult Social Care,New Codes,SSom LT Phys Support - FNC,Third Party Payments,Private Contractors & Other Agencies,Purchased Care Services,07.01.2016,1900953044,448.00,ALTOGETHER CARE LLP T/A SHERBORNE H,11007299
Somerset County Council,Adult Social Care,New Codes,SSom LT Phys Support - FNC,Third Party Payments,Private Contractors & Other Agencies,Purchased Care Services,07.01.2016,1900953044,448.00,ALTOGETHER CARE LLP T/A SHERBORNE H,11007299
Somerset County Council,Adult Social Care,New Codes,SSom LT Phys Support - FNC,Third Party Payments,Private Contractors & Other Agencies,Purchased Care Services,07.01.2016,1900953044,448.00,ALTOGETHER CARE LLP T/A SHERBORNE H,11007299
Somerset County Council,Adult Social Care,New Codes,SSom LT Phys Support - FNC,Third Party Payments,Private Contractors & Other Agencies,Purchased Care Services,07.01.2016,1900953044,448.00,ALTOGETHER CARE LLP T/A SHERBORNE H,11007299
Somerset County Council,Adult Social Care,New Codes,SSom LT Phys Support - FNC,Third Party Payments,Private Contractors & Other Agencies,Purchased Care Services,07.01.2016,1900953044,448.00,ALTOGETHER CARE LLP T/A SHERBORNE H,11007299
Somerset County Council,Adult Social Care,New Codes,SSom LT Phys Support - FNC,Third Party Payments,Private Contractors & Other Agencies,Purchased Care Services,07.01.2016,1900953044,448.00,ALTOGETHER CARE LLP T/A SHERBORNE H,11007299
Somerset County Council,Adult Social Care,New Codes,SSom LT Phys Support - FNC,Third Party Payments,Private Contractors & Other Agencies,Purchased Care Services,07.01.2016,1900953044,448.00,ALTOGETHER CARE LLP T/A SHERBORNE H,11007299
Somerset County Council,Adult Social Care,New Codes,SSom LT Phys Support - FNC,Third Party Payments,Private Contractors & Other Agencies,Purchased Care Services,07.01.2016,1900953044,448.00,ALTOGETHER CARE LLP T/A SHERBORNE H,11007299
Somerset County Council,Adult Social Care,New Codes,SSom LT Phys Support - FNC,Third Party Payments,Private Contractors & Other Agencies,Purchased Care Services,07.01.2016,1900953044,448.00,ALTOGETHER CARE LLP T/A SHERBORNE H,11007299
Somerset County Council,Adult Social Care,New Codes,SSom LT Phys Support - FNC,Third Party Payments,Private Contractors & Other Agencies,Purchased Care Services,07.01.2016,1900953044,224.00,ALTOGETHER CARE LLP T/A SHERBORNE H,11007299
Somerset County Council,Adult Social Care,New Codes,SSom LT Phys Support - FNC,Third Party Payments,Private Contractors & Other Agencies,Purchased Care Services,07.01.2016,1900953044,448.00,ALTOGETHER CARE LLP T/A SHERBORNE H,11007299
Somerset County Council,Adult Social Care,New Codes,SSom LT Phys Support - FNC,Third Party Payments,Private Contractors & Other Agencies,Purchased Care Services,07.01.2016,1900953044,448.00,ALTOGETHER CARE LLP T/A SHERBORNE H,11007299
Somerset County Council,Adult Social Care,New Codes,SSom LT Phys Support - FNC,Third Party Payments,Private Contractors & Other Agencies,Purchased Care Services,07.01.2016,1900953044,448.00,ALTOGETHER CARE LLP T/A SHERBORNE H,11007299
Somerset County Council,Adult Social Care,New Codes,SSom LT Phys Support - FNC,Third Party Payments,Private Contractors & Other Agencies,Purchased Care Services,07.01.2016,1900953044,448.00,ALTOGETHER CARE LLP T/A SHERBORNE H,11007299
Somerset County Council,Adult Social Care,New Codes,SSom LT Phys Support - Nurs OPMH Spot,Third Party Payments,Private Contractors & Other Agencies,Purchased Care Services,07.01.2016,1900953044,3056.44,ALTOGETHER CARE LLP T/A SHERBORNE H,11007299
Somerset County Council,Adult Social Care,New Codes,SSom LT Phys Support - Nurs OPMH Spot,Third Party Payments,Private Contractors & Other Agencies,Purchased Care Services,07.01.2016,1900953044,2960.84,ALTOGETHER CARE LLP T/A SHERBORNE H,11007299
Somerset County Council,Adult Social Care,New Codes,SSom LT Phys Support - Nurs OPMH Spot,Third Party Payments,Private Contractors & Other Agencies,Purchased Care Services,07.01.2016,1900953044,3152.00,ALTOGETHER CARE LLP T/A SHERBORNE H,11007299
Somerset County Council,Adult Social Care,New Codes,SSom LT Phys Support - Nurs OPMH Spot,Third Party Payments,Private Contractors & Other Agencies,Purchased Care Services,07.01.2016,1900953044,2952.00,ALTOGETHER CARE LLP T/A SHERBORNE H,11007299
Somerset County Council,Adult Social Care,New Codes,SSom LT Phys Support - Nurs OPMH Spot,Third Party Payments,Private Contractors & Other Agencies,Purchased Care Services,07.01.2016,1900953044,2556.44,ALTOGETHER CARE LLP T/A SHERBORNE H,11007299
Somerset County Council,Adult Social Care,New Codes,SSom LT Phys Support - Nurs OPMH Spot,Third Party Payments,Private Contractors & Other Agencies,Purchased Care Services,07.01.2016,1900953044,2556.44,ALTOGETHER CARE LLP T/A SHERBORNE H,11007299
Somerset County Council,Adult Social Care,New Codes,SSom LT Phys Support - Nurs OPMH Spot,Third Party Payments,Private Contractors & Other Agencies,Purchased Care Services,07.01.2016,1900953044,2556.44,ALTOGETHER CARE LLP T/A SHERBORNE H,11007299
Somerset County Council,Adult Social Care,New Codes,SSom LT Phys Support - Nurs OPMH Spot,Third Party Payments,Private Contractors & Other Agencies,Purchased Care Services,07.01.2016,1900953044,2952.00,ALTOGETHER CARE LLP T/A SHERBORNE H,11007299
Somerset County Council,Adult Social Care,New Codes,SSom LT Phys Support - Nurs OPMH Spot,Third Party Payments,Private Contractors & Other Agencies,Purchased Care Services,07.01.2016,1900953044,2556.44,ALTOGETHER CARE LLP T/A SHERBORNE H,11007299
Somerset County Council,Adult Social Care,New Codes,SSom LT Phys Support - Nurs OPMH Spot,Third Party Payments,Private Contractors & Other Agencies,Purchased Care Services,07.01.2016,1900953044,2156.44,ALTOGETHER CARE LLP T/A SHERBORNE H,11007299
Somerset County Council,Adult Social Care,New Codes,SSom LT Phys Support - Nurs OPMH Spot,Third Party Payments,Private Contractors & Other Agencies,Purchased Care Services,07.01.2016,1900953044,1889.28,ALTOGETHER CARE LLP T/A SHERBORNE H,11007299
Somerset County Council,Adult Social Care,New Codes,SSom LT Phys Support - Nurs Spot,Third Party Payments,Private Contractors & Other Agencies,Purchased Care Services,07.01.2016,1900953044,1889.28,ALTOGETHER CARE LLP T/A SHERBORNE H,11007299
Somerset County Council,Adult Social Care,New Codes,SSom ST Phys Support - Respite,Third Party Payments,Private Contractors & Other Agencies,Purchased Care Services,07.01.2016,1900953044,1476.00,ALTOGETHER CARE LLP T/A SHERBORNE H,11007299
Somerset County Council,Adult Social Care,New Codes,Sdg LT Mem Support - Res Spot,Third Party Payments,Private Contractors & Other Agencies,Purchased Care Services,07.01.2016,1900953270,1829.88,ANGELS (KINGSLEIGH) LTD,11007319
Somerset County Council,Adult Social Care,New Codes,Sdg LT Phys Support - Res Spot,Third Party Payments,Private Contractors & Other Agencies,Purchased Care Services,07.01.2016,1900953270,1829.88,ANGELS (KINGSLEIGH) LTD,11007319
Somerset County Council,Adult Social Care,New Codes,Sdg LT Phys Support - Res Spot,Third Party Payments,Private Contractors & Other Agencies,Purchased Care Services,07.01.2016,1900953270,1829.88,ANGELS (KINGSLEIGH) LTD,11007319
Somerset County Council,Adult Social Care,New Codes,Sdg LT Phys Support - Res Spot,Third Party Payments,Private Contractors & Other Agencies,Purchased Care Services,07.01.2016,1900953270,1829.88,ANGELS (KINGSLEIGH) LTD,11007319
Somerset County Council,Adult Social Care,New Codes,Sdg LT Phys Support - Res Spot,Third Party Payments,Private Contractors & Other Agencies,Purchased Care Services,07.01.2016,1900953270,1829.88,ANGELS (KINGSLEIGH) LTD,11007319
Somerset County Council,Adult Social Care,New Codes,Sdg LT Phys Support - Res Spot,Third Party Payments,Private Contractors & Other Agencies,Purchased Care Services,07.01.2016,1900953270,1829.88,ANGELS (KINGSLEIGH) LTD,11007319
Somerset County Council,Adult Social Care,New Codes,Sdg LT Phys Support - Res Spot,Third Party Payments,Private Contractors & Other Agencies,Purchased Care Services,07.01.2016,1900953270,1829.88,ANGELS (KINGSLEIGH) LTD,11007319
Somerset County Council,Adult Social Care,New Codes,Sdg LT Phys Support - Res Spot,Third Party Payments,Private Contractors & Other Agencies,Purchased Care Services,07.01.2016,1900953270,1829.88,ANGELS (KINGSLEIGH) LTD,11007319
Somerset County Council,Adult Social Care,New Codes,Sdg LT Phys Support - Res Spot,Third Party Payments,Private Contractors & Other Agencies,Purchased Care Services,07.01.2016,1900953270,1829.88,ANGELS (KINGSLEIGH) LTD,11007319
Somerset County Council,Adult Social Care,New Codes,Sdg LT Phys Support - Res Spot,Third Party Payments,Private Contractors & Other Agencies,Purchased Care Services,07.01.2016,1900953270,1829.88,ANGELS (KINGSLEIGH) LTD,11007319
Somerset County Council,Adult Social Care,New Codes,Sdg LT Phys Support - Res Spot,Third Party Payments,Private Contractors & Other Agencies,Purchased Care Services,07.01.2016,1900953270,1829.88,ANGELS (KINGSLEIGH) LTD,11007319
Somerset County Council,Adult Social Care,New Codes,Sdg LT Phys Support - Res Spot,Third Party Payments,Private Contractors & Other Agencies,Purchased Care Services,07.01.2016,1900953270,1829.88,ANGELS (KINGSLEIGH) LTD,11007319
Somerset County Council,Adult Social Care,New Codes,Sdg LT Phys Support - Res Spot,Third Party Payments,Private Contractors & Other Agencies,Purchased Care Services,07.01.2016,1900953270,1829.88,ANGELS (KINGSLEIGH) LTD,11007319
Somerset County Council,Adult Social Care,New Codes,Sdg LT Phys Support - Res Spot,Third Party Payments,Private Contractors & Other Agencies,Purchased Care Services,07.01.2016,1900953270,1829.88,ANGELS (KINGSLEIGH) LTD,11007319
Somerset County Council,Adult Social Care,Older People,ASC SE OP EMI Nursing Block,Third Party Payments,Private Contractors & Other Agencies,Purchased Care Services,28.01.2016,1900962641,2688.00,ANGELS (STRATTON HOUSE) LTD,11007287
Somerset County Council,Adult Social Care,Older People,ASC SE OP EMI Nursing Block,Third Party Payments,Private Contractors & Other Agencies,Purchased Care Services,28.01.2016,1900962641,12050.88,ANGELS (STRATTON HOUSE) LTD,11007287
Somerset County Council,Adult Social Care,Learning Disabilities,LD-PUR-NC-Free Nursing Care-MDP,Third Party Payments,Private Contractors & Other Agencies,Purchased Care Services,07.01.2016,1900953124,448.00,ANGELS (STRATTON HOUSE) LTD,11007287
Somerset County Council,Adult Social Care,Learning Disabilities,LD-PUR-NC-Nursing-MDP,Third Party Payments,Private Contractors & Other Agencies,Purchased Care Services,07.01.2016,1900953124,1889.28,ANGELS (STRATTON HOUSE) LTD,11007287
Somerset County Council,Adult Social Care,New Codes,Sdg LT Mem Support - FNC,Third Party Payments,Private Contractors & Other Agencies,Purchased Care Services,07.01.2016,1900953274,448.00,ANGELS (STRATTON HOUSE) LTD,11007287
Somerset County Council,Adult Social Care,New Codes,Sdg LT Phys Support - DPA Nursing,Third Party Payments,Private Contractors & Other Agencies,Purchased Care Services,07.01.2016,1900953274,3160.00,ANGELS (STRATTON HOUSE) LTD,11007287
Somerset County Council,Adult Social Care,New Codes,Sdg LT Phys Support - FNC,Third Party Payments,Private Contractors & Other Agencies,Purchased Care Services,07.01.2016,1900953274,-288.00,ANGELS (STRATTON HOUSE) LTD,11007287
Somerset County Council,Adult Social Care,New Codes,Sdg LT Phys Support - FNC,Third Party Payments,Private Contractors & Other Agencies,Purchased Care Services,07.01.2016,1900953274,304.00,ANGELS (STRATTON HOUSE) LTD,11007287
Somerset County Council,Adult Social Care,New Codes,Sdg LT Phys Support - FNC,Third Party Payments,Private Contractors & Other Agencies,Purchased Care Services,07.01.2016,1900953274,448.00,ANGELS (STRATTON HOUSE) LTD,11007287
Somerset County Council,Adult Social Care,New Codes,Sdg LT Phys Support - FNC,Third Party Payments,Private Contractors & Other Agencies,Purchased Care Services,07.01.2016,1900953274,448.00,ANGELS (STRATTON HOUSE) LTD,11007287
Somerset County Council,Adult Social Care,New Codes,Sdg LT Phys Support - FNC,Third Party Payments,Private Contractors & Other Agencies,Purchased Care Services,07.01.2016,1900953274,448.00,ANGELS (STRATTON HOUSE) LTD,11007287
Somerset County Council,Adult Social Care,New Codes,Sdg LT Phys Support - FNC,Third Party Payments,Private Contractors & Other Agencies,Purchased Care Services,07.01.2016,1900953274,448.00,ANGELS (STRATTON HOUSE) LTD,11007287
Somerset County Council,Adult Social Care,New Codes,Sdg LT Phys Support - FNC,Third Party Payments,Private Contractors & Other Agencies,Purchased Care Services,07.01.2016,1900953274,448.00,ANGELS (STRATTON HOUSE) LTD,11007287
Somerset County Council,Adult Social Care,New Codes,Sdg LT Phys Support - FNC,Third Party Payments,Private Contractors & Other Agencies,Purchased Care Services,07.01.2016,1900953274,448.00,ANGELS (STRATTON HOUSE) LTD,11007287
Somerset County Council,Adult Social Care,New Codes,Sdg LT Phys Support - FNC,Third Party Payments,Private Contractors & Other Agencies,Purchased Care Services,07.01.2016,1900953274,448.00,ANGELS (STRATTON HOUSE) LTD,11007287
Somerset County Council,Adult Social Care,New Codes,Sdg LT Phys Support - Nurs OPMH Spot,Third Party Payments,Private Contractors & Other Agencies,Purchased Care Services,07.01.2016,1900953274,-1291.17,ANGELS (STRATTON HOUSE) LTD,11007287
Somerset County Council,Adult Social Care,New Codes,Sdg LT Phys Support - Nurs OPMH Spot,Third Party Payments,Private Contractors & Other Agencies,Purchased Care Services,07.01.2016,1900953274,2008.48,ANGELS (STRATTON HOUSE) LTD,11007287
Somerset County Council,Adult Social Care,New Codes,Sdg LT Phys Support - Nurs OPMH Spot,Third Party Payments,Private Contractors & Other Agencies,Purchased Care Services,07.01.2016,1900953274,2008.48,ANGELS (STRATTON HOUSE) LTD,11007287
Somerset County Council,Adult Social Care,New Codes,Sdg LT Phys Support - Nurs OPMH Spot,Third Party Payments,Private Contractors & Other Agencies,Purchased Care Services,07.01.2016,1900953274,1889.28,ANGELS (STRATTON HOUSE) LTD,11007287
Somerset County Council,Adult Social Care,New Codes,Sdg LT Phys Support - Res OPMH Spot,Third Party Payments,Private Contractors & Other Agencies,Purchased Care Services,07.01.2016,1900953274,588.18,ANGELS (STRATTON HOUSE) LTD,11007287
Somerset County Council,Adult Social Care,New Codes,Sdg LT Phys Support - Res OPMH Spot,Third Party Payments,Private Contractors & Other Agencies,Purchased Care Services,07.01.2016,1900953274,1829.88,ANGELS (STRATTON HOUSE) LTD,11007287
Somerset County Council,Adult Social Care,New Codes,Tton LT Phys Support - Nurs OPMH Spot,Third Party Payments,Private Contractors & Other Agencies,Purchased Care Services,07.01.2016,1900953274,71.73,ANGELS (STRATTON HOUSE) LTD,11007287
Somerset County Council,Adult Social Care,New Codes,Tton LT Phys Support - Nurs OPMH Spot,Third Party Payments,Private Contractors & Other Agencies,Purchased Care Services,07.01.2016,1900953274,1291.17,ANGELS (STRATTON HOUSE) LTD,11007287
Somerset County Council,Adult Social Care,Learning Disabilities,LD-SCC-RS-Selwyn House-STH,Premises,Rents,Rents,04.01.2016,5100750853,700.00,Ashfield Property & Management Serv,11038894
Somerset County Council,Adult Social Care,Older People,ASC ME OP ECH Core,Third Party Payments,Private Contractors & Other Agencies,Purchased Care Services,04.01.2016,5100753009,13435.84,Aster Living,11028441
Somerset County Council,Adult Social Care,Older People,ASC ME OP ECH Core,Third Party Payments,Private Contractors & Other Agencies,Purchased Care Services,04.01.2016,5100753071,3605.28,Aster Living,11028441
Somerset County Council,Adult Social Care,Learning Disabilities,LD-PUR-CH-Care at Home-MDP,Third Party Payments,Private Contractors & Other Agencies,Purchased Care Services,08.01.2016,5100754678,5631.92,Aster Living,11028441
Somerset County Council,Adult Social Care,Learning Disabilities,LD-PUR-CH-Care at Home-MDP,Third Party Payments,Private Contractors & Other Agencies,Purchased Care Services,15.01.2016,5100756693,775.18,Aster Living,11028441
Somerset County Council,Adult Social Care,Learning Disabilities,LD-PUR-CH-Care at Home-MDP,Third Party Payments,Private Contractors & Other Agencies,Purchased Care Services,15.01.2016,5100756750,2784.32,Aster Living,11028441
Somerset County Council,Adult Social Care,Learning Disabilities,LD-PUR-CH-Care at Home-MDP,Third Party Payments,Private Contractors & Other Agencies,Purchased Care Services,15.01.2016,5100756751,1676.92,Aster Living,11028441
Somerset County Council,Adult Social Care,Learning Disabilities,LD-PUR-CH-Care at Home-MDP,Third Party Payments,Private Contractors & Other Agencies,Purchased Care Services,20.01.2016,5100757868,2784.32,Aster Living,11028441
Somerset County Council,Adult Social Care,Learning Disabilities,LD-PUR-CH-Care at Home-MDP,Third Party Payments,Private Contractors & Other Agencies,Purchased Care Services,20.01.2016,5100757869,1676.92,Aster Living,11028441
Somerset County Council,Adult Social Care,Learning Disabilities,LD-PUR-CH-Care at Home-MDP,Third Party Payments,Private Contractors & Other Agencies,Purchased Care Services,21.01.2016,5100758138,5758.48,Aster Living,11028441
Somerset County Council,Adult Social Care,Learning Disabilities,LD-PUR-CH-Care at Home-MDP,Third Party Payments,Private Contractors & Other Agencies,Purchased Care Services,21.01.2016,5100758139,783.09,Aster Living,11028441
Somerset County Council,Adult Social Care,Learning Disabilities,LD-PUR-CH-Care at Home-MDP,Third Party Payments,Private Contractors & Other Agencies,Purchased Care Services,25.01.2016,5100758909,8036.56,Aster Living,11028441
Somerset County Council,Adult Social Care,Learning Disabilities,LD-PUR-SH-Supported Housing-MDP,Third Party Payments,Private Contractors & Other Agencies,Purchased Care Services,21.01.2016,5100758140,759.36,Aster Living,11028441
Somerset County Council,Adult Social Care,Learning Disabilities,LD-PUR-SH-Supported Housing-MDP,Third Party Payments,Private Contractors & Other Agencies,Purchased Care Services,21.01.2016,5100758141,10710.57,Aster Living,11028441
Somerset County Council,Adult Social Care,Learning Disabilities,LD-PUR-SH-Supported Housing-MDP,Third Party Payments,Private Contractors & Other Agencies,Purchased Care Services,21.01.2016,5100758142,6011.60,Aster Living,11028441
Somerset County Council,Adult Social Care,Learning Disabilities,LD-PUR-SH-Supported Housing-MDP,Third Party Payments,Private Contractors & Other Agencies,Purchased Care Services,27.01.2016,5100759320,29297.23,Aster Living,11028441
Somerset County Council,Adult Social Care,Learning Disabilities,LD-PUR-SH-Supported Housing-MDP,Third Party Payments,Private Contractors & Other Agencies,Purchased Care Services,25.01.2016,5100758910,759.36,Aster Living,11028441
Somerset County Council,Adult Social Care,Learning Disabilities,LD-PUR-SH-Supported Housing-MDP,Third Party Payments,Private Contractors & Other Agencies,Purchased Care Services,25.01.2016,5100758907,6517.84,Aster Living,11028441
Somerset County Council,Adult Social Care,Learning Disabilities,LD-PUR-SH-Supported Housing-MDP,Third Party Payments,Private Contractors & Other Agencies,Purchased Care Services,25.01.2016,5100758908,6454.56,Aster Living,11028441
Somerset County Council,Adult Social Care,Learning Disabilities,LD-PUR-SH-Supported Housing-MDP,Third Party Payments,Private Contractors & Other Agencies,Purchased Care Services,25.01.2016,5100758906,10757.60,Aster Living,11028441
Somerset County Council,Adult Social Care,New Codes,Mdp LT Phys Support - Day Care,Third Party Payments,Private Contractors & Other Agencies,Purchased Care Services,04.01.2016,5100753008,736.00,Aster Living,11028441
Somerset County Council,Adult Social Care,Older People,ASC CE Homecare Validation,Third Party Payments,Private Contractors & Other Agencies,Purchased Services - Pers Care,21.01.2016,5100758050,586.08,Aster Living,11028441
Somerset County Council,Adult Social Care,Older People,ASC CE Homecare Validation,Third Party Payments,Private Contractors & Other Agencies,Purchased Services - Pers Care,21.01.2016,5100758051,599.40,Aster Living,11028441
Somerset County Council,Adult Social Care,Learning Disabilities,LD-PUR-CH-Care at Home-MDP,Third Party Payments,Private Contractors & Other Agencies,Purchased Services - Pers Care,21.01.2016,5100758051,5279.16,Aster Living,11028441
Somerset County Council,Adult Social Care,Learning Disabilities,LD-PUR-CH-Care at Home-MDP,Third Party Payments,Private Contractors & Other Agencies,Purchased Services - Pers Care,21.01.2016,5100758050,5470.08,Aster Living,11028441
Somerset County Council,Adult Social Care,New Codes,Mdp LT Mem Support Accom - ECH Assessed,Third Party Payments,Private Contractors & Other Agencies,Purchased Services - Pers Care,21.01.2016,5100758050,1376.40,Aster Living,11028441
Somerset County Council,Adult Social Care,New Codes,Mdp LT Mem Support Accom - ECH Assessed,Third Party Payments,Private Contractors & Other Agencies,Purchased Services - Pers Care,21.01.2016,5100758051,1527.36,Aster Living,11028441
Somerset County Council,Adult Social Care,New Codes,Mdp LT Phys Support - Homecare,Third Party Payments,Private Contractors & Other Agencies,Purchased Services - Pers Care,28.01.2016,5100760007,659.95,Aster Living,11028441
Somerset County Council,Adult Social Care,New Codes,Mdp LT Phys Support Accom - ECH Assessed,Third Party Payments,Private Contractors & Other Agencies,Purchased Services - Pers Care,21.01.2016,5100758051,43383.24,Aster Living,11028441
Somerset County Council,Adult Social Care,New Codes,Mdp LT Phys Support Accom - ECH Assessed,Third Party Payments,Private Contractors & Other Agencies,Purchased Services - Pers Care,21.01.2016,5100758050,41061.12,Aster Living,11028441
Somerset County Council,Adult Social Care,New Codes,Mdp LT Sens Support Accom - ECH Assessed,Third Party Payments,Private Contractors & Other Agencies,Purchased Services - Pers Care,21.01.2016,5100758051,315.24,Aster Living,11028441
Somerset County Council,Adult Social Care,New Codes,Mdp LT Sens Support Accom - ECH Assessed,Third Party Payments,Private Contractors & Other Agencies,Purchased Services - Pers Care,21.01.2016,5100758050,288.60,Aster Living,11028441
Somerset County Council,Adult Social Care,Learning Disabilities,LD-PUR-RS-Comm. Care-MDP,Third Party Payments,Private Contractors & Other Agencies,Purchased Care Services,07.01.2016,1900953082,9640.60,Autism Wessex,11006977
Somerset County Council,Adult Social Care,Learning Disabilities,LD-PUR-RS-Comm. Care-STH,Third Party Payments,Private Contractors & Other Agencies,Purchased Care Services,07.01.2016,1900953082,5410.24,Autism Wessex,11006977
Somerset County Council,Adult Social Care,New Codes,Mdp LT Phys Support - Res Spot,Third Party Payments,Private Contractors & Other Agencies,Purchased Care Services,08.01.2016,1900954627,1829.88,AVALON COURT,11007310
Somerset County Council,Adult Social Care,New Codes,Mdp LT Phys Support - Res Spot,Third Party Payments,Private Contractors & Other Agencies,Purchased Care Services,08.01.2016,1900954627,1829.88,AVALON COURT,11007310
Somerset County Council,Adult Social Care,New Codes,Mdp LT Phys Support - Res Spot,Third Party Payments,Private Contractors & Other Agencies,Purchased Care Services,08.01.2016,1900954627,1829.88,AVALON COURT,11007310
Somerset County Council,Adult Social Care,New Codes,Mdp LT Phys Support - Res Spot,Third Party Payments,Private Contractors & Other Agencies,Purchased Care Services,08.01.2016,1900954627,1829.88,AVALON COURT,11007310
Somerset County Council,Adult Social Care,New Codes,Mdp LT Phys Support - Res Spot,Third Party Payments,Private Contractors & Other Agencies,Purchased Care Services,08.01.2016,1900954627,1829.88,AVALON COURT,11007310
Somerset County Council,Adult Social Care,New Codes,Mdp ST Phys Support - Interim & Intermed,Third Party Payments,Private Contractors & Other Agencies,Purchased Care Services,08.01.2016,1900954627,1619.38,AVALON COURT,11007310
Somerset County Council,Adult Social Care,New Codes,SSom LT Phys Support - Res Spot,Third Party Payments,Private Contractors & Other Agencies,Purchased Care Services,08.01.2016,1900954627,1829.88,AVALON COURT,11007310
Somerset County Council,Adult Social Care,Older People,ASC SE OP EMI Nursing Block,Third Party Payments,Private Contractors & Other Agencies,Purchased Care Services,28.01.2016,1900962649,224.00,Avalon Nursing Home,11038967
Somerset County Council,Adult Social Care,Older People,ASC SE OP EMI Nursing Block,Third Party Payments,Private Contractors & Other Agencies,Purchased Care Services,28.01.2016,1900962649,848.00,Avalon Nursing Home,11038967
Somerset County Council,Adult Social Care,Older People,ASC SE OP EMI Nursing Block,Third Party Payments,Private Contractors & Other Agencies,Purchased Care Services,28.01.2016,1900962649,1004.24,Avalon Nursing Home,11038967
Somerset County Council,Adult Social Care,Older People,ASC SE OP EMI Nursing Block,Third Party Payments,Private Contractors & Other Agencies,Purchased Care Services,28.01.2016,1900962649,3801.77,Avalon Nursing Home,11038967
Somerset County Council,Adult Social Care,Older People,ASC SE OP EMI Nursing Block,Third Party Payments,Private Contractors & Other Agencies,Purchased Care Services,28.01.2016,1900962649,5824.00,Avalon Nursing Home,11038967
Somerset County Council,Adult Social Care,Older People,ASC SE OP EMI Nursing Block,Third Party Payments,Private Contractors & Other Agencies,Purchased Care Services,28.01.2016,1900962649,26110.24,Avalon Nursing Home,11038967
Somerset County Council,Adult Social Care,New Codes,Sdg LT Phys Support - FNC,Third Party Payments,Private Contractors & Other Agencies,Purchased Care Services,08.01.2016,1900954547,416.00,Avalon Nursing Home,11038967
Somerset County Council,Adult Social Care,New Codes,Sdg LT Phys Support - FNC,Third Party Payments,Private Contractors & Other Agencies,Purchased Care Services,08.01.2016,1900954547,448.00,Avalon Nursing Home,11038967
Somerset County Council,Adult Social Care,New Codes,Sdg LT Phys Support - FNC,Third Party Payments,Private Contractors & Other Agencies,Purchased Care Services,08.01.2016,1900954547,448.00,Avalon Nursing Home,11038967
Somerset County Council,Adult Social Care,New Codes,SSom LT Phys Support - Nurs OPMH Spot,Third Party Payments,Private Contractors & Other Agencies,Purchased Care Services,15.01.2016,5100756778,5208.00,Avalon Nursing Home,11038967
Somerset County Council,Adult Social Care,New Codes,SSom LT Phys Support - Nurs OPMH Spot,Third Party Payments,Private Contractors & Other Agencies,Purchased Care Services,15.01.2016,5100756723,5040.00,Avalon Nursing Home,11038967
Somerset County Council,Adult Social Care,New Codes,Tton LT Phys Support - FNC,Third Party Payments,Private Contractors & Other Agencies,Purchased Care Services,08.01.2016,1900954547,528.00,Avalon Nursing Home,11038967
Somerset County Council,Adult Social Care,New Codes,Tton ST Phys Support - Plaster of Paris,Third Party Payments,Private Contractors & Other Agencies,Purchased Care Services,08.01.2016,1900954547,2367.14,Avalon Nursing Home,11038967
Somerset County Council,Adult Social Care,Older People,ASC ME OP FNC Somerset,Third Party Payments,Private Contractors & Other Agencies,Purchased Care Services,28.01.2016,1900962533,896.00,AVON CARE HOMES LTD,11007063
Somerset County Council,Adult Social Care,Older People,ASC ME OP FNC Somerset,Third Party Payments,Private Contractors & Other Agencies,Purchased Care Services,28.01.2016,1900962533,-32.00,AVON CARE HOMES LTD,11007063
Somerset County Council,Adult Social Care,Older People,ASC ME OP FNC Somerset,Third Party Payments,Private Contractors & Other Agencies,Purchased Care Services,28.01.2016,1900962533,-448.00,AVON CARE HOMES LTD,11007063
Somerset County Council,Adult Social Care,New Codes,Mdp LT Mem Support - FNC,Third Party Payments,Private Contractors & Other Agencies,Purchased Care Services,08.01.2016,1900954629,448.00,AVON CARE HOMES LTD,11007063
Somerset County Council,Adult Social Care,New Codes,Mdp LT Mem Support - FNC,Third Party Payments,Private Contractors & Other Agencies,Purchased Care Services,08.01.2016,1900954629,448.00,AVON CARE HOMES LTD,11007063
Somerset County Council,Adult Social Care,New Codes,Mdp LT Mem Support - Nurs Spot,Third Party Payments,Private Contractors & Other Agencies,Purchased Care Services,08.01.2016,1900954629,1889.28,AVON CARE HOMES LTD,11007063
Somerset County Council,Adult Social Care,New Codes,Mdp LT Mem Support - Nurs Spot,Third Party Payments,Private Contractors & Other Agencies,Purchased Care Services,08.01.2016,1900954629,1889.28,AVON CARE HOMES LTD,11007063
Somerset County Council,Adult Social Care,New Codes,Mdp LT Mem Support - Res Spot,Third Party Payments,Private Contractors & Other Agencies,Purchased Care Services,08.01.2016,1900954629,1829.88,AVON CARE HOMES LTD,11007063
Somerset County Council,Adult Social Care,New Codes,Mdp LT Phys Support - FNC,Third Party Payments,Private Contractors & Other Agencies,Purchased Care Services,08.01.2016,1900954629,448.00,AVON CARE HOMES LTD,11007063
Somerset County Council,Adult Social Care,New Codes,Mdp LT Phys Support - FNC,Third Party Payments,Private Contractors & Other Agencies,Purchased Care Services,08.01.2016,1900954629,448.00,AVON CARE HOMES LTD,11007063
Somerset County Council,Adult Social Care,New Codes,Mdp LT Phys Support - FNC,Third Party Payments,Private Contractors & Other Agencies,Purchased Care Services,08.01.2016,1900954629,448.00,AVON CARE HOMES LTD,11007063
Somerset County Council,Adult Social Care,New Codes,Mdp LT Phys Support - FNC,Third Party Payments,Private Contractors & Other Agencies,Purchased Care Services,08.01.2016,1900954629,448.00,AVON CARE HOMES LTD,11007063
Somerset County Council,Adult Social Care,New Codes,Mdp LT Phys Support - FNC,Third Party Payments,Private Contractors & Other Agencies,Purchased Care Services,08.01.2016,1900954629,448.00,AVON CARE HOMES LTD,11007063
Somerset County Council,Adult Social Care,New Codes,Mdp LT Phys Support - FNC,Third Party Payments,Private Contractors & Other Agencies,Purchased Care Services,08.01.2016,1900954629,448.00,AVON CARE HOMES LTD,11007063
Somerset County Council,Adult Social Care,New Codes,Mdp LT Phys Support - FNC,Third Party Payments,Private Contractors & Other Agencies,Purchased Care Services,08.01.2016,1900954629,448.00,AVON CARE HOMES LTD,11007063
Somerset County Council,Adult Social Care,New Codes,Mdp LT Phys Support - FNC,Third Party Payments,Private Contractors & Other Agencies,Purchased Care Services,08.01.2016,1900954629,448.00,AVON CARE HOMES LTD,11007063
Somerset County Council,Adult Social Care,New Codes,Mdp LT Phys Support - FNC,Third Party Payments,Private Contractors & Other Agencies,Purchased Care Services,08.01.2016,1900954629,448.00,AVON CARE HOMES LTD,11007063
Somerset County Council,Adult Social Care,New Codes,Mdp LT Phys Support - FNC,Third Party Payments,Private Contractors & Other Agencies,Purchased Care Services,08.01.2016,1900954629,448.00,AVON CARE HOMES LTD,11007063
Somerset County Council,Adult Social Care,New Codes,Mdp LT Phys Support - FNC,Third Party Payments,Private Contractors & Other Agencies,Purchased Care Services,08.01.2016,1900954629,448.00,AVON CARE HOMES LTD,11007063
Somerset County Council,Adult Social Care,New Codes,Mdp LT Phys Support - FNC,Third Party Payments,Private Contractors & Other Agencies,Purchased Care Services,08.01.2016,1900954629,448.00,AVON CARE HOMES LTD,11007063
Somerset County Council,Adult Social Care,New Codes,Mdp LT Phys Support - FNC,Third Party Payments,Private Contractors & Other Agencies,Purchased Care Services,08.01.2016,1900954629,448.00,AVON CARE HOMES LTD,11007063
Somerset County Council,Adult Social Care,New Codes,Mdp LT Phys Support - FNC,Third Party Payments,Private Contractors & Other Agencies,Purchased Care Services,08.01.2016,1900954629,448.00,AVON CARE HOMES LTD,11007063
Somerset County Council,Adult Social Care,New Codes,Mdp LT Phys Support - FNC,Third Party Payments,Private Contractors & Other Agencies,Purchased Care Services,08.01.2016,1900954629,448.00,AVON CARE HOMES LTD,11007063
Somerset County Council,Adult Social Care,New Codes,Mdp LT Phys Support - FNC,Third Party Payments,Private Contractors & Other Agencies,Purchased Care Services,08.01.2016,1900954629,176.00,AVON CARE HOMES LTD,11007063
Somerset County Council,Adult Social Care,New Codes,Mdp LT Phys Support - FNC,Third Party Payments,Private Contractors & Other Agencies,Purchased Care Services,08.01.2016,1900954629,176.00,AVON CARE HOMES LTD,11007063
Somerset County Council,Adult Social Care,New Codes,Mdp LT Phys Support - FNC,Third Party Payments,Private Contractors & Other Agencies,Purchased Care Services,08.01.2016,1900954629,-16.00,AVON CARE HOMES LTD,11007063
Somerset County Council,Adult Social Care,New Codes,Mdp LT Phys Support - FNC,Third Party Payments,Private Contractors & Other Agencies,Purchased Care Services,08.01.2016,1900954629,-160.00,AVON CARE HOMES LTD,11007063
Somerset County Council,Adult Social Care,New Codes,Mdp LT Phys Support - FNC,Third Party Payments,Private Contractors & Other Agencies,Purchased Care Services,08.01.2016,1900954629,448.00,AVON CARE HOMES LTD,11007063
Somerset County Council,Adult Social Care,New Codes,Mdp LT Phys Support - Nurs Block,Third Party Payments,Private Contractors & Other Agencies,Purchased Care Services,28.01.2016,1900962533,3778.56,AVON CARE HOMES LTD,11007063
Somerset County Council,Adult Social Care,New Codes,Mdp LT Phys Support - Nurs Block,Third Party Payments,Private Contractors & Other Agencies,Purchased Care Services,28.01.2016,1900962533,-134.95,AVON CARE HOMES LTD,11007063
Somerset County Council,Adult Social Care,New Codes,Mdp LT Phys Support - Nurs Block,Third Party Payments,Private Contractors & Other Agencies,Purchased Care Services,28.01.2016,1900962533,-1889.28,AVON CARE HOMES LTD,11007063
Somerset County Council,Adult Social Care,New Codes,Mdp LT Phys Support - Nurs Spot,Third Party Payments,Private Contractors & Other Agencies,Purchased Care Services,08.01.2016,1900954629,1889.28,AVON CARE HOMES LTD,11007063
Somerset County Council,Adult Social Care,New Codes,Mdp LT Phys Support - Nurs Spot,Third Party Payments,Private Contractors & Other Agencies,Purchased Care Services,08.01.2016,1900954629,1889.28,AVON CARE HOMES LTD,11007063
Somerset County Council,Adult Social Care,New Codes,Mdp LT Phys Support - Nurs Spot,Third Party Payments,Private Contractors & Other Agencies,Purchased Care Services,08.01.2016,1900954629,1889.28,AVON CARE HOMES LTD,11007063
Somerset County Council,Adult Social Care,New Codes,Mdp LT Phys Support - Nurs Spot,Third Party Payments,Private Contractors & Other Agencies,Purchased Care Services,08.01.2016,1900954629,1889.28,AVON CARE HOMES LTD,11007063
Somerset County Council,Adult Social Care,New Codes,Mdp LT Phys Support - Nurs Spot,Third Party Payments,Private Contractors & Other Agencies,Purchased Care Services,08.01.2016,1900954629,1889.28,AVON CARE HOMES LTD,11007063
Somerset County Council,Adult Social Care,New Codes,Mdp LT Phys Support - Nurs Spot,Third Party Payments,Private Contractors & Other Agencies,Purchased Care Services,08.01.2016,1900954629,1889.28,AVON CARE HOMES LTD,11007063
Somerset County Council,Adult Social Care,New Codes,Mdp LT Phys Support - Nurs Spot,Third Party Payments,Private Contractors & Other Agencies,Purchased Care Services,08.01.2016,1900954629,742.22,AVON CARE HOMES LTD,11007063
Somerset County Council,Adult Social Care,New Codes,Mdp LT Phys Support - Res Spot,Third Party Payments,Private Contractors & Other Agencies,Purchased Care Services,08.01.2016,1900954629,1676.84,AVON CARE HOMES LTD,11007063
Somerset County Council,Adult Social Care,New Codes,Mdp LT Phys Support - Res Spot,Third Party Payments,Private Contractors & Other Agencies,Purchased Care Services,08.01.2016,1900954629,1829.88,AVON CARE HOMES LTD,11007063
Somerset County Council,Adult Social Care,New Codes,Mdp LT Phys Support - Res Spot,Third Party Payments,Private Contractors & Other Agencies,Purchased Care Services,08.01.2016,1900954629,1829.88,AVON CARE HOMES LTD,11007063
Somerset County Council,Adult Social Care,New Codes,Mdp LT Phys Support - Res Spot,Third Party Payments,Private Contractors & Other Agencies,Purchased Care Services,08.01.2016,1900954629,1829.88,AVON CARE HOMES LTD,11007063
Somerset County Council,Adult Social Care,New Codes,Mdp LT Sens Support - FNC,Third Party Payments,Private Contractors & Other Agencies,Purchased Care Services,08.01.2016,1900954629,448.00,AVON CARE HOMES LTD,11007063
Somerset County Council,Adult Social Care,New Codes,Mdp LT Sens Support - Nurs Spot,Third Party Payments,Private Contractors & Other Agencies,Purchased Care Services,08.01.2016,1900954629,1889.28,AVON CARE HOMES LTD,11007063
Somerset County Council,Adult Social Care,New Codes,Mdp ST Phys Support - Interim & Intermed,Third Party Payments,Private Contractors & Other Agencies,Purchased Care Services,08.01.2016,1900954629,1687.93,AVON CARE HOMES LTD,11007063
Somerset County Council,Adult Social Care,New Codes,Sdg LT Phys Support - DPA Residential,Third Party Payments,Private Contractors & Other Agencies,Purchased Care Services,07.01.2016,1900953160,1372.41,BANBRIDGE HOUSE,11006992
Somerset County Council,Adult Social Care,New Codes,Sdg LT Phys Support - DPA Residential,Third Party Payments,Private Contractors & Other Agencies,Purchased Care Services,07.01.2016,1900953160,457.47,BANBRIDGE HOUSE,11006992
Somerset County Council,Adult Social Care,New Codes,Tton ST Phys Support - Respite,Third Party Payments,Private Contractors & Other Agencies,Purchased Care Services,07.01.2016,1900953160,1176.35,BANBRIDGE HOUSE,11006992
Somerset County Council,Adult Social Care,New Codes,Tton ST Phys Support - Respite,Third Party Payments,Private Contractors & Other Agencies,Purchased Care Services,07.01.2016,1900953160,457.47,BANBRIDGE HOUSE,11006992
Somerset County Council,Adult Social Care,Learning Disabilities,LD-PUR-NC-Free Nursing Care-STH,Third Party Payments,Private Contractors & Other Agencies,Purchased Care Services,07.01.2016,1900953080,448.00,Barchester Healthcare Homes Ltd,11007024
Somerset County Council,Adult Social Care,Learning Disabilities,LD-PUR-NC-Free Nursing Care-STH,Third Party Payments,Private Contractors & Other Agencies,Purchased Care Services,07.01.2016,1900953080,448.00,Barchester Healthcare Homes Ltd,11007024
Somerset County Council,Adult Social Care,Learning Disabilities,LD-PUR-NC-Nursing-STH,Third Party Payments,Private Contractors & Other Agencies,Purchased Care Services,07.01.2016,1900953080,4560.84,Barchester Healthcare Homes Ltd,11007024
Somerset County Council,Adult Social Care,Learning Disabilities,LD-PUR-NC-Nursing-STH,Third Party Payments,Private Contractors & Other Agencies,Purchased Care Services,07.01.2016,1900953080,4560.84,Barchester Healthcare Homes Ltd,11007024
Somerset County Council,Adult Social Care,New Codes,Mdp LT Phys Support - Nurs Spot,Third Party Payments,Private Contractors & Other Agencies,Purchased Care Services,07.01.2016,1900953038,2484.00,Barchester Healthcare Homes Ltd,11007167
Somerset County Council,Adult Social Care,New Codes,Mdp LT Phys Support - Nurs Spot,Third Party Payments,Private Contractors & Other Agencies,Purchased Care Services,07.01.2016,1900953038,2524.00,Barchester Healthcare Homes Ltd,11007167
Somerset County Council,Adult Social Care,New Codes,SSom LT Mem Support - FNC,Third Party Payments,Private Contractors & Other Agencies,Purchased Care Services,07.01.2016,1900953018,448.00,Barchester Healthcare Homes Ltd,11007024
Somerset County Council,Adult Social Care,New Codes,SSom LT Mem Support - FNC,Third Party Payments,Private Contractors & Other Agencies,Purchased Care Services,07.01.2016,1900953018,448.00,Barchester Healthcare Homes Ltd,11007024
Somerset County Council,Adult Social Care,New Codes,SSom LT Mem Support - FNC,Third Party Payments,Private Contractors & Other Agencies,Purchased Care Services,07.01.2016,1900953018,448.00,Barchester Healthcare Homes Ltd,11007024
Somerset County Council,Adult Social Care,New Codes,SSom LT Mem Support - FNC,Third Party Payments,Private Contractors & Other Agencies,Purchased Care Services,07.01.2016,1900953018,448.00,Barchester Healthcare Homes Ltd,11007024
Somerset County Council,Adult Social Care,New Codes,SSom LT Mem Support - Nurs OPMH Spot,Third Party Payments,Private Contractors & Other Agencies,Purchased Care Services,07.01.2016,1900953018,2552.00,Barchester Healthcare Homes Ltd,11007024
Somerset County Council,Adult Social Care,New Codes,SSom LT Mem Support - Nurs OPMH Spot,Third Party Payments,Private Contractors & Other Agencies,Purchased Care Services,07.01.2016,1900953018,1889.28,Barchester Healthcare Homes Ltd,11007024
Somerset County Council,Adult Social Care,New Codes,SSom LT Mem Support - Nurs Spot,Third Party Payments,Private Contractors & Other Agencies,Purchased Care Services,07.01.2016,1900953018,1889.28,Barchester Healthcare Homes Ltd,11007024
Somerset County Council,Adult Social Care,New Codes,SSom LT Phys Support - DPA Nursing,Third Party Payments,Private Contractors & Other Agencies,Purchased Care Services,07.01.2016,1900953018,2164.00,Barchester Healthcare Homes Ltd,11007024
Somerset County Council,Adult Social Care,New Codes,SSom LT Phys Support - DPA Nursing,Third Party Payments,Private Contractors & Other Agencies,Purchased Care Services,07.01.2016,1900953018,2164.00,Barchester Healthcare Homes Ltd,11007024
Somerset County Council,Adult Social Care,New Codes,SSom LT Phys Support - DPA Nursing,Third Party Payments,Private Contractors & Other Agencies,Purchased Care Services,07.01.2016,1900953018,1889.28,Barchester Healthcare Homes Ltd,11007024
Somerset County Council,Adult Social Care,New Codes,SSom LT Phys Support - FNC,Third Party Payments,Private Contractors & Other Agencies,Purchased Care Services,07.01.2016,1900953018,448.00,Barchester Healthcare Homes Ltd,11007024
Somerset County Council,Adult Social Care,New Codes,SSom LT Phys Support - FNC,Third Party Payments,Private Contractors & Other Agencies,Purchased Care Services,07.01.2016,1900953018,448.00,Barchester Healthcare Homes Ltd,11007024
Somerset County Council,Adult Social Care,New Codes,SSom LT Phys Support - FNC,Third Party Payments,Private Contractors & Other Agencies,Purchased Care Services,07.01.2016,1900953018,448.00,Barchester Healthcare Homes Ltd,11007024
Somerset County Council,Adult Social Care,New Codes,SSom LT Phys Support - FNC,Third Party Payments,Private Contractors & Other Agencies,Purchased Care Services,07.01.2016,1900953018,448.00,Barchester Healthcare Homes Ltd,11007024
Somerset County Council,Adult Social Care,New Codes,SSom LT Phys Support - FNC,Third Party Payments,Private Contractors & Other Agencies,Purchased Care Services,07.01.2016,1900953018,448.00,Barchester Healthcare Homes Ltd,11007024
Somerset County Council,Adult Social Care,New Codes,SSom LT Phys Support - FNC,Third Party Payments,Private Contractors & Other Agencies,Purchased Care Services,07.01.2016,1900953018,448.00,Barchester Healthcare Homes Ltd,11007024
Somerset County Council,Adult Social Care,New Codes,SSom LT Phys Support - FNC,Third Party Payments,Private Contractors & Other Agencies,Purchased Care Services,07.01.2016,1900953018,448.00,Barchester Healthcare Homes Ltd,11007024
Somerset County Council,Adult Social Care,New Codes,SSom LT Phys Support - FNC,Third Party Payments,Private Contractors & Other Agencies,Purchased Care Services,07.01.2016,1900953018,448.00,Barchester Healthcare Homes Ltd,11007024
Somerset County Council,Adult Social Care,New Codes,SSom LT Phys Support - FNC,Third Party Payments,Private Contractors & Other Agencies,Purchased Care Services,07.01.2016,1900953018,448.00,Barchester Healthcare Homes Ltd,11007024
Somerset County Council,Adult Social Care,New Codes,SSom LT Phys Support - FNC,Third Party Payments,Private Contractors & Other Agencies,Purchased Care Services,07.01.2016,1900953018,448.00,Barchester Healthcare Homes Ltd,11007024
Somerset County Council,Adult Social Care,New Codes,SSom LT Phys Support - FNC,Third Party Payments,Private Contractors & Other Agencies,Purchased Care Services,07.01.2016,1900953018,448.00,Barchester Healthcare Homes Ltd,11007024
Somerset County Council,Adult Social Care,New Codes,SSom LT Phys Support - FNC,Third Party Payments,Private Contractors & Other Agencies,Purchased Care Services,07.01.2016,1900953018,448.00,Barchester Healthcare Homes Ltd,11007024
Somerset County Council,Adult Social Care,New Codes,SSom LT Phys Support - FNC,Third Party Payments,Private Contractors & Other Agencies,Purchased Care Services,07.01.2016,1900953018,448.00,Barchester Healthcare Homes Ltd,11007024
Somerset County Council,Adult Social Care,New Codes,SSom LT Phys Support - FNC,Third Party Payments,Private Contractors & Other Agencies,Purchased Care Services,07.01.2016,1900953018,448.00,Barchester Healthcare Homes Ltd,11007024
Somerset County Council,Adult Social Care,New Codes,SSom LT Phys Support - FNC,Third Party Payments,Private Contractors & Other Agencies,Purchased Care Services,07.01.2016,1900953018,448.00,Barchester Healthcare Homes Ltd,11007024
Somerset County Council,Adult Social Care,New Codes,SSom LT Phys Support - FNC,Third Party Payments,Private Contractors & Other Agencies,Purchased Care Services,07.01.2016,1900953018,448.00,Barchester Healthcare Homes Ltd,11007024
Somerset County Council,Adult Social Care,New Codes,SSom LT Phys Support - FNC,Third Party Payments,Private Contractors & Other Agencies,Purchased Care Services,07.01.2016,1900953018,448.00,Barchester Healthcare Homes Ltd,11007024
Somerset County Council,Adult Social Care,New Codes,SSom LT Phys Support - FNC,Third Party Payments,Private Contractors & Other Agencies,Purchased Care Services,07.01.2016,1900953018,448.00,Barchester Healthcare Homes Ltd,11007024
Somerset County Council,Adult Social Care,New Codes,SSom LT Phys Support - FNC,Third Party Payments,Private Contractors & Other Agencies,Purchased Care Services,07.01.2016,1900953018,448.00,Barchester Healthcare Homes Ltd,11007024
Somerset County Council,Adult Social Care,New Codes,SSom LT Phys Support - FNC,Third Party Payments,Private Contractors & Other Agencies,Purchased Care Services,07.01.2016,1900953018,448.00,Barchester Healthcare Homes Ltd,11007024
Somerset County Council,Adult Social Care,New Codes,SSom LT Phys Support - FNC,Third Party Payments,Private Contractors & Other Agencies,Purchased Care Services,07.01.2016,1900953018,448.00,Barchester Healthcare Homes Ltd,11007024
Somerset County Council,Adult Social Care,New Codes,SSom LT Phys Support - FNC,Third Party Payments,Private Contractors & Other Agencies,Purchased Care Services,07.01.2016,1900953018,448.00,Barchester Healthcare Homes Ltd,11007024
Somerset County Council,Adult Social Care,New Codes,SSom LT Phys Support - FNC,Third Party Payments,Private Contractors & Other Agencies,Purchased Care Services,07.01.2016,1900953018,224.00,Barchester Healthcare Homes Ltd,11007024
Somerset County Council,Adult Social Care,New Codes,SSom LT Phys Support - FNC,Third Party Payments,Private Contractors & Other Agencies,Purchased Care Services,07.01.2016,1900953018,240.00,Barchester Healthcare Homes Ltd,11007024
Somerset County Council,Adult Social Care,New Codes,SSom LT Phys Support - FNC,Third Party Payments,Private Contractors & Other Agencies,Purchased Care Services,07.01.2016,1900953018,448.00,Barchester Healthcare Homes Ltd,11007024
Somerset County Council,Adult Social Care,New Codes,SSom LT Phys Support - FNC,Third Party Payments,Private Contractors & Other Agencies,Purchased Care Services,07.01.2016,1900953018,448.00,Barchester Healthcare Homes Ltd,11007024
Somerset County Council,Adult Social Care,New Codes,SSom LT Phys Support - FNC,Third Party Payments,Private Contractors & Other Agencies,Purchased Care Services,07.01.2016,1900953018,448.00,Barchester Healthcare Homes Ltd,11007024
Somerset County Council,Adult Social Care,New Codes,SSom LT Phys Support - FNC,Third Party Payments,Private Contractors & Other Agencies,Purchased Care Services,07.01.2016,1900953018,448.00,Barchester Healthcare Homes Ltd,11007024
Somerset County Council,Adult Social Care,New Codes,SSom LT Phys Support - FNC,Third Party Payments,Private Contractors & Other Agencies,Purchased Care Services,07.01.2016,1900953018,448.00,Barchester Healthcare Homes Ltd,11007024
Somerset County Council,Adult Social Care,New Codes,SSom LT Phys Support - FNC,Third Party Payments,Private Contractors & Other Agencies,Purchased Care Services,07.01.2016,1900953018,448.00,Barchester Healthcare Homes Ltd,11007024
Somerset County Council,Adult Social Care,New Codes,SSom LT Phys Support - FNC,Third Party Payments,Private Contractors & Other Agencies,Purchased Care Services,07.01.2016,1900953018,448.00,Barchester Healthcare Homes Ltd,11007024
Somerset County Council,Adult Social Care,New Codes,SSom LT Phys Support - FNC,Third Party Payments,Private Contractors & Other Agencies,Purchased Care Services,07.01.2016,1900953018,448.00,Barchester Healthcare Homes Ltd,11007024
Somerset County Council,Adult Social Care,New Codes,SSom LT Phys Support - FNC,Third Party Payments,Private Contractors & Other Agencies,Purchased Care Services,07.01.2016,1900953018,448.00,Barchester Healthcare Homes Ltd,11007024
Somerset County Council,Adult Social Care,New Codes,SSom LT Phys Support - FNC,Third Party Payments,Private Contractors & Other Agencies,Purchased Care Services,07.01.2016,1900953018,448.00,Barchester Healthcare Homes Ltd,11007024
Somerset County Council,Adult Social Care,New Codes,SSom LT Phys Support - FNC,Third Party Payments,Private Contractors & Other Agencies,Purchased Care Services,07.01.2016,1900953018,448.00,Barchester Healthcare Homes Ltd,11007024
Somerset County Council,Adult Social Care,New Codes,SSom LT Phys Support - FNC,Third Party Payments,Private Contractors & Other Agencies,Purchased Care Services,07.01.2016,1900953018,448.00,Barchester Healthcare Homes Ltd,11007024
Somerset County Council,Adult Social Care,New Codes,SSom LT Phys Support - FNC,Third Party Payments,Private Contractors & Other Agencies,Purchased Care Services,07.01.2016,1900953018,448.00,Barchester Healthcare Homes Ltd,11007024
Somerset County Council,Adult Social Care,New Codes,SSom LT Phys Support - FNC,Third Party Payments,Private Contractors & Other Agencies,Purchased Care Services,07.01.2016,1900953018,448.00,Barchester Healthcare Homes Ltd,11007024
Somerset County Council,Adult Social Care,New Codes,SSom LT Phys Support - FNC,Third Party Payments,Private Contractors & Other Agencies,Purchased Care Services,07.01.2016,1900953018,448.00,Barchester Healthcare Homes Ltd,11007024
Somerset County Council,Adult Social Care,New Codes,SSom LT Phys Support - FNC,Third Party Payments,Private Contractors & Other Agencies,Purchased Care Services,07.01.2016,1900953018,448.00,Barchester Healthcare Homes Ltd,11007024
Somerset County Council,Adult Social Care,New Codes,SSom LT Phys Support - FNC,Third Party Payments,Private Contractors & Other Agencies,Purchased Care Services,07.01.2016,1900953018,448.00,Barchester Healthcare Homes Ltd,11007024
Somerset County Council,Adult Social Care,New Codes,SSom LT Phys Support - FNC,Third Party Payments,Private Contractors & Other Agencies,Purchased Care Services,07.01.2016,1900953018,448.00,Barchester Healthcare Homes Ltd,11007024
Somerset County Council,Adult Social Care,New Codes,SSom LT Phys Support - FNC,Third Party Payments,Private Contractors & Other Agencies,Purchased Care Services,07.01.2016,1900953018,448.00,Barchester Healthcare Homes Ltd,11007024
Somerset County Council,Adult Social Care,New Codes,SSom LT Phys Support - FNC,Third Party Payments,Private Contractors & Other Agencies,Purchased Care Services,07.01.2016,1900953018,448.00,Barchester Healthcare Homes Ltd,11007024
Somerset County Council,Adult Social Care,New Codes,SSom LT Phys Support - FNC,Third Party Payments,Private Contractors & Other Agencies,Purchased Care Services,07.01.2016,1900953018,448.00,Barchester Healthcare Homes Ltd,11007024
Somerset County Council,Adult Social Care,New Codes,SSom LT Phys Support - FNC,Third Party Payments,Private Contractors & Other Agencies,Purchased Care Services,07.01.2016,1900953018,448.00,Barchester Healthcare Homes Ltd,11007024
Somerset County Council,Adult Social Care,New Codes,SSom LT Phys Support - FNC,Third Party Payments,Private Contractors & Other Agencies,Purchased Care Services,07.01.2016,1900953018,448.00,Barchester Healthcare Homes Ltd,11007024
Somerset County Council,Adult Social Care,New Codes,SSom LT Phys Support - FNC,Third Party Payments,Private Contractors & Other Agencies,Purchased Care Services,07.01.2016,1900953018,448.00,Barchester Healthcare Homes Ltd,11007024
Somerset County Council,Adult Social Care,New Codes,SSom LT Phys Support - FNC,Third Party Payments,Private Contractors & Other Agencies,Purchased Care Services,07.01.2016,1900953018,448.00,Barchester Healthcare Homes Ltd,11007024
Somerset County Council,Adult Social Care,New Codes,SSom LT Phys Support - FNC,Third Party Payments,Private Contractors & Other Agencies,Purchased Care Services,07.01.2016,1900953018,448.00,Barchester Healthcare Homes Ltd,11007024
Somerset County Council,Adult Social Care,New Codes,SSom LT Phys Support - FNC,Third Party Payments,Private Contractors & Other Agencies,Purchased Care Services,07.01.2016,1900953018,448.00,Barchester Healthcare Homes Ltd,11007024
Somerset County Council,Adult Social Care,New Codes,SSom LT Phys Support - FNC,Third Party Payments,Private Contractors & Other Agencies,Purchased Care Services,07.01.2016,1900953018,448.00,Barchester Healthcare Homes Ltd,11007024
Somerset County Council,Adult Social Care,New Codes,SSom LT Phys Support - FNC,Third Party Payments,Private Contractors & Other Agencies,Purchased Care Services,07.01.2016,1900953018,448.00,Barchester Healthcare Homes Ltd,11007024
Somerset County Council,Adult Social Care,New Codes,SSom LT Phys Support - Nurs OPMH Spot,Third Party Payments,Private Contractors & Other Agencies,Purchased Care Services,07.01.2016,1900953018,179.94,Barchester Healthcare Homes Ltd,11007024
Somerset County Council,Adult Social Care,New Codes,SSom LT Phys Support - Nurs OPMH Spot,Third Party Payments,Private Contractors & Other Agencies,Purchased Care Services,07.01.2016,1900953018,607.27,Barchester Healthcare Homes Ltd,11007024
Somerset County Council,Adult Social Care,New Codes,SSom LT Phys Support - Nurs OPMH Spot,Third Party Payments,Private Contractors & Other Agencies,Purchased Care Services,07.01.2016,1900953018,2184.48,Barchester Healthcare Homes Ltd,11007024
Somerset County Council,Adult Social Care,New Codes,SSom LT Phys Support - Nurs OPMH Spot,Third Party Payments,Private Contractors & Other Agencies,Purchased Care Services,07.01.2016,1900953018,1889.28,Barchester Healthcare Homes Ltd,11007024
Somerset County Council,Adult Social Care,New Codes,SSom LT Phys Support - Nurs OPMH Spot,Third Party Payments,Private Contractors & Other Agencies,Purchased Care Services,07.01.2016,1900953018,1889.28,Barchester Healthcare Homes Ltd,11007024
Somerset County Council,Adult Social Care,New Codes,SSom LT Phys Support - Nurs OPMH Spot,Third Party Payments,Private Contractors & Other Agencies,Purchased Care Services,07.01.2016,1900953018,1889.28,Barchester Healthcare Homes Ltd,11007024
Somerset County Council,Adult Social Care,New Codes,SSom LT Phys Support - Nurs OPMH Spot,Third Party Payments,Private Contractors & Other Agencies,Purchased Care Services,07.01.2016,1900953018,1889.28,Barchester Healthcare Homes Ltd,11007024
Somerset County Council,Adult Social Care,New Codes,SSom LT Phys Support - Nurs OPMH Spot,Third Party Payments,Private Contractors & Other Agencies,Purchased Care Services,07.01.2016,1900953018,2202.16,Barchester Healthcare Homes Ltd,11007024
Somerset County Council,Adult Social Care,New Codes,SSom LT Phys Support - Nurs OPMH Spot,Third Party Payments,Private Contractors & Other Agencies,Purchased Care Services,07.01.2016,1900953018,2956.44,Barchester Healthcare Homes Ltd,11007024
Somerset County Council,Adult Social Care,New Codes,SSom LT Phys Support - Nurs OPMH Spot,Third Party Payments,Private Contractors & Other Agencies,Purchased Care Services,07.01.2016,1900953018,1889.28,Barchester Healthcare Homes Ltd,11007024
Somerset County Council,Adult Social Care,New Codes,SSom LT Phys Support - Nurs OPMH Spot,Third Party Payments,Private Contractors & Other Agencies,Purchased Care Services,07.01.2016,1900953018,1889.28,Barchester Healthcare Homes Ltd,11007024
Somerset County Council,Adult Social Care,New Codes,SSom LT Phys Support - Nurs Spot,Third Party Payments,Private Contractors & Other Agencies,Purchased Care Services,07.01.2016,1900953018,1889.28,Barchester Healthcare Homes Ltd,11007024
Somerset County Council,Adult Social Care,New Codes,SSom LT Phys Support - Nurs Spot,Third Party Payments,Private Contractors & Other Agencies,Purchased Care Services,07.01.2016,1900953018,1889.28,Barchester Healthcare Homes Ltd,11007024
Somerset County Council,Adult Social Care,New Codes,SSom LT Phys Support - Nurs Spot,Third Party Payments,Private Contractors & Other Agencies,Purchased Care Services,07.01.2016,1900953018,1889.28,Barchester Healthcare Homes Ltd,11007024
Somerset County Council,Adult Social Care,New Codes,SSom LT Phys Support - Nurs Spot,Third Party Payments,Private Contractors & Other Agencies,Purchased Care Services,07.01.2016,1900953018,1889.28,Barchester Healthcare Homes Ltd,11007024
Somerset County Council,Adult Social Care,New Codes,SSom LT Phys Support - Nurs Spot,Third Party Payments,Private Contractors & Other Agencies,Purchased Care Services,07.01.2016,1900953018,1889.28,Barchester Healthcare Homes Ltd,11007024
Somerset County Council,Adult Social Care,New Codes,SSom LT Phys Support - Nurs Spot,Third Party Payments,Private Contractors & Other Agencies,Purchased Care Services,07.01.2016,1900953018,1889.28,Barchester Healthcare Homes Ltd,11007024
Somerset County Council,Adult Social Care,New Codes,SSom LT Phys Support - Nurs Spot,Third Party Payments,Private Contractors & Other Agencies,Purchased Care Services,07.01.2016,1900953018,1889.28,Barchester Healthcare Homes Ltd,11007024
Somerset County Council,Adult Social Care,New Codes,SSom LT Phys Support - Nurs Spot,Third Party Payments,Private Contractors & Other Agencies,Purchased Care Services,07.01.2016,1900953018,1889.28,Barchester Healthcare Homes Ltd,11007024
Somerset County Council,Adult Social Care,New Codes,SSom LT Phys Support - Nurs Spot,Third Party Payments,Private Contractors & Other Agencies,Purchased Care Services,07.01.2016,1900953018,1889.28,Barchester Healthcare Homes Ltd,11007024
Somerset County Council,Adult Social Care,New Codes,SSom LT Phys Support - Nurs Spot,Third Party Payments,Private Contractors & Other Agencies,Purchased Care Services,07.01.2016,1900953018,1889.28,Barchester Healthcare Homes Ltd,11007024
Somerset County Council,Adult Social Care,New Codes,SSom LT Phys Support - Nurs Spot,Third Party Payments,Private Contractors & Other Agencies,Purchased Care Services,07.01.2016,1900953018,2332.00,Barchester Healthcare Homes Ltd,11007024
Somerset County Council,Adult Social Care,New Codes,SSom LT Phys Support - Nurs Spot,Third Party Payments,Private Contractors & Other Agencies,Purchased Care Services,07.01.2016,1900953018,2600.00,Barchester Healthcare Homes Ltd,11007024
Somerset County Council,Adult Social Care,New Codes,SSom LT Phys Support - Nurs Spot,Third Party Payments,Private Contractors & Other Agencies,Purchased Care Services,07.01.2016,1900953018,2800.00,Barchester Healthcare Homes Ltd,11007024
Somerset County Council,Adult Social Care,New Codes,SSom LT Phys Support - Nurs Spot,Third Party Payments,Private Contractors & Other Agencies,Purchased Care Services,07.01.2016,1900953018,1889.28,Barchester Healthcare Homes Ltd,11007024
Somerset County Council,Adult Social Care,New Codes,SSom LT Phys Support - Nurs Spot,Third Party Payments,Private Contractors & Other Agencies,Purchased Care Services,07.01.2016,1900953018,1889.28,Barchester Healthcare Homes Ltd,11007024
Somerset County Council,Adult Social Care,New Codes,SSom LT Phys Support - Nurs Spot,Third Party Payments,Private Contractors & Other Agencies,Purchased Care Services,07.01.2016,1900953018,1889.28,Barchester Healthcare Homes Ltd,11007024
Somerset County Council,Adult Social Care,New Codes,SSom LT Phys Support - Nurs Spot,Third Party Payments,Private Contractors & Other Agencies,Purchased Care Services,07.01.2016,1900953018,2560.00,Barchester Healthcare Homes Ltd,11007024
Somerset County Council,Adult Social Care,New Codes,SSom LT Phys Support - Nurs Spot,Third Party Payments,Private Contractors & Other Agencies,Purchased Care Services,07.01.2016,1900953018,1889.28,Barchester Healthcare Homes Ltd,11007024
Somerset County Council,Adult Social Care,New Codes,SSom LT Phys Support - Res Spot,Third Party Payments,Private Contractors & Other Agencies,Purchased Care Services,07.01.2016,1900953018,47.30,Barchester Healthcare Homes Ltd,11007024
Somerset County Council,Adult Social Care,New Codes,SSom LT Phys Support - Res Spot,Third Party Payments,Private Contractors & Other Agencies,Purchased Care Services,07.01.2016,1900953018,1764.53,Barchester Healthcare Homes Ltd,11007024
Somerset County Council,Adult Social Care,New Codes,SSom LT Phys Support - Res Spot,Third Party Payments,Private Contractors & Other Agencies,Purchased Care Services,07.01.2016,1900953018,2173.00,Barchester Healthcare Homes Ltd,11007024
Somerset County Council,Adult Social Care,New Codes,SSom ST Phys Support - Plaster of Paris,Third Party Payments,Private Contractors & Other Agencies,Purchased Care Services,07.01.2016,1900953018,2152.00,Barchester Healthcare Homes Ltd,11007024
Somerset County Council,Adult Social Care,New Codes,Sdg LT Phys Support - Nurs Spot,Third Party Payments,Private Contractors & Other Agencies,Purchased Care Services,08.01.2016,1900954516,3000.00,BEAUCHAMP HOUSE,11007018
Somerset County Council,Adult Social Care,New Codes,SSom LT Phys Support - FNC,Third Party Payments,Private Contractors & Other Agencies,Purchased Care Services,08.01.2016,1900954516,448.00,BEAUCHAMP HOUSE,11007018
Somerset County Council,Adult Social Care,New Codes,SSom LT Phys Support - FNC,Third Party Payments,Private Contractors & Other Agencies,Purchased Care Services,08.01.2016,1900954516,448.00,BEAUCHAMP HOUSE,11007018
Somerset County Council,Adult Social Care,New Codes,SSom LT Phys Support - FNC,Third Party Payments,Private Contractors & Other Agencies,Purchased Care Services,08.01.2016,1900954516,448.00,BEAUCHAMP HOUSE,11007018
Somerset County Council,Adult Social Care,New Codes,SSom LT Phys Support - FNC,Third Party Payments,Private Contractors & Other Agencies,Purchased Care Services,08.01.2016,1900954516,448.00,BEAUCHAMP HOUSE,11007018
Somerset County Council,Adult Social Care,New Codes,SSom LT Phys Support - Res Spot,Third Party Payments,Private Contractors & Other Agencies,Purchased Care Services,08.01.2016,1900954516,1829.88,BEAUCHAMP HOUSE,11007018
Somerset County Council,Adult Social Care,New Codes,SSom LT Phys Support - Res Spot,Third Party Payments,Private Contractors & Other Agencies,Purchased Care Services,08.01.2016,1900954516,1829.88,BEAUCHAMP HOUSE,11007018
Somerset County Council,Adult Social Care,New Codes,Tton LT Phys Support - DPA Nursing,Third Party Payments,Private Contractors & Other Agencies,Purchased Care Services,08.01.2016,1900954516,-107.14,BEAUCHAMP HOUSE,11007018
Somerset County Council,Adult Social Care,New Codes,Tton LT Phys Support - DPA Nursing,Third Party Payments,Private Contractors & Other Agencies,Purchased Care Services,08.01.2016,1900954516,-1714.29,BEAUCHAMP HOUSE,11007018
Somerset County Council,Adult Social Care,New Codes,Tton LT Phys Support - DPA Nursing,Third Party Payments,Private Contractors & Other Agencies,Purchased Care Services,08.01.2016,1900954516,3000.00,BEAUCHAMP HOUSE,11007018
Somerset County Council,Adult Social Care,New Codes,Tton LT Phys Support - FNC,Third Party Payments,Private Contractors & Other Agencies,Purchased Care Services,08.01.2016,1900954516,448.00,BEAUCHAMP HOUSE,11007018
Somerset County Council,Adult Social Care,New Codes,Tton LT Phys Support - FNC,Third Party Payments,Private Contractors & Other Agencies,Purchased Care Services,08.01.2016,1900954516,448.00,BEAUCHAMP HOUSE,11007018
Somerset County Council,Adult Social Care,New Codes,Tton LT Phys Support - FNC,Third Party Payments,Private Contractors & Other Agencies,Purchased Care Services,08.01.2016,1900954516,448.00,BEAUCHAMP HOUSE,11007018
Somerset County Council,Adult Social Care,New Codes,Tton LT Phys Support - FNC,Third Party Payments,Private Contractors & Other Agencies,Purchased Care Services,08.01.2016,1900954516,448.00,BEAUCHAMP HOUSE,11007018
Somerset County Council,Adult Social Care,New Codes,Tton LT Phys Support - FNC,Third Party Payments,Private Contractors & Other Agencies,Purchased Care Services,08.01.2016,1900954516,448.00,BEAUCHAMP HOUSE,11007018
Somerset County Council,Adult Social Care,New Codes,Tton LT Phys Support - FNC,Third Party Payments,Private Contractors & Other Agencies,Purchased Care Services,08.01.2016,1900954516,448.00,BEAUCHAMP HOUSE,11007018
Somerset County Council,Adult Social Care,New Codes,Tton LT Phys Support - FNC,Third Party Payments,Private Contractors & Other Agencies,Purchased Care Services,08.01.2016,1900954516,448.00,BEAUCHAMP HOUSE,11007018
Somerset County Council,Adult Social Care,New Codes,Tton LT Phys Support - FNC,Third Party Payments,Private Contractors & Other Agencies,Purchased Care Services,08.01.2016,1900954516,272.00,BEAUCHAMP HOUSE,11007018
Somerset County Council,Adult Social Care,New Codes,Tton LT Phys Support - FNC,Third Party Payments,Private Contractors & Other Agencies,Purchased Care Services,08.01.2016,1900954516,-272.00,BEAUCHAMP HOUSE,11007018
Somerset County Council,Adult Social Care,New Codes,Tton LT Phys Support - FNC,Third Party Payments,Private Contractors & Other Agencies,Purchased Care Services,08.01.2016,1900954516,-144.00,BEAUCHAMP HOUSE,11007018
Somerset County Council,Adult Social Care,New Codes,Tton LT Phys Support - FNC,Third Party Payments,Private Contractors & Other Agencies,Purchased Care Services,08.01.2016,1900954516,448.00,BEAUCHAMP HOUSE,11007018
Somerset County Council,Adult Social Care,New Codes,Tton LT Phys Support - FNC,Third Party Payments,Private Contractors & Other Agencies,Purchased Care Services,08.01.2016,1900954516,448.00,BEAUCHAMP HOUSE,11007018
Somerset County Council,Adult Social Care,New Codes,Tton LT Phys Support - FNC,Third Party Payments,Private Contractors & Other Agencies,Purchased Care Services,08.01.2016,1900954516,448.00,BEAUCHAMP HOUSE,11007018
Somerset County Council,Adult Social Care,New Codes,Tton LT Phys Support - FNC,Third Party Payments,Private Contractors & Other Agencies,Purchased Care Services,08.01.2016,1900954516,448.00,BEAUCHAMP HOUSE,11007018
Somerset County Council,Adult Social Care,New Codes,Tton LT Phys Support - FNC,Third Party Payments,Private Contractors & Other Agencies,Purchased Care Services,08.01.2016,1900954516,448.00,BEAUCHAMP HOUSE,11007018
Somerset County Council,Adult Social Care,New Codes,Tton LT Phys Support - FNC,Third Party Payments,Private Contractors & Other Agencies,Purchased Care Services,08.01.2016,1900954516,448.00,BEAUCHAMP HOUSE,11007018
Somerset County Council,Adult Social Care,New Codes,Tton LT Phys Support - Nurs Spot,Third Party Payments,Private Contractors & Other Agencies,Purchased Care Services,08.01.2016,1900954516,1889.28,BEAUCHAMP HOUSE,11007018
Somerset County Council,Adult Social Care,New Codes,Tton LT Phys Support - Res Spot,Third Party Payments,Private Contractors & Other Agencies,Purchased Care Services,08.01.2016,1900954516,1829.88,BEAUCHAMP HOUSE,11007018
Somerset County Council,Adult Social Care,New Codes,Mdp LT Phys Support - Res Spot,Third Party Payments,Private Contractors & Other Agencies,Purchased Care Services,07.01.2016,1900953268,12636.00,Beaufort Grange,11038161
Somerset County Council,Adult Social Care,New Codes,Sdg LT Phys Support - Res Spot,Third Party Payments,Private Contractors & Other Agencies,Purchased Care Services,07.01.2016,1900953268,7200.00,Beaufort Grange,11038161
Somerset County Council,Adult Social Care,New Codes,Sdg LT Phys Support - Res Spot,Third Party Payments,Private Contractors & Other Agencies,Purchased Care Services,07.01.2016,1900953228,1829.88,Beaufort House,11006964
Somerset County Council,Adult Social Care,New Codes,Sdg LT Phys Support - Res Spot,Third Party Payments,Private Contractors & Other Agencies,Purchased Care Services,07.01.2016,1900953228,1829.88,Beaufort House,11006964
Somerset County Council,Adult Social Care,New Codes,Sdg LT Phys Support - Res Spot,Third Party Payments,Private Contractors & Other Agencies,Purchased Care Services,07.01.2016,1900953228,1829.88,Beaufort House,11006964
Somerset County Council,Adult Social Care,New Codes,Sdg LT Phys Support - Res Spot,Third Party Payments,Private Contractors & Other Agencies,Purchased Care Services,07.01.2016,1900953228,1829.88,Beaufort House,11006964
Somerset County Council,Adult Social Care,New Codes,Sdg LT Phys Support - Res Spot,Third Party Payments,Private Contractors & Other Agencies,Purchased Care Services,07.01.2016,1900953228,1829.88,Beaufort House,11006964
Somerset County Council,Adult Social Care,New Codes,Sdg LT Phys Support - Res Spot,Third Party Payments,Private Contractors & Other Agencies,Purchased Care Services,07.01.2016,1900953228,1829.88,Beaufort House,11006964
Somerset County Council,Adult Social Care,New Codes,Mdp LT Phys Support - Res Spot,Third Party Payments,Private Contractors & Other Agencies,Purchased Care Services,07.01.2016,1900953007,1829.88,BEECH TREE HOUSE,11007064
Somerset County Council,Adult Social Care,New Codes,Sdg LT Phys Support - DPA Residential,Third Party Payments,Private Contractors & Other Agencies,Purchased Care Services,07.01.2016,1900953007,2380.00,BEECH TREE HOUSE,11007064
Somerset County Council,Adult Social Care,New Codes,Sdg LT Phys Support - DPA Residential,Third Party Payments,Private Contractors & Other Agencies,Purchased Care Services,07.01.2016,1900953007,14450.00,BEECH TREE HOUSE,11007064
Somerset County Council,Adult Social Care,New Codes,SSom LT Phys Support - Res OPMH Spot,Third Party Payments,Private Contractors & Other Agencies,Purchased Care Services,07.01.2016,1900953007,2152.00,BEECH TREE HOUSE,11007064
Somerset County Council,Adult Social Care,New Codes,SSom LT Phys Support - Res Spot,Third Party Payments,Private Contractors & Other Agencies,Purchased Care Services,07.01.2016,1900953007,2000.00,BEECH TREE HOUSE,11007064
Somerset County Council,Adult Social Care,New Codes,SSom LT Phys Support - Res Spot,Third Party Payments,Private Contractors & Other Agencies,Purchased Care Services,07.01.2016,1900953007,1829.88,BEECH TREE HOUSE,11007064
Somerset County Council,Adult Social Care,New Codes,SSom LT Phys Support - Res Spot,Third Party Payments,Private Contractors & Other Agencies,Purchased Care Services,07.01.2016,1900953007,1829.88,BEECH TREE HOUSE,11007064
Somerset County Council,Adult Social Care,Learning Disabilities,LD-PUR-RS-Comm. Care-SDW,Third Party Payments,Private Contractors & Other Agencies,Purchased Care Services,25.01.2016,5100759028,13136.70,BEECHWOOD COURT LTD,11020995
Somerset County Council,Adult Social Care,Learning Disabilities,LD-PUR-RS-Comm. Care-SDW,Third Party Payments,Private Contractors & Other Agencies,Purchased Care Services,06.01.2016,5100754196,12712.93,BEECHWOOD COURT LTD,11020995
Somerset County Council,Adult Social Care,Learning Disabilities,LD-PUR-RS-Comm. Care-SDW,Third Party Payments,Private Contractors & Other Agencies,Purchased Services - Pers Care,06.01.2016,1900844045,-12678.88,BEECHWOOD COURT LTD,11020995
Somerset County Council,Adult Social Care,New Codes,SSom LT Phys Support - Res Spot,Third Party Payments,Private Contractors & Other Agencies,Purchased Care Services,07.01.2016,1900953001,1829.88,BEECHWOOD HOUSE LTD,11007033
Somerset County Council,Adult Social Care,Older People,ASC ME OP FNC Somerset,Third Party Payments,Private Contractors & Other Agencies,Purchased Care Services,28.01.2016,1900962536,3584.00,BELMONT VILLA RESIDENTIAL NURSING H,11007061
Somerset County Council,Adult Social Care,Learning Disabilities,LD-PUR-NC-Free Nursing Care-MDP,Third Party Payments,Private Contractors & Other Agencies,Purchased Care Services,08.01.2016,1900953037,448.00,BELMONT VILLA RESIDENTIAL NURSING H,11007061
Somerset County Council,Adult Social Care,Learning Disabilities,LD-PUR-NC-Free Nursing Care-MDP,Third Party Payments,Private Contractors & Other Agencies,Purchased Care Services,08.01.2016,1900953037,448.00,BELMONT VILLA RESIDENTIAL NURSING H,11007061
Somerset County Council,Adult Social Care,Learning Disabilities,LD-PUR-NC-Nursing-MDP,Third Party Payments,Private Contractors & Other Agencies,Purchased Care Services,08.01.2016,1900953037,1889.28,BELMONT VILLA RESIDENTIAL NURSING H,11007061
Somerset County Council,Adult Social Care,Learning Disabilities,LD-PUR-NC-Nursing-MDP,Third Party Payments,Private Contractors & Other Agencies,Purchased Care Services,08.01.2016,1900953037,2562.52,BELMONT VILLA RESIDENTIAL NURSING H,11007061
Somerset County Council,Adult Social Care,New Codes,Mdp LT Phys Support - FNC,Third Party Payments,Private Contractors & Other Agencies,Purchased Care Services,08.01.2016,1900954623,448.00,BELMONT VILLA RESIDENTIAL NURSING H,11007061
Somerset County Council,Adult Social Care,New Codes,Mdp LT Phys Support - FNC,Third Party Payments,Private Contractors & Other Agencies,Purchased Care Services,08.01.2016,1900954623,448.00,BELMONT VILLA RESIDENTIAL NURSING H,11007061
Somerset County Council,Adult Social Care,New Codes,Mdp LT Phys Support - FNC,Third Party Payments,Private Contractors & Other Agencies,Purchased Care Services,08.01.2016,1900954623,448.00,BELMONT VILLA RESIDENTIAL NURSING H,11007061
Somerset County Council,Adult Social Care,New Codes,Mdp LT Phys Support - FNC,Third Party Payments,Private Contractors & Other Agencies,Purchased Care Services,08.01.2016,1900954623,448.00,BELMONT VILLA RESIDENTIAL NURSING H,11007061
Somerset County Council,Adult Social Care,New Codes,Mdp LT Phys Support - FNC,Third Party Payments,Private Contractors & Other Agencies,Purchased Care Services,08.01.2016,1900954623,448.00,BELMONT VILLA RESIDENTIAL NURSING H,11007061
Somerset County Council,Adult Social Care,New Codes,Mdp LT Phys Support - FNC,Third Party Payments,Private Contractors & Other Agencies,Purchased Care Services,08.01.2016,1900954623,448.00,BELMONT VILLA RESIDENTIAL NURSING H,11007061
Somerset County Council,Adult Social Care,New Codes,Mdp LT Phys Support - FNC,Third Party Payments,Private Contractors & Other Agencies,Purchased Care Services,08.01.2016,1900954623,448.00,BELMONT VILLA RESIDENTIAL NURSING H,11007061
Somerset County Council,Adult Social Care,New Codes,Mdp LT Phys Support - FNC,Third Party Payments,Private Contractors & Other Agencies,Purchased Care Services,08.01.2016,1900954623,448.00,BELMONT VILLA RESIDENTIAL NURSING H,11007061
Somerset County Council,Adult Social Care,New Codes,Mdp LT Phys Support - FNC,Third Party Payments,Private Contractors & Other Agencies,Purchased Care Services,08.01.2016,1900954623,448.00,BELMONT VILLA RESIDENTIAL NURSING H,11007061
Somerset County Council,Adult Social Care,New Codes,Mdp LT Phys Support - FNC,Third Party Payments,Private Contractors & Other Agencies,Purchased Care Services,08.01.2016,1900954623,448.00,BELMONT VILLA RESIDENTIAL NURSING H,11007061
Somerset County Council,Adult Social Care,New Codes,Mdp LT Phys Support - Nurs Block,Third Party Payments,Private Contractors & Other Agencies,Purchased Care Services,28.01.2016,1900962536,15114.24,BELMONT VILLA RESIDENTIAL NURSING H,11007061
Somerset County Council,Adult Social Care,Learning Disabilities,LD-PUR-RS-Comm. Care-SDW,Third Party Payments,Private Contractors & Other Agencies,Purchased Care Services,07.01.2016,1900953111,7701.68,BENDALLS FARM,11007225
Somerset County Council,Adult Social Care,Learning Disabilities,LD-PUR-RS-Comm. Care-STH,Third Party Payments,Private Contractors & Other Agencies,Purchased Care Services,07.01.2016,1900953111,9391.00,BENDALLS FARM,11007225
Somerset County Council,Adult Social Care,Learning Disabilities,LD-PUR-RS-Comm. Care-STH,Third Party Payments,Private Contractors & Other Agencies,Purchased Care Services,07.01.2016,1900953111,9033.12,BENDALLS FARM,11007225
Somerset County Council,Adult Social Care,New Codes,Sdg LT Phys Support - Res Spot,Third Party Payments,Private Contractors & Other Agencies,Purchased Care Services,07.01.2016,1900953166,457.47,BLENHEIM LODGE,11006993
Somerset County Council,Adult Social Care,New Codes,Sdg LT Phys Support - Res Spot,Third Party Payments,Private Contractors & Other Agencies,Purchased Care Services,07.01.2016,1900953166,1829.88,BLENHEIM LODGE,11006993
Somerset County Council,Adult Social Care,New Codes,Sdg LT Phys Support - Res Spot,Third Party Payments,Private Contractors & Other Agencies,Purchased Care Services,07.01.2016,1900953166,1829.88,BLENHEIM LODGE,11006993
Somerset County Council,Adult Social Care,New Codes,Sdg LT Phys Support - Res Spot,Third Party Payments,Private Contractors & Other Agencies,Purchased Care Services,07.01.2016,1900953166,1829.88,BLENHEIM LODGE,11006993
Somerset County Council,Adult Social Care,New Codes,Sdg LT Phys Support - Res Spot,Third Party Payments,Private Contractors & Other Agencies,Purchased Care Services,07.01.2016,1900953166,1829.88,BLENHEIM LODGE,11006993
Somerset County Council,Adult Social Care,New Codes,Sdg LT Phys Support - Res Spot,Third Party Payments,Private Contractors & Other Agencies,Purchased Care Services,07.01.2016,1900953166,1829.88,BLENHEIM LODGE,11006993
Somerset County Council,Adult Social Care,New Codes,Sdg LT Phys Support - Res Spot,Third Party Payments,Private Contractors & Other Agencies,Purchased Care Services,07.01.2016,1900953166,1829.88,BLENHEIM LODGE,11006993
Somerset County Council,Adult Social Care,New Codes,Mdp LT Mem Support - Nurs OPMH Spot,Third Party Payments,Private Contractors & Other Agencies,Purchased Care Services,08.01.2016,1900954592,1920.00,BLOOMFIELD NURSING HOME,11006957
Somerset County Council,Adult Social Care,New Codes,Mdp LT Phys Support - Nurs OPMH Spot,Third Party Payments,Private Contractors & Other Agencies,Purchased Care Services,08.01.2016,1900954592,1908.44,BLOOMFIELD NURSING HOME,11006957
Somerset County Council,Adult Social Care,New Codes,Mdp LT Phys Support - Nurs Spot,Third Party Payments,Private Contractors & Other Agencies,Purchased Care Services,08.01.2016,1900954592,2552.00,BLOOMFIELD NURSING HOME,11006957
Somerset County Council,Adult Social Care,New Codes,Mdp LT Phys Support - Res Spot,Third Party Payments,Private Contractors & Other Agencies,Purchased Care Services,08.01.2016,1900954592,2600.00,BLOOMFIELD NURSING HOME,11006957
Somerset County Council,Adult Social Care,New Codes,SSom LT Phys Support - Homecare,Third Party Payments,Private Contractors & Other Agencies,Purchased Services - Pers Care,22.01.2016,5100758485,26137.08,Bluebird Care (South Somerset),11038184
Somerset County Council,Adult Social Care,New Codes,SSom LT Phys Support - Homecare,Third Party Payments,Private Contractors & Other Agencies,Purchased Services - Pers Care,22.01.2016,5100758488,15496.98,Bluebird Care (South Somerset),11038184
Somerset County Council,Adult Social Care,New Codes,SSom LT Phys Support - Sitting Service,Third Party Payments,Private Contractors & Other Agencies,Purchased Servs - Sitting Serv,22.01.2016,5100758485,2665.13,Bluebird Care (South Somerset),11038184
Somerset County Council,Adult Social Care,New Codes,Tton LT Phys Support - Homecare,Third Party Payments,Private Contractors & Other Agencies,Purchased Services - Pers Care,07.01.2016,5100751296,632.84,Bluebird Care (Taunton),11036990
Somerset County Council,Adult Social Care,New Codes,Tton LT Phys Support - Homecare,Third Party Payments,Private Contractors & Other Agencies,Purchased Services - Pers Care,07.01.2016,5100751306,1592.20,Bluebird Care (Taunton),11036990
Somerset County Council,Adult Social Care,New Codes,Mdp LT Phys Support - Homecare,Third Party Payments,Private Contractors & Other Agencies,Purchased Services - Pers Care,04.01.2016,5100752878,22577.02,Bluebird Care Mendip,11037239
Somerset County Council,Adult Social Care,New Codes,Mdp LT Phys Support - Homecare,Third Party Payments,Private Contractors & Other Agencies,Purchased Services - Pers Care,04.01.2016,5100752878,6225.00,Bluebird Care Mendip,11037239
Somerset County Council,Adult Social Care,New Codes,Mdp ST Phys Support - ILT,Third Party Payments,Private Contractors & Other Agencies,Purchased Services - Pers Care,04.01.2016,5100752878,1835.25,Bluebird Care Mendip,11037239
Somerset County Council,Adult Social Care,New Codes,Mdp LT Phys Support - Sitting Service,Third Party Payments,Private Contractors & Other Agencies,Purchased Servs - Sitting Serv,04.01.2016,5100752878,1775.98,Bluebird Care Mendip,11037239
Somerset County Council,Adult Social Care,Mental Health,ASC MH Residential,Third Party Payments,Private Contractors & Other Agencies,Purchased Care Services,22.01.2016,5100758292,32529.12,Bradbury House,11007275
Somerset County Council,Adult Social Care,Mental Health,ASC MH Residential,Third Party Payments,Private Contractors & Other Agencies,Purchased Care Services,22.01.2016,5100758291,62813.94,Bradbury House,11007275
Somerset County Council,Adult Social Care,Mental Health,ASC MH Residential,Third Party Payments,Private Contractors & Other Agencies,Purchased Care Services,22.01.2016,5100758290,29669.41,Bradbury House,11007275
Somerset County Council,Adult Social Care,Learning Disabilities,LD-PUR-DC-Day Care-MDP,Third Party Payments,Private Contractors & Other Agencies,Purchased Care Services,05.01.2016,5100753948,880.09,Bradbury House,11007275
Somerset County Council,Adult Social Care,Learning Disabilities,LD-PUR-RS-Comm. Care-MDP,Third Party Payments,Private Contractors & Other Agencies,Purchased Care Services,07.01.2016,1900953203,10262.56,Bradbury House,11007275
Somerset County Council,Adult Social Care,Learning Disabilities,LD-PUR-RS-Comm. Care-MDP,Third Party Payments,Private Contractors & Other Agencies,Purchased Care Services,07.01.2016,1900953203,10700.92,Bradbury House,11007275
Somerset County Council,Adult Social Care,Learning Disabilities,LD-PUR-RS-Comm. Care-MDP,Third Party Payments,Private Contractors & Other Agencies,Purchased Care Services,07.01.2016,1900953093,9000.00,Bradbury House,11007275
Somerset County Council,Adult Social Care,Learning Disabilities,LD-PUR-RS-Comm. Care-MDP,Third Party Payments,Private Contractors & Other Agencies,Purchased Care Services,07.01.2016,1900953093,8796.00,Bradbury House,11007275
Somerset County Council,Adult Social Care,Learning Disabilities,LD-PUR-RS-Comm. Care-MDP,Third Party Payments,Private Contractors & Other Agencies,Purchased Care Services,07.01.2016,1900953093,10392.72,Bradbury House,11007275
Somerset County Council,Adult Social Care,Learning Disabilities,LD-PUR-RS-Comm. Care-MDP,Third Party Payments,Private Contractors & Other Agencies,Purchased Care Services,07.01.2016,1900953093,10648.56,Bradbury House,11007275
Somerset County Council,Adult Social Care,Learning Disabilities,LD-PUR-RS-Comm. Care-MDP,Third Party Payments,Private Contractors & Other Agencies,Purchased Care Services,07.01.2016,1900953093,10796.68,Bradbury House,11007275
Somerset County Council,Adult Social Care,Learning Disabilities,LD-PUR-RS-Comm. Care-MDP,Third Party Payments,Private Contractors & Other Agencies,Purchased Care Services,07.01.2016,1900953093,13876.56,Bradbury House,11007275
Somerset County Council,Adult Social Care,Learning Disabilities,LD-PUR-RS-Comm. Care-MDP,Third Party Payments,Private Contractors & Other Agencies,Purchased Care Services,07.01.2016,1900953093,16502.80,Bradbury House,11007275
Somerset County Council,Adult Social Care,Learning Disabilities,LD-PUR-RS-Comm. Care-SDW,Third Party Payments,Private Contractors & Other Agencies,Purchased Care Services,07.01.2016,1900953110,6929.76,Bradbury House,11007275
Somerset County Council,Adult Social Care,Learning Disabilities,LD-PUR-RS-Comm. Care-STH,Third Party Payments,Private Contractors & Other Agencies,Purchased Care Services,07.01.2016,1900953110,7883.64,Bradbury House,11007275
Somerset County Council,Adult Social Care,Mental Health,ASC MH Supported Living,Third Party Payments,Private Contractors & Other Agencies,Purchased Care Services,13.01.2016,5100756217,778.00,Bradbury Outreach Services,11033711
Somerset County Council,Adult Social Care,Learning Disabilities,LD-PUR-CH-Care at Home-MDP,Third Party Payments,Private Contractors & Other Agencies,Purchased Care Services,13.01.2016,5100756215,4747.50,Bradbury Outreach Services,11033711
Somerset County Council,Adult Social Care,Learning Disabilities,LD-PUR-CH-Care at Home-MDP,Third Party Payments,Private Contractors & Other Agencies,Purchased Care Services,13.01.2016,5100756216,1200.00,Bradbury Outreach Services,11033711
Somerset County Council,Adult Social Care,Learning Disabilities,LD-PUR-CH-Care at Home-MDP,Third Party Payments,Private Contractors & Other Agencies,Purchased Care Services,13.01.2016,5100756217,778.00,Bradbury Outreach Services,11033711
Somerset County Council,Adult Social Care,Learning Disabilities,LD-PUR-CH-Care at Home-MDP,Third Party Payments,Private Contractors & Other Agencies,Purchased Care Services,13.01.2016,5100756219,675.00,Bradbury Outreach Services,11033711
Somerset County Council,Adult Social Care,Learning Disabilities,LD-PUR-CH-Care at Home-MDP,Third Party Payments,Private Contractors & Other Agencies,Purchased Care Services,22.01.2016,5100758792,4088.00,Bradbury Outreach Services,11033711
Somerset County Council,Adult Social Care,Learning Disabilities,LD-PUR-CH-Care at Home-MDP,Third Party Payments,Private Contractors & Other Agencies,Purchased Care Services,22.01.2016,5100758793,1244.80,Bradbury Outreach Services,11033711
Somerset County Council,Adult Social Care,Learning Disabilities,LD-PUR-CH-Care at Home-MDP,Third Party Payments,Private Contractors & Other Agencies,Purchased Care Services,22.01.2016,5100758791,1440.00,Bradbury Outreach Services,11033711
Somerset County Council,Adult Social Care,Learning Disabilities,LD-PUR-DC-Day Care-MDP,Third Party Payments,Private Contractors & Other Agencies,Purchased Care Services,13.01.2016,5100756218,1820.00,Bradbury Outreach Services,11033711
Somerset County Council,Adult Social Care,Learning Disabilities,LD-PUR-DC-Day Care-MDP,Third Party Payments,Private Contractors & Other Agencies,Purchased Care Services,29.01.2016,5100760385,1680.00,Bradbury Outreach Services,11033711
Somerset County Council,Adult Social Care,New Codes,Mdp LT Phys Support - Homecare,Third Party Payments,Private Contractors & Other Agencies,Purchased Services - Pers Care,19.01.2016,5100757219,740.00,Bradbury Outreach Services,11033711
Somerset County Council,Adult Social Care,New Codes,Mdp LT Phys Support - Homecare,Third Party Payments,Private Contractors & Other Agencies,Purchased Services - Pers Care,19.01.2016,5100757223,1010.00,Bradbury Outreach Services,11033711
Somerset County Council,Adult Social Care,New Codes,Mdp LT Phys Support - Homecare,Third Party Payments,Private Contractors & Other Agencies,Purchased Services - Pers Care,19.01.2016,5100757222,640.00,Bradbury Outreach Services,11033711
Somerset County Council,Adult Social Care,New Codes,Mdp LT Phys Support - Homecare,Third Party Payments,Private Contractors & Other Agencies,Purchased Services - Pers Care,19.01.2016,5100757221,800.00,Bradbury Outreach Services,11033711
Somerset County Council,Adult Social Care,Learning Disabilities,LD-SCC-DS-Future4 Yeovil-STH,Supplies & Services,Catering,Food & Drink,29.01.2016,5100760218,402.07,BRAKE BROS LTD,11014844
Somerset County Council,Adult Social Care,Learning Disabilities,LD-SCC-DS-Future4 Yeovil-STH,Supplies & Services,Catering,Food & Drink,29.01.2016,5100760218,281.86,BRAKE BROS LTD,11014844
Somerset County Council,Adult Social Care,Joint Equipment Service,Integrated Community Equipment Service,Supplies & Services,Equipment Furniture & Materials,Equipment Repairs & Maintenance,04.01.2016,5100750045,1000.00,Brian Hobbs & Sons Limited,13002293
Somerset County Council,Adult Social Care,Learning Disabilities,LD-SCC-Future4 Bridgwater-MDP,Premises,Rents,Rents,14.01.2016,5100756363,3307.94,Bridgwater YMCA,11005686
Somerset County Council,Adult Social Care,Learning Disabilities,LD-SCC-DS-Future4 Yeovil-STH,Premises,Water Services,Water Charges/Sewerages,07.01.2016,5100754340,607.46,Bristol Wessex Billing Service Ltd,11003580
Somerset County Council,Adult Social Care,Learning Disabilities,LD-SCC-DS-Future4 Yeovil-STH,Premises,Water Services,Water Charges/Sewerages,22.01.2016,5100758227,1477.73,Bristol Wessex Billing Service Ltd,11003580
Somerset County Council,Adult Social Care,Learning Disabilities,LD-SCC-Future4 Chard-STH,Premises,Water Services,Water Charges/Sewerages,15.01.2016,5100756718,710.92,Bristol Wessex Billing Service Ltd,11003580
Somerset County Council,Adult Social Care,Learning Disabilities,LD-SCC-RS-Newholme-TNT,Premises,Water Services,Water Charges/Sewerages,29.01.2016,5100760221,2695.71,Bristol Wessex Billing Service Ltd,11003580
Somerset County Council,Adult Social Care,Learning Disabilities,LD-SCC-RS-The Maples-STH,Premises,Water Services,Water Charges/Sewerages,15.01.2016,5100756810,1159.49,Bristol Wessex Billing Service Ltd,11003580
Somerset County Council,Adult Social Care,Learning Disabilities,LD-SCC-RS-The Old Farmhouse-STH,Premises,Water Services,Water Charges/Sewerages,12.01.2016,5100755562,957.28,Bristol Wessex Billing Service Ltd,11003580
Somerset County Council,Adult Social Care,Learning Disabilities,LD-SCC-RS-The Old Farmhouse-STH,Premises,Water Services,Water Charges/Sewerages,13.01.2016,5100756195,635.95,Bristol Wessex Billing Service Ltd,11003580
Somerset County Council,Adult Social Care,Older People,ASC TA OP Reablement,Premises,Energy Costs,Electricity,28.01.2016,5100759941,427.50,BRITISH GAS,11000326
Somerset County Council,Adult Social Care,Older People,ASC TA OP Reablement,Premises,Energy Costs,Electricity,22.01.2016,5100758563,349.87,BRITISH GAS,11000326
Somerset County Council,Adult Social Care,Older People,ASC TA OP Reablement,Premises,Energy Costs,Electricity,22.01.2016,5100758562,382.24,BRITISH GAS,11000326
Somerset County Council,Adult Social Care,Older People,ASC TA OP Reablement,Premises,Energy Costs,Electricity,22.01.2016,5100758561,745.55,BRITISH GAS,11000326
Somerset County Council,Adult Social Care,Older People,ASC TA OP Reablement,Premises,Energy Costs,Electricity,22.01.2016,5100758558,361.37,BRITISH GAS,11000326
Somerset County Council,Adult Social Care,Older People,ASC TA OP Reablement,Premises,Energy Costs,Electricity,22.01.2016,1700042567,-290.79,BRITISH GAS,11000326
Somerset County Council,Adult Social Care,Older People,ASC TA OP Reablement,Premises,Energy Costs,Electricity,22.01.2016,1700042566,-301.79,BRITISH GAS,11000326
Somerset County Council,Adult Social Care,Older People,ASC TA OP Reablement,Premises,Energy Costs,Electricity,22.01.2016,1700042565,-691.31,BRITISH GAS,11000326
Somerset County Council,Adult Social Care,Older People,ASC TA OP Reablement,Premises,Energy Costs,Electricity,22.01.2016,1700042564,-347.95,BRITISH GAS,11000326
Somerset County Council,Adult Social Care,Older People,ASC TA OP Reablement,Premises,Energy Costs,Electricity,22.01.2016,1700042563,-299.91,BRITISH GAS,11000326
Somerset County Council,Adult Social Care,Older People,ASC TA OP Reablement,Premises,Energy Costs,Electricity,27.01.2016,5100759284,240.82,BRITISH GAS,11000326
Somerset County Council,Adult Social Care,Older People,ASC TA OP Reablement,Premises,Energy Costs,Electricity,22.01.2016,1700042562,-287.56,BRITISH GAS,11000326
Somerset County Council,Adult Social Care,Learning Disabilities,LD-SCC-DS-Future4 Taunton-TNT,Premises,Energy Costs,Electricity,18.01.2016,5100757088,1503.02,BRITISH GAS,11000326
Somerset County Council,Adult Social Care,Learning Disabilities,LD-SCC-DS-Future4 Yeovil-STH,Premises,Energy Costs,Electricity,07.01.2016,5100754339,1821.92,BRITISH GAS,11000326
Somerset County Council,Adult Social Care,Learning Disabilities,LD-SCC-DS-Future4 Yeovil-STH,Premises,Energy Costs,Electricity,20.01.2016,5100757806,556.41,BRITISH GAS,11000326
Somerset County Council,Adult Social Care,Learning Disabilities,LD-SCC-RS-Ashbury-TNT,Premises,Energy Costs,Electricity,12.01.2016,5100755687,545.36,BRITISH GAS,11000326
Somerset County Council,Adult Social Care,Learning Disabilities,LD-SCC-RS-Ashbury-TNT,Premises,Energy Costs,Electricity,26.01.2016,5100759106,555.32,BRITISH GAS,11000326
Somerset County Council,Adult Social Care,Learning Disabilities,LD-SCC-RS-Eldermere-MDP,Premises,Energy Costs,Electricity,22.01.2016,5100758660,454.92,BRITISH GAS,11000326
Somerset County Council,Adult Social Care,Learning Disabilities,LD-SCC-RS-Newholme-TNT,Premises,Energy Costs,Electricity,15.01.2016,5100756833,443.95,BRITISH GAS,11000326
Somerset County Council,Adult Social Care,Learning Disabilities,LD-SCC-RS-Oak Bungalow & Meadow View-TNT,Premises,Energy Costs,Electricity,12.01.2016,5100755687,121.19,BRITISH GAS,11000326
Somerset County Council,Adult Social Care,Learning Disabilities,LD-SCC-RS-Oak Bungalow & Meadow View-TNT,Premises,Energy Costs,Electricity,26.01.2016,5100759106,123.41,BRITISH GAS,11000326
Somerset County Council,Adult Social Care,Learning Disabilities,LD-SCC-RS-Springview-STH,Premises,Energy Costs,Electricity,12.01.2016,5100755556,477.72,BRITISH GAS,11000326
Somerset County Council,Adult Social Care,Learning Disabilities,LD-SCC-RS-The Brambles-TNT,Premises,Energy Costs,Electricity,12.01.2016,5100755687,545.35,BRITISH GAS,11000326
Somerset County Council,Adult Social Care,Learning Disabilities,LD-SCC-RS-The Brambles-TNT,Premises,Energy Costs,Electricity,26.01.2016,5100759106,555.31,BRITISH GAS,11000326
Somerset County Council,Adult Social Care,Learning Disabilities,LD-SCC-RS-The Maples-STH,Premises,Energy Costs,Electricity,15.01.2016,5100756829,418.79,BRITISH GAS,11000326
Somerset County Council,Adult Social Care,Learning Disabilities,LD-SCC-RS-The Old Farmhouse-STH,Premises,Energy Costs,Electricity,04.01.2016,5100753311,669.71,BRITISH GAS,11000326
Somerset County Council,Adult Social Care,Learning Disabilities,LD-SCC-RS-The Old Farmhouse-STH,Premises,Energy Costs,Electricity,22.01.2016,5100758662,713.91,BRITISH GAS,11000326
Somerset County Council,Adult Social Care,Learning Disabilities,LD-SCC-Future4 Bridgwater-MDP,Transport,Public Transport,Travel fares,20.01.2016,5100757839,851.40,Broadway Taxis Ltd,11007461
Somerset County Council,Adult Social Care,Older People,ASC ME OP FNC Somerset,Third Party Payments,Private Contractors & Other Agencies,Purchased Care Services,28.01.2016,1900962530,2240.00,Brunelcare,11000332
Somerset County Council,Adult Social Care,New Codes,Mdp LT Phys Support - DPA Nursing,Third Party Payments,Private Contractors & Other Agencies,Purchased Care Services,08.01.2016,1900954584,3200.00,Brunelcare,11000332
Somerset County Council,Adult Social Care,New Codes,Mdp LT Phys Support - FNC,Third Party Payments,Private Contractors & Other Agencies,Purchased Care Services,08.01.2016,1900954584,448.00,Brunelcare,11000332
Somerset County Council,Adult Social Care,New Codes,Mdp LT Phys Support - FNC,Third Party Payments,Private Contractors & Other Agencies,Purchased Care Services,08.01.2016,1900954584,448.00,Brunelcare,11000332
Somerset County Council,Adult Social Care,New Codes,Mdp LT Phys Support - FNC,Third Party Payments,Private Contractors & Other Agencies,Purchased Care Services,08.01.2016,1900954584,448.00,Brunelcare,11000332
Somerset County Council,Adult Social Care,New Codes,Mdp LT Phys Support - FNC,Third Party Payments,Private Contractors & Other Agencies,Purchased Care Services,08.01.2016,1900954584,448.00,Brunelcare,11000332
Somerset County Council,Adult Social Care,New Codes,Mdp LT Phys Support - FNC,Third Party Payments,Private Contractors & Other Agencies,Purchased Care Services,08.01.2016,1900954584,448.00,Brunelcare,11000332
Somerset County Council,Adult Social Care,New Codes,Mdp LT Phys Support - FNC,Third Party Payments,Private Contractors & Other Agencies,Purchased Care Services,08.01.2016,1900954584,448.00,Brunelcare,11000332
Somerset County Council,Adult Social Care,New Codes,Mdp LT Phys Support - FNC,Third Party Payments,Private Contractors & Other Agencies,Purchased Care Services,08.01.2016,1900954584,448.00,Brunelcare,11000332
Somerset County Council,Adult Social Care,New Codes,Mdp LT Phys Support - FNC,Third Party Payments,Private Contractors & Other Agencies,Purchased Care Services,08.01.2016,1900954584,448.00,Brunelcare,11000332
Somerset County Council,Adult Social Care,New Codes,Mdp LT Phys Support - FNC,Third Party Payments,Private Contractors & Other Agencies,Purchased Care Services,08.01.2016,1900954584,448.00,Brunelcare,11000332
Somerset County Council,Adult Social Care,New Codes,Mdp LT Phys Support - FNC,Third Party Payments,Private Contractors & Other Agencies,Purchased Care Services,08.01.2016,1900954584,448.00,Brunelcare,11000332
Somerset County Council,Adult Social Care,New Codes,Mdp LT Phys Support - FNC,Third Party Payments,Private Contractors & Other Agencies,Purchased Care Services,08.01.2016,1900954584,448.00,Brunelcare,11000332
Somerset County Council,Adult Social Care,New Codes,Mdp LT Phys Support - FNC,Third Party Payments,Private Contractors & Other Agencies,Purchased Care Services,08.01.2016,1900954584,448.00,Brunelcare,11000332
Somerset County Council,Adult Social Care,New Codes,Mdp LT Phys Support - FNC,Third Party Payments,Private Contractors & Other Agencies,Purchased Care Services,08.01.2016,1900954584,448.00,Brunelcare,11000332
Somerset County Council,Adult Social Care,New Codes,Mdp LT Phys Support - FNC,Third Party Payments,Private Contractors & Other Agencies,Purchased Care Services,08.01.2016,1900954584,448.00,Brunelcare,11000332
Somerset County Council,Adult Social Care,New Codes,Mdp LT Phys Support - FNC,Third Party Payments,Private Contractors & Other Agencies,Purchased Care Services,08.01.2016,1900954584,448.00,Brunelcare,11000332
Somerset County Council,Adult Social Care,New Codes,Mdp LT Phys Support - FNC,Third Party Payments,Private Contractors & Other Agencies,Purchased Care Services,08.01.2016,1900954584,448.00,Brunelcare,11000332
Somerset County Council,Adult Social Care,New Codes,Mdp LT Phys Support - FNC,Third Party Payments,Private Contractors & Other Agencies,Purchased Care Services,08.01.2016,1900954584,448.00,Brunelcare,11000332
Somerset County Council,Adult Social Care,New Codes,Mdp LT Phys Support - FNC,Third Party Payments,Private Contractors & Other Agencies,Purchased Care Services,08.01.2016,1900954584,448.00,Brunelcare,11000332
Somerset County Council,Adult Social Care,New Codes,Mdp LT Phys Support - FNC,Third Party Payments,Private Contractors & Other Agencies,Purchased Care Services,08.01.2016,1900954584,448.00,Brunelcare,11000332
Somerset County Council,Adult Social Care,New Codes,Mdp LT Phys Support - FNC,Third Party Payments,Private Contractors & Other Agencies,Purchased Care Services,08.01.2016,1900954584,448.00,Brunelcare,11000332
Somerset County Council,Adult Social Care,New Codes,Mdp LT Phys Support - FNC,Third Party Payments,Private Contractors & Other Agencies,Purchased Care Services,08.01.2016,1900954584,448.00,Brunelcare,11000332
Somerset County Council,Adult Social Care,New Codes,Mdp LT Phys Support - FNC,Third Party Payments,Private Contractors & Other Agencies,Purchased Care Services,08.01.2016,1900954584,448.00,Brunelcare,11000332
Somerset County Council,Adult Social Care,New Codes,Mdp LT Phys Support - FNC,Third Party Payments,Private Contractors & Other Agencies,Purchased Care Services,08.01.2016,1900954584,448.00,Brunelcare,11000332
Somerset County Council,Adult Social Care,New Codes,Mdp LT Phys Support - FNC,Third Party Payments,Private Contractors & Other Agencies,Purchased Care Services,08.01.2016,1900954584,448.00,Brunelcare,11000332
Somerset County Council,Adult Social Care,New Codes,Mdp LT Phys Support - FNC,Third Party Payments,Private Contractors & Other Agencies,Purchased Care Services,08.01.2016,1900954584,64.00,Brunelcare,11000332
Somerset County Council,Adult Social Care,New Codes,Mdp LT Phys Support - FNC,Third Party Payments,Private Contractors & Other Agencies,Purchased Care Services,08.01.2016,1900954584,48.00,Brunelcare,11000332
Somerset County Council,Adult Social Care,New Codes,Mdp LT Phys Support - FNC,Third Party Payments,Private Contractors & Other Agencies,Purchased Care Services,08.01.2016,1900954584,-1088.00,Brunelcare,11000332
Somerset County Council,Adult Social Care,New Codes,Mdp LT Phys Support - FNC,Third Party Payments,Private Contractors & Other Agencies,Purchased Care Services,08.01.2016,1900954584,448.00,Brunelcare,11000332
Somerset County Council,Adult Social Care,New Codes,Mdp LT Phys Support - FNC,Third Party Payments,Private Contractors & Other Agencies,Purchased Care Services,08.01.2016,1900954584,3024.00,Brunelcare,11000332
Somerset County Council,Adult Social Care,New Codes,Mdp LT Phys Support - FNC,Third Party Payments,Private Contractors & Other Agencies,Purchased Care Services,08.01.2016,1900954584,448.00,Brunelcare,11000332
Somerset County Council,Adult Social Care,New Codes,Mdp LT Phys Support - FNC,Third Party Payments,Private Contractors & Other Agencies,Purchased Care Services,08.01.2016,1900954584,448.00,Brunelcare,11000332
Somerset County Council,Adult Social Care,New Codes,Mdp LT Phys Support - FNC,Third Party Payments,Private Contractors & Other Agencies,Purchased Care Services,08.01.2016,1900954584,448.00,Brunelcare,11000332
Somerset County Council,Adult Social Care,New Codes,Mdp LT Phys Support - FNC,Third Party Payments,Private Contractors & Other Agencies,Purchased Care Services,08.01.2016,1900954584,448.00,Brunelcare,11000332
Somerset County Council,Adult Social Care,New Codes,Mdp LT Phys Support - FNC,Third Party Payments,Private Contractors & Other Agencies,Purchased Care Services,08.01.2016,1900954584,448.00,Brunelcare,11000332
Somerset County Council,Adult Social Care,New Codes,Mdp LT Phys Support - FNC,Third Party Payments,Private Contractors & Other Agencies,Purchased Care Services,08.01.2016,1900954584,448.00,Brunelcare,11000332
Somerset County Council,Adult Social Care,New Codes,Mdp LT Phys Support - FNC,Third Party Payments,Private Contractors & Other Agencies,Purchased Care Services,08.01.2016,1900954584,448.00,Brunelcare,11000332
Somerset County Council,Adult Social Care,New Codes,Mdp LT Phys Support - Nurs Block,Third Party Payments,Private Contractors & Other Agencies,Purchased Care Services,28.01.2016,1900962530,9446.40,Brunelcare,11000332
Somerset County Council,Adult Social Care,New Codes,Mdp LT Phys Support - Nurs Spot,Third Party Payments,Private Contractors & Other Agencies,Purchased Care Services,08.01.2016,1900954584,210.86,Brunelcare,11000332
Somerset County Council,Adult Social Care,New Codes,Mdp LT Phys Support - Nurs Spot,Third Party Payments,Private Contractors & Other Agencies,Purchased Care Services,08.01.2016,1900954584,225.14,Brunelcare,11000332
Somerset County Council,Adult Social Care,New Codes,Mdp LT Phys Support - Nurs Spot,Third Party Payments,Private Contractors & Other Agencies,Purchased Care Services,08.01.2016,1900954584,13916.57,Brunelcare,11000332
Somerset County Council,Adult Social Care,New Codes,Mdp LT Phys Support - Nurs Spot,Third Party Payments,Private Contractors & Other Agencies,Purchased Care Services,08.01.2016,1900954584,4788.00,Brunelcare,11000332
Somerset County Council,Adult Social Care,New Codes,Mdp LT Phys Support - Nurs Spot,Third Party Payments,Private Contractors & Other Agencies,Purchased Care Services,08.01.2016,1900954584,3552.00,Brunelcare,11000332
Somerset County Council,Adult Social Care,New Codes,Mdp LT Phys Support - Nurs Spot,Third Party Payments,Private Contractors & Other Agencies,Purchased Care Services,08.01.2016,1900954584,2952.00,Brunelcare,11000332
Somerset County Council,Adult Social Care,New Codes,Mdp LT Phys Support - Nurs Spot,Third Party Payments,Private Contractors & Other Agencies,Purchased Care Services,08.01.2016,1900954584,2741.14,Brunelcare,11000332
Somerset County Council,Adult Social Care,New Codes,Mdp LT Phys Support - Nurs Spot,Third Party Payments,Private Contractors & Other Agencies,Purchased Care Services,08.01.2016,1900954584,2648.00,Brunelcare,11000332
Somerset County Council,Adult Social Care,New Codes,Mdp LT Phys Support - Nurs Spot,Third Party Payments,Private Contractors & Other Agencies,Purchased Care Services,08.01.2016,1900954584,1889.28,Brunelcare,11000332
Somerset County Council,Adult Social Care,New Codes,Mdp LT Phys Support - Nurs Spot,Third Party Payments,Private Contractors & Other Agencies,Purchased Care Services,08.01.2016,1900954584,1889.28,Brunelcare,11000332
Somerset County Council,Adult Social Care,New Codes,Mdp LT Phys Support - Nurs Spot,Third Party Payments,Private Contractors & Other Agencies,Purchased Care Services,08.01.2016,1900954584,1889.28,Brunelcare,11000332
Somerset County Council,Adult Social Care,New Codes,Mdp LT Phys Support - Nurs Spot,Third Party Payments,Private Contractors & Other Agencies,Purchased Care Services,08.01.2016,1900954584,1889.28,Brunelcare,11000332
Somerset County Council,Adult Social Care,New Codes,Mdp LT Phys Support - Nurs Spot,Third Party Payments,Private Contractors & Other Agencies,Purchased Care Services,08.01.2016,1900954584,1889.28,Brunelcare,11000332
Somerset County Council,Adult Social Care,New Codes,Mdp LT Phys Support - Res OPMH Spot,Third Party Payments,Private Contractors & Other Agencies,Purchased Care Services,08.01.2016,1900954584,2562.32,Brunelcare,11000332
Somerset County Council,Adult Social Care,New Codes,Mdp LT Phys Support - Res Spot,Third Party Payments,Private Contractors & Other Agencies,Purchased Care Services,08.01.2016,1900954584,2300.36,Brunelcare,11000332
Somerset County Council,Adult Social Care,New Codes,Mdp LT Phys Support - Res Spot,Third Party Payments,Private Contractors & Other Agencies,Purchased Care Services,08.01.2016,1900954584,1829.88,Brunelcare,11000332
Somerset County Council,Adult Social Care,New Codes,Mdp LT Phys Support - Res Spot,Third Party Payments,Private Contractors & Other Agencies,Purchased Care Services,08.01.2016,1900954584,1829.88,Brunelcare,11000332
Somerset County Council,Adult Social Care,New Codes,Mdp LT Phys Support - Res Spot,Third Party Payments,Private Contractors & Other Agencies,Purchased Care Services,08.01.2016,1900954584,1829.88,Brunelcare,11000332
Somerset County Council,Adult Social Care,New Codes,Mdp ST Phys Support - Interim & Intermed,Third Party Payments,Private Contractors & Other Agencies,Purchased Care Services,08.01.2016,1900954584,407.14,Brunelcare,11000332
Somerset County Council,Adult Social Care,New Codes,Mdp ST Phys Support - Respite,Third Party Payments,Private Contractors & Other Agencies,Purchased Care Services,08.01.2016,1900954584,957.71,Brunelcare,11000332
Somerset County Council,Adult Social Care,New Codes,SSom LT Phys Support - Nurs Spot,Third Party Payments,Private Contractors & Other Agencies,Purchased Care Services,08.01.2016,1900954584,3352.00,Brunelcare,11000332
Somerset County Council,Adult Social Care,New Codes,SSom LT Phys Support - Nurs Spot,Third Party Payments,Private Contractors & Other Agencies,Purchased Care Services,08.01.2016,1900954584,1889.28,Brunelcare,11000332
Somerset County Council,Adult Social Care,Older People,ASC SE OP Homecare Adv Payments,Third Party Payments,Private Contractors & Other Agencies,Purchased Care Services,14.01.2016,1700042416,-179889.80,BRUNELCARE COMMUNITY SERVICES,11010210
Somerset County Council,Adult Social Care,Older People,ASC CE Homecare Validation,Third Party Payments,Private Contractors & Other Agencies,Purchased Services - Pers Care,14.01.2016,1700042416,9094.90,BRUNELCARE COMMUNITY SERVICES,11010210
Somerset County Council,Adult Social Care,Older People,ASC SE OP Homecare Adv Payments,Third Party Payments,Private Contractors & Other Agencies,Purchased Services - Pers Care,14.01.2016,5100755961,179889.00,BRUNELCARE COMMUNITY SERVICES,11010210
Somerset County Council,Adult Social Care,Older People,ASC SE OP Reablement,Third Party Payments,Private Contractors & Other Agencies,Purchased Services - Pers Care,14.01.2016,5100755961,28375.92,BRUNELCARE COMMUNITY SERVICES,11010210
Somerset County Council,Adult Social Care,New Codes,Sdg LT Mem Support - Homecare,Third Party Payments,Private Contractors & Other Agencies,Purchased Services - Pers Care,14.01.2016,1700042416,3445.20,BRUNELCARE COMMUNITY SERVICES,11010210
Somerset County Council,Adult Social Care,New Codes,Sdg LT Phys Support - Homecare,Third Party Payments,Private Contractors & Other Agencies,Purchased Services - Pers Care,14.01.2016,1700042416,120995.60,BRUNELCARE COMMUNITY SERVICES,11010210
Somerset County Council,Adult Social Care,New Codes,Sdg LT Phys Support - Sitting Service,Third Party Payments,Private Contractors & Other Agencies,Purchased Services - Pers Care,14.01.2016,1700042416,3991.68,BRUNELCARE COMMUNITY SERVICES,11010210
Somerset County Council,Adult Social Care,New Codes,Sdg LT Sens Support - Homecare,Third Party Payments,Private Contractors & Other Agencies,Purchased Services - Pers Care,14.01.2016,1700042416,1946.04,BRUNELCARE COMMUNITY SERVICES,11010210
Somerset County Council,Adult Social Care,New Codes,Sdg LT Mem Support - Sitting Service,Third Party Payments,Private Contractors & Other Agencies,Purchased Servs - Sitting Serv,14.01.2016,1700042416,1679.04,BRUNELCARE COMMUNITY SERVICES,11010210
Somerset County Council,Adult Social Care,New Codes,Sdg LT Phys Support - Sitting Service,Third Party Payments,Private Contractors & Other Agencies,Purchased Servs - Sitting Serv,14.01.2016,1700042416,10348.92,BRUNELCARE COMMUNITY SERVICES,11010210
Somerset County Council,Adult Social Care,Older People,ASC SE OP FNC Somerset,Third Party Payments,Private Contractors & Other Agencies,Purchased Care Services,28.01.2016,1900962643,3584.00,Bupa Care Services The Burnham,11007077
Somerset County Council,Adult Social Care,New Codes,Sdg LT Phys Support - DPA Nursing,Third Party Payments,Private Contractors & Other Agencies,Purchased Care Services,07.01.2016,1900953252,-14034.65,Bupa Care Services The Burnham,11007077
Somerset County Council,Adult Social Care,New Codes,Sdg LT Phys Support - DPA Nursing,Third Party Payments,Private Contractors & Other Agencies,Purchased Care Services,07.01.2016,1900953252,1889.28,Bupa Care Services The Burnham,11007077
Somerset County Council,Adult Social Care,New Codes,Sdg LT Phys Support - DPA Nursing,Third Party Payments,Private Contractors & Other Agencies,Purchased Care Services,07.01.2016,1900953252,1889.28,Bupa Care Services The Burnham,11007077
Somerset County Council,Adult Social Care,New Codes,Sdg LT Phys Support - FNC,Third Party Payments,Private Contractors & Other Agencies,Purchased Care Services,07.01.2016,1900953252,448.00,Bupa Care Services The Burnham,11007077
Somerset County Council,Adult Social Care,New Codes,Sdg LT Phys Support - FNC,Third Party Payments,Private Contractors & Other Agencies,Purchased Care Services,07.01.2016,1900953252,448.00,Bupa Care Services The Burnham,11007077
Somerset County Council,Adult Social Care,New Codes,Sdg LT Phys Support - FNC,Third Party Payments,Private Contractors & Other Agencies,Purchased Care Services,07.01.2016,1900953252,448.00,Bupa Care Services The Burnham,11007077
Somerset County Council,Adult Social Care,New Codes,Sdg LT Phys Support - FNC,Third Party Payments,Private Contractors & Other Agencies,Purchased Care Services,07.01.2016,1900953252,448.00,Bupa Care Services The Burnham,11007077
Somerset County Council,Adult Social Care,New Codes,Sdg LT Phys Support - FNC,Third Party Payments,Private Contractors & Other Agencies,Purchased Care Services,07.01.2016,1900953252,448.00,Bupa Care Services The Burnham,11007077
Somerset County Council,Adult Social Care,New Codes,Sdg LT Phys Support - FNC,Third Party Payments,Private Contractors & Other Agencies,Purchased Care Services,07.01.2016,1900953252,448.00,Bupa Care Services The Burnham,11007077
Somerset County Council,Adult Social Care,New Codes,Sdg LT Phys Support - FNC,Third Party Payments,Private Contractors & Other Agencies,Purchased Care Services,07.01.2016,1900953252,448.00,Bupa Care Services The Burnham,11007077
Somerset County Council,Adult Social Care,New Codes,Sdg LT Phys Support - FNC,Third Party Payments,Private Contractors & Other Agencies,Purchased Care Services,07.01.2016,1900953252,448.00,Bupa Care Services The Burnham,11007077
Somerset County Council,Adult Social Care,New Codes,Sdg LT Phys Support - FNC,Third Party Payments,Private Contractors & Other Agencies,Purchased Care Services,07.01.2016,1900953252,448.00,Bupa Care Services The Burnham,11007077
Somerset County Council,Adult Social Care,New Codes,Sdg LT Phys Support - FNC,Third Party Payments,Private Contractors & Other Agencies,Purchased Care Services,07.01.2016,1900953252,448.00,Bupa Care Services The Burnham,11007077
Somerset County Council,Adult Social Care,New Codes,Sdg LT Phys Support - FNC,Third Party Payments,Private Contractors & Other Agencies,Purchased Care Services,07.01.2016,1900953252,448.00,Bupa Care Services The Burnham,11007077
Somerset County Council,Adult Social Care,New Codes,Sdg LT Phys Support - FNC,Third Party Payments,Private Contractors & Other Agencies,Purchased Care Services,07.01.2016,1900953252,448.00,Bupa Care Services The Burnham,11007077
Somerset County Council,Adult Social Care,New Codes,Sdg LT Phys Support - FNC,Third Party Payments,Private Contractors & Other Agencies,Purchased Care Services,07.01.2016,1900953252,448.00,Bupa Care Services The Burnham,11007077
Somerset County Council,Adult Social Care,New Codes,Sdg LT Phys Support - FNC,Third Party Payments,Private Contractors & Other Agencies,Purchased Care Services,07.01.2016,1900953252,224.00,Bupa Care Services The Burnham,11007077
Somerset County Council,Adult Social Care,New Codes,Sdg LT Phys Support - FNC,Third Party Payments,Private Contractors & Other Agencies,Purchased Care Services,07.01.2016,1900953252,3328.00,Bupa Care Services The Burnham,11007077
Somerset County Council,Adult Social Care,New Codes,Sdg LT Phys Support - FNC,Third Party Payments,Private Contractors & Other Agencies,Purchased Care Services,07.01.2016,1900953252,-3328.00,Bupa Care Services The Burnham,11007077
Somerset County Council,Adult Social Care,New Codes,Sdg LT Phys Support - FNC,Third Party Payments,Private Contractors & Other Agencies,Purchased Care Services,07.01.2016,1900953252,672.00,Bupa Care Services The Burnham,11007077
Somerset County Council,Adult Social Care,New Codes,Sdg LT Phys Support - FNC,Third Party Payments,Private Contractors & Other Agencies,Purchased Care Services,07.01.2016,1900953252,480.00,Bupa Care Services The Burnham,11007077
Somerset County Council,Adult Social Care,New Codes,Sdg LT Phys Support - FNC,Third Party Payments,Private Contractors & Other Agencies,Purchased Care Services,07.01.2016,1900953252,448.00,Bupa Care Services The Burnham,11007077
Somerset County Council,Adult Social Care,New Codes,Sdg LT Phys Support - Nurs Block,Third Party Payments,Private Contractors & Other Agencies,Purchased Care Services,28.01.2016,1900962643,15114.24,Bupa Care Services The Burnham,11007077
Somerset County Council,Adult Social Care,New Codes,Sdg LT Phys Support - Nurs Spot,Third Party Payments,Private Contractors & Other Agencies,Purchased Care Services,07.01.2016,1900953252,1889.28,Bupa Care Services The Burnham,11007077
Somerset County Council,Adult Social Care,New Codes,Sdg LT Phys Support - Nurs Spot,Third Party Payments,Private Contractors & Other Agencies,Purchased Care Services,07.01.2016,1900953252,1889.28,Bupa Care Services The Burnham,11007077
Somerset County Council,Adult Social Care,New Codes,Sdg LT Phys Support - Nurs Spot,Third Party Payments,Private Contractors & Other Agencies,Purchased Care Services,07.01.2016,1900953252,1889.28,Bupa Care Services The Burnham,11007077
Somerset County Council,Adult Social Care,New Codes,Sdg LT Phys Support - Nurs Spot,Third Party Payments,Private Contractors & Other Agencies,Purchased Care Services,07.01.2016,1900953252,1889.28,Bupa Care Services The Burnham,11007077
Somerset County Council,Adult Social Care,New Codes,Sdg LT Phys Support - Nurs Spot,Third Party Payments,Private Contractors & Other Agencies,Purchased Care Services,07.01.2016,1900953252,1889.28,Bupa Care Services The Burnham,11007077
Somerset County Council,Adult Social Care,New Codes,Sdg LT Phys Support - Nurs Spot,Third Party Payments,Private Contractors & Other Agencies,Purchased Care Services,07.01.2016,1900953252,1889.28,Bupa Care Services The Burnham,11007077
Somerset County Council,Adult Social Care,New Codes,Sdg LT Phys Support - Res Spot,Third Party Payments,Private Contractors & Other Agencies,Purchased Care Services,07.01.2016,1900953252,1829.88,Bupa Care Services The Burnham,11007077
Somerset County Council,Adult Social Care,New Codes,Sdg LT Phys Support - Res Spot,Third Party Payments,Private Contractors & Other Agencies,Purchased Care Services,07.01.2016,1900953252,1829.88,Bupa Care Services The Burnham,11007077
Somerset County Council,Adult Social Care,New Codes,Sdg LT Phys Support - Res Spot,Third Party Payments,Private Contractors & Other Agencies,Purchased Care Services,07.01.2016,1900953252,1889.28,Bupa Care Services The Burnham,11007077
Somerset County Council,Adult Social Care,New Codes,Sdg LT Phys Support - Res Spot,Third Party Payments,Private Contractors & Other Agencies,Purchased Care Services,07.01.2016,1900953252,1829.88,Bupa Care Services The Burnham,11007077
Somerset County Council,Adult Social Care,New Codes,Sdg LT Sens Support - Res Spot,Third Party Payments,Private Contractors & Other Agencies,Purchased Care Services,07.01.2016,1900953252,1829.88,Bupa Care Services The Burnham,11007077
Somerset County Council,Adult Social Care,New Codes,Sdg ST Phys Support - Admission Avoid,Third Party Payments,Private Contractors & Other Agencies,Purchased Care Services,07.01.2016,1900953252,944.64,Bupa Care Services The Burnham,11007077
Somerset County Council,Adult Social Care,New Codes,Sdg ST Phys Support - Plaster of Paris,Third Party Payments,Private Contractors & Other Agencies,Purchased Care Services,07.01.2016,1900953252,2024.23,Bupa Care Services The Burnham,11007077
Somerset County Council,Adult Social Care,New Codes,Sdg ST Phys Support - Respite,Third Party Payments,Private Contractors & Other Agencies,Purchased Care Services,07.01.2016,1900953252,2833.92,Bupa Care Services The Burnham,11007077
Somerset County Council,Adult Social Care,Older People,ASC ME OP FNC Somerset,Third Party Payments,Private Contractors & Other Agencies,Purchased Care Services,28.01.2016,1900962541,1344.00,Bupa Care Services The Glen,11007086
Somerset County Council,Adult Social Care,Older People,ASC ME OP FNC Somerset,Third Party Payments,Private Contractors & Other Agencies,Purchased Care Services,28.01.2016,1900962541,448.00,Bupa Care Services The Glen,11007086
Somerset County Council,Adult Social Care,Older People,ASC ME OP Res/Nurs Respite,Third Party Payments,Private Contractors & Other Agencies,Purchased Care Services,28.01.2016,1900962541,1829.88,Bupa Care Services The Glen,11007086
Somerset County Council,Adult Social Care,New Codes,Mdp LT Mem Support - Nurs Spot,Third Party Payments,Private Contractors & Other Agencies,Purchased Care Services,08.01.2016,1900954633,1889.28,Bupa Care Services The Glen,11007086
Somerset County Council,Adult Social Care,New Codes,Mdp LT Mem Support - Nurs Spot,Third Party Payments,Private Contractors & Other Agencies,Purchased Care Services,08.01.2016,1900954633,1889.28,Bupa Care Services The Glen,11007086
Somerset County Council,Adult Social Care,New Codes,Mdp LT Phys Support - Day Care,Third Party Payments,Private Contractors & Other Agencies,Purchased Care Services,04.01.2016,5100753059,669.80,Bupa Care Services The Glen,11007086
Somerset County Council,Adult Social Care,New Codes,Mdp LT Phys Support - Day Care,Third Party Payments,Private Contractors & Other Agencies,Purchased Care Services,04.01.2016,5100753060,747.80,Bupa Care Services The Glen,11007086
Somerset County Council,Adult Social Care,New Codes,Mdp LT Phys Support - Day Care,Third Party Payments,Private Contractors & Other Agencies,Purchased Care Services,05.01.2016,5100753946,502.35,Bupa Care Services The Glen,11007086
Somerset County Council,Adult Social Care,New Codes,Mdp LT Phys Support - FNC,Third Party Payments,Private Contractors & Other Agencies,Purchased Care Services,08.01.2016,1900954633,448.00,Bupa Care Services The Glen,11007086
Somerset County Council,Adult Social Care,New Codes,Mdp LT Phys Support - FNC,Third Party Payments,Private Contractors & Other Agencies,Purchased Care Services,08.01.2016,1900954633,448.00,Bupa Care Services The Glen,11007086
Somerset County Council,Adult Social Care,New Codes,Mdp LT Phys Support - FNC,Third Party Payments,Private Contractors & Other Agencies,Purchased Care Services,08.01.2016,1900954633,448.00,Bupa Care Services The Glen,11007086
Somerset County Council,Adult Social Care,New Codes,Mdp LT Phys Support - FNC,Third Party Payments,Private Contractors & Other Agencies,Purchased Care Services,08.01.2016,1900954633,448.00,Bupa Care Services The Glen,11007086
Somerset County Council,Adult Social Care,New Codes,Mdp LT Phys Support - FNC,Third Party Payments,Private Contractors & Other Agencies,Purchased Care Services,08.01.2016,1900954633,448.00,Bupa Care Services The Glen,11007086
Somerset County Council,Adult Social Care,New Codes,Mdp LT Phys Support - FNC,Third Party Payments,Private Contractors & Other Agencies,Purchased Care Services,08.01.2016,1900954633,448.00,Bupa Care Services The Glen,11007086
Somerset County Council,Adult Social Care,New Codes,Mdp LT Phys Support - FNC,Third Party Payments,Private Contractors & Other Agencies,Purchased Care Services,08.01.2016,1900954633,448.00,Bupa Care Services The Glen,11007086
Somerset County Council,Adult Social Care,New Codes,Mdp LT Phys Support - FNC,Third Party Payments,Private Contractors & Other Agencies,Purchased Care Services,08.01.2016,1900954633,448.00,Bupa Care Services The Glen,11007086
Somerset County Council,Adult Social Care,New Codes,Mdp LT Phys Support - FNC,Third Party Payments,Private Contractors & Other Agencies,Purchased Care Services,08.01.2016,1900954633,448.00,Bupa Care Services The Glen,11007086
Somerset County Council,Adult Social Care,New Codes,Mdp LT Phys Support - FNC,Third Party Payments,Private Contractors & Other Agencies,Purchased Care Services,08.01.2016,1900954633,448.00,Bupa Care Services The Glen,11007086
Somerset County Council,Adult Social Care,New Codes,Mdp LT Phys Support - FNC,Third Party Payments,Private Contractors & Other Agencies,Purchased Care Services,08.01.2016,1900954633,448.00,Bupa Care Services The Glen,11007086
Somerset County Council,Adult Social Care,New Codes,Mdp LT Phys Support - FNC,Third Party Payments,Private Contractors & Other Agencies,Purchased Care Services,08.01.2016,1900954633,448.00,Bupa Care Services The Glen,11007086
Somerset County Council,Adult Social Care,New Codes,Mdp LT Phys Support - FNC,Third Party Payments,Private Contractors & Other Agencies,Purchased Care Services,08.01.2016,1900954633,448.00,Bupa Care Services The Glen,11007086
Somerset County Council,Adult Social Care,New Codes,Mdp LT Phys Support - FNC,Third Party Payments,Private Contractors & Other Agencies,Purchased Care Services,08.01.2016,1900954633,448.00,Bupa Care Services The Glen,11007086
Somerset County Council,Adult Social Care,New Codes,Mdp LT Phys Support - FNC,Third Party Payments,Private Contractors & Other Agencies,Purchased Care Services,08.01.2016,1900954633,448.00,Bupa Care Services The Glen,11007086
Somerset County Council,Adult Social Care,New Codes,Mdp LT Phys Support - FNC,Third Party Payments,Private Contractors & Other Agencies,Purchased Care Services,08.01.2016,1900954633,448.00,Bupa Care Services The Glen,11007086
Somerset County Council,Adult Social Care,New Codes,Mdp LT Phys Support - FNC,Third Party Payments,Private Contractors & Other Agencies,Purchased Care Services,08.01.2016,1900954633,448.00,Bupa Care Services The Glen,11007086
Somerset County Council,Adult Social Care,New Codes,Mdp LT Phys Support - FNC,Third Party Payments,Private Contractors & Other Agencies,Purchased Care Services,08.01.2016,1900954633,448.00,Bupa Care Services The Glen,11007086
Somerset County Council,Adult Social Care,New Codes,Mdp LT Phys Support - FNC,Third Party Payments,Private Contractors & Other Agencies,Purchased Care Services,08.01.2016,1900954633,448.00,Bupa Care Services The Glen,11007086
Somerset County Council,Adult Social Care,New Codes,Mdp LT Phys Support - FNC,Third Party Payments,Private Contractors & Other Agencies,Purchased Care Services,08.01.2016,1900954633,448.00,Bupa Care Services The Glen,11007086
Somerset County Council,Adult Social Care,New Codes,Mdp LT Phys Support - FNC,Third Party Payments,Private Contractors & Other Agencies,Purchased Care Services,08.01.2016,1900954633,448.00,Bupa Care Services The Glen,11007086
Somerset County Council,Adult Social Care,New Codes,Mdp LT Phys Support - FNC,Third Party Payments,Private Contractors & Other Agencies,Purchased Care Services,08.01.2016,1900954633,272.00,Bupa Care Services The Glen,11007086
Somerset County Council,Adult Social Care,New Codes,Mdp LT Phys Support - FNC,Third Party Payments,Private Contractors & Other Agencies,Purchased Care Services,08.01.2016,1900954633,128.00,Bupa Care Services The Glen,11007086
Somerset County Council,Adult Social Care,New Codes,Mdp LT Phys Support - Nurs Block,Third Party Payments,Private Contractors & Other Agencies,Purchased Care Services,28.01.2016,1900962541,5667.84,Bupa Care Services The Glen,11007086
Somerset County Council,Adult Social Care,New Codes,Mdp LT Phys Support - Nurs Block,Third Party Payments,Private Contractors & Other Agencies,Purchased Care Services,28.01.2016,1900962541,1889.28,Bupa Care Services The Glen,11007086
Somerset County Council,Adult Social Care,New Codes,Mdp LT Phys Support - Nurs Spot,Third Party Payments,Private Contractors & Other Agencies,Purchased Care Services,08.01.2016,1900954633,67.47,Bupa Care Services The Glen,11007086
Somerset County Council,Adult Social Care,New Codes,Mdp LT Phys Support - Nurs Spot,Third Party Payments,Private Contractors & Other Agencies,Purchased Care Services,08.01.2016,1900954633,1889.28,Bupa Care Services The Glen,11007086
Somerset County Council,Adult Social Care,New Codes,Mdp LT Phys Support - Nurs Spot,Third Party Payments,Private Contractors & Other Agencies,Purchased Care Services,08.01.2016,1900954633,1889.28,Bupa Care Services The Glen,11007086
Somerset County Council,Adult Social Care,New Codes,Mdp LT Phys Support - Nurs Spot,Third Party Payments,Private Contractors & Other Agencies,Purchased Care Services,08.01.2016,1900954633,1889.28,Bupa Care Services The Glen,11007086
Somerset County Council,Adult Social Care,New Codes,Mdp LT Phys Support - Nurs Spot,Third Party Payments,Private Contractors & Other Agencies,Purchased Care Services,08.01.2016,1900954633,1889.28,Bupa Care Services The Glen,11007086
Somerset County Council,Adult Social Care,New Codes,Mdp LT Phys Support - Nurs Spot,Third Party Payments,Private Contractors & Other Agencies,Purchased Care Services,08.01.2016,1900954633,1931.08,Bupa Care Services The Glen,11007086
Somerset County Council,Adult Social Care,New Codes,Mdp LT Phys Support - Nurs Spot,Third Party Payments,Private Contractors & Other Agencies,Purchased Care Services,08.01.2016,1900954633,1889.28,Bupa Care Services The Glen,11007086
Somerset County Council,Adult Social Care,New Codes,Mdp LT Phys Support - Nurs Spot,Third Party Payments,Private Contractors & Other Agencies,Purchased Care Services,08.01.2016,1900954633,1889.28,Bupa Care Services The Glen,11007086
Somerset County Council,Adult Social Care,New Codes,Mdp LT Phys Support - Nurs Spot,Third Party Payments,Private Contractors & Other Agencies,Purchased Care Services,08.01.2016,1900954633,1889.28,Bupa Care Services The Glen,11007086
Somerset County Council,Adult Social Care,New Codes,Mdp LT Phys Support - Nurs Spot,Third Party Payments,Private Contractors & Other Agencies,Purchased Care Services,08.01.2016,1900954633,1889.28,Bupa Care Services The Glen,11007086
Somerset County Council,Adult Social Care,New Codes,Mdp LT Phys Support - Nurs Spot,Third Party Payments,Private Contractors & Other Agencies,Purchased Care Services,08.01.2016,1900954633,1889.28,Bupa Care Services The Glen,11007086
Somerset County Council,Adult Social Care,New Codes,Mdp LT Phys Support - Nurs Spot,Third Party Payments,Private Contractors & Other Agencies,Purchased Care Services,08.01.2016,1900954633,1889.28,Bupa Care Services The Glen,11007086
Somerset County Council,Adult Social Care,New Codes,Mdp LT Phys Support - Nurs Spot,Third Party Payments,Private Contractors & Other Agencies,Purchased Care Services,08.01.2016,1900954633,1079.59,Bupa Care Services The Glen,11007086
Somerset County Council,Adult Social Care,New Codes,Mdp LT Phys Support - Res Spot,Third Party Payments,Private Contractors & Other Agencies,Purchased Care Services,08.01.2016,1900954633,2337.28,Bupa Care Services The Glen,11007086
Somerset County Council,Adult Social Care,New Codes,Mdp LT Phys Support - Res Spot,Third Party Payments,Private Contractors & Other Agencies,Purchased Care Services,08.01.2016,1900954633,1829.88,Bupa Care Services The Glen,11007086
Somerset County Council,Adult Social Care,New Codes,Mdp LT Phys Support - Res Spot,Third Party Payments,Private Contractors & Other Agencies,Purchased Care Services,08.01.2016,1900954633,1829.88,Bupa Care Services The Glen,11007086
Somerset County Council,Adult Social Care,New Codes,Mdp LT Phys Support - Res Spot,Third Party Payments,Private Contractors & Other Agencies,Purchased Care Services,08.01.2016,1900954633,1829.88,Bupa Care Services The Glen,11007086
Somerset County Council,Adult Social Care,New Codes,Mdp LT Phys Support - Res Spot,Third Party Payments,Private Contractors & Other Agencies,Purchased Care Services,08.01.2016,1900954633,1829.88,Bupa Care Services The Glen,11007086
